Department,Date,Supplier,Amount,Category
AHH,03/10/2018,TRAVELODGE GB0000,54.00,TRAVELODGE
AHH,02/10/2018,TRAVELODGE GB0000,112.00,TRAVELODGE
AHH,28/09/2018,PREMIER INN 44537265,116.00,PREMIER INN
AHH,26/09/2018,PREMIER INN 44537265,63.50,PREMIER INN
AHH,19/09/2018,TRAVELODGE GB0000,104.50,TRAVELODGE
AHH,18/09/2018,PREMIER INN 44537265,63.50,PREMIER INN
AHH,17/09/2018,PREMIER INN 44537265,69.00,PREMIER INN
AHH,14/09/2018,TRAVELODGE GB0000,47.00,TRAVELODGE
AHH,10/09/2018,CHOICE LETS & ESTATES,682.50,"LODGING-HOTELS,MOTELS,RESORTS-NOT CLASSIFIED"
AHH,10/09/2018,TRAVELODGE GB0569,127.50,TRAVELODGE
AHH,07/09/2018,REDWINGS LODGE,99.90,"LODGING-HOTELS,MOTELS,RESORTS-NOT CLASSIFIED"
AHH,10/09/2018,TRAVELODGE GB0569,2.50,TRAVELODGE
AHH,10/09/2018,TRAVELODGE GB0569,47.00,TRAVELODGE
AHH,06/09/2018,REDWINGS LODGE,99.90,"LODGING-HOTELS,MOTELS,RESORTS-NOT CLASSIFIED"
AHH,05/09/2018,TESCO STORES 2404,11.50,"GROCERY STORES, SUPERMARKETS"
AHH,05/09/2018,MARKS&SPENCER PLC,14.00,"GROCERY STORES, SUPERMARKETS"
AHH,04/09/2018,TRAVELODGE GB0000,173.00,TRAVELODGE
AHH,04/09/2018,REDWINGS LODGE,99.90,"LODGING-HOTELS,MOTELS,RESORTS-NOT CLASSIFIED"
AHH,28/08/2018,HOTELS.COM151397940272,58.90,TRAVEL AGENCIES AND TOUR OPERATORS
AHH,28/08/2018,TRAVELODGE GB0000,52.50,TRAVELODGE
AHH,28/08/2018,TRAVELODGE GB0000,47.50,TRAVELODGE
AHH,28/08/2018,TRAVELODGE GB0000,57.00,TRAVELODGE
AHH,28/08/2018,BRITANNIA,151.00,"LODGING-HOTELS,MOTELS,RESORTS-NOT CLASSIFIED"
AHH,28/08/2018,TRAVELODGE GB0000,176.00,TRAVELODGE
AHH,21/08/2018,TRAVELODGE GB0000,51.00,TRAVELODGE
AHH,20/08/2018,TRAVELODGE GB0000,234.50,TRAVELODGE
AHH,20/08/2018,BRITANNIA,150.00,"LODGING-HOTELS,MOTELS,RESORTS-NOT CLASSIFIED"
AHH,20/08/2018,WOLVERHAMPTON HOTEL,.01,"LODGING-HOTELS,MOTELS,RESORTS-NOT CLASSIFIED"
AHH,20/08/2018,WOLVERHAMPTON HOTEL,.01,"LODGING-HOTELS,MOTELS,RESORTS-NOT CLASSIFIED"
AHH,20/08/2018,BRITANNIA,222.00,"LODGING-HOTELS,MOTELS,RESORTS-NOT CLASSIFIED"
AHH,10/08/2018,BRITANNIA,551.00,"LODGING-HOTELS,MOTELS,RESORTS-NOT CLASSIFIED"
AHH,07/08/2018,TESCO STORES 3297,57.83,"GROCERY STORES, SUPERMARKETS"
AHH,03/08/2018,JURYS INN DERBY FRONT,170.00,"LODGING-HOTELS,MOTELS,RESORTS-NOT CLASSIFIED"
AHH,03/08/2018,JURYS INN DERBY FRONT,427.00,"LODGING-HOTELS,MOTELS,RESORTS-NOT CLASSIFIED"
AHH,03/08/2018,JURYS INN DERBY FRONT,420.00,"LODGING-HOTELS,MOTELS,RESORTS-NOT CLASSIFIED"
AHH,31/07/2018,EVENTS AND EXAMS,299.00,"COLLEGES, UNIV, PRO SCHOOLS, JUNIOR COLLEGES"
AHH,24/07/2018,TESCO STORES 3297,45.58,"GROCERY STORES, SUPERMARKETS"
AHH,23/07/2018,INTERNATIONAL HOTEL,39.00,"LODGING-HOTELS,MOTELS,RESORTS-NOT CLASSIFIED"
AHH,16/07/2018,THE STUART HOTEL,192.90,"LODGING-HOTELS,MOTELS,RESORTS-NOT CLASSIFIED"
AHH,16/07/2018,PREMIER INN 44537265,458.00,PREMIER INN
AHH,11/07/2018,HALLMARK HOTEL,82.00,"LODGING-HOTELS,MOTELS,RESORTS-NOT CLASSIFIED"
AHH,10/07/2018,EVIIVO:INTERNATIONAL H,39.00,"LODGING-HOTELS,MOTELS,RESORTS-NOT CLASSIFIED"
AHH,05/07/2018,ALDI 43 772,5.98,"GROCERY STORES, SUPERMARKETS"
CYP CH,02/07/2018,MCDONALDS,6.19,"EATING PLACES, RESTAURANTS"
CYP CH,02/07/2018,WWW.TENPIN.CO.UK,24.90,"CLUBS-CNTRY,MBRSHIP(ATHLET,REC,SPRTS,PRIVATE GOLF"
CYP CH,02/07/2018,B&M RETAIL,4.98,DISCOUNT STORES
CYP CH,02/07/2018,MCDONALDS,5.07,FAST FOOD RESTAURANTS
CYP CH,02/07/2018,W M MORRISONS.COM,158.76,"GROCERY STORES, SUPERMARKETS"
CYP CH,02/07/2018,ASDA SUPERSTORE,10.10,"GROCERY STORES, SUPERMARKETS"
CYP CH,02/07/2018,ASDA GROCERIES ONLINE,101.90,"GROCERY STORES, SUPERMARKETS"
CYP CH,02/07/2018,ASDA GROCERIES ONLINE,72.67,"GROCERY STORES, SUPERMARKETS"
CYP CH,02/07/2018,ASDA GROCERIES ONLINE,63.80,"GROCERY STORES, SUPERMARKETS"
CYP CH,02/07/2018,ASDA GROCERIES ONLINE,-2.00,"GROCERY STORES, SUPERMARKETS"
CYP CH,02/07/2018,ASDA GROCERIES ONLINE,-.10,"GROCERY STORES, SUPERMARKETS"
CYP CH,03/07/2018,MCDONALDS,2.92,FAST FOOD RESTAURANTS
CYP CH,03/07/2018,ASDA SUPERSTORE,3.00,"GROCERY STORES, SUPERMARKETS"
CYP CH,03/07/2018,ASDA SUPERSTORE,73.86,"GROCERY STORES, SUPERMARKETS"
CYP CH,03/07/2018,MCDONALDS,2.18,"EATING PLACES, RESTAURANTS"
CYP CH,03/07/2018,WWW.TENPIN.CO.UK,6.46,"CLUBS-CNTRY,MBRSHIP(ATHLET,REC,SPRTS,PRIVATE GOLF"
CYP CH,03/07/2018,WWW.TENPIN.CO.UK,3.75,"CLUBS-CNTRY,MBRSHIP(ATHLET,REC,SPRTS,PRIVATE GOLF"
CYP CH,03/07/2018,WWW.TENPIN.CO.UK,6.85,"CLUBS-CNTRY,MBRSHIP(ATHLET,REC,SPRTS,PRIVATE GOLF"
CYP CH,03/07/2018,MCDONALDS,3.42,"EATING PLACES, RESTAURANTS"
CYP CH,03/07/2018,ZANFISH ALLENTON,29.00,FAST FOOD RESTAURANTS
CYP CH,03/07/2018,ARGOS LTD,130.90,DISCOUNT STORES
CYP CH,03/07/2018,IZ  DESIGN @ 44,20.00,"COMMERCIAL ART, GRAPHICS, PHOTOGRAPHY"
CYP CH,03/07/2018,ASDA SUPERSTORE,7.00,"GROCERY STORES, SUPERMARKETS"
CYP CH,03/07/2018,WICKES,28.76,HOME SUPPLY WAREHOUSE STORES
CYP CH,03/07/2018,B&M RETAIL LTD,23.97,DISCOUNT STORES
CYP CH,03/07/2018,TESCO STORE 2404,3.90,"GROCERY STORES, SUPERMARKETS"
CYP CH,03/07/2018,W M MORRISONS.COM,8.00,"GROCERY STORES, SUPERMARKETS"
CYP CH,03/07/2018,ASDA SUPERSTORE,15.50,"GROCERY STORES, SUPERMARKETS"
CYP CH,04/07/2018,GIFFGAFF,20.00,TELECOM INCL PREPAID/RECURRING PHONE SVCS
CYP CH,04/07/2018,ASDA GEORGE COM LEEDS,22.95,"GROCERY STORES, SUPERMARKETS"
CYP CH,04/07/2018,B&M RETAIL LTD,9.98,DISCOUNT STORES
CYP CH,04/07/2018,TESCO STORES 2404,2.00,"GROCERY STORES, SUPERMARKETS"
CYP CH,04/07/2018,MCDONALDS,3.87,"EATING PLACES, RESTAURANTS"
CYP CH,04/07/2018,HOBBYCRAFT,12.50,"ARTIST SUPPLY STORES, CRAFT SHOPS"
CYP CH,04/07/2018,MCDONALDS,2.88,FAST FOOD RESTAURANTS
CYP CH,04/07/2018,3C_ FULL STREET CAR PA,2.50,AUTOMOBILE PARKING LOTS AND GARAGES
CYP CH,05/07/2018,WWW.TENPIN.CO.UK,24.90,"CLUBS-CNTRY,MBRSHIP(ATHLET,REC,SPRTS,PRIVATE GOLF"
CYP CH,05/07/2018,ASDA SUPERSTORE,106.91,"GROCERY STORES, SUPERMARKETS"
CYP CH,05/07/2018,SHOWCASE CINEMAS UPT,6.70,MOTION PICTURE THEATERS
CYP CH,05/07/2018,SHOWCASE CINEMAS UPT,19.90,MOTION PICTURE THEATERS
CYP CH,05/07/2018,MCDONALDS,5.62,FAST FOOD RESTAURANTS
CYP CH,05/07/2018,BOOTS 6558,9.59,"DRUG STORES, PHARMACIES"
CYP CH,05/07/2018,ARGOS LTD,5.49,DISCOUNT STORES
CYP CH,05/07/2018,ASDA SUPERSTORE,12.35,"GROCERY STORES, SUPERMARKETS"
CYP CH,05/07/2018,MCDONALDS,3.10,"EATING PLACES, RESTAURANTS"
CYP CH,05/07/2018,LOCKSMITH BY JOHN G &,7.00,BUSINESS SERVICES-NOT ELSEWHERE CLASSIFIED
CYP CH,05/07/2018,SUK RETAIL LTD,142.95,"OFFICE, SCHOOL SUPPLY, AND STATIONERY STORES"
CYP CH,05/07/2018,HALFORDS 0972,40.00,BICYCLE SHOPS-SALES AND SERVICE
CYP CH,05/07/2018,KFC,2.99,FAST FOOD RESTAURANTS
CYP CH,05/07/2018,TIMPSON,10.00,"HAT CLEANING SHOPS, SHOE REPAIR SHOPS, SHOE SHINE"
CYP CH,05/07/2018,EE STORE 4853,10.79,TELECOM INCL PREPAID/RECURRING PHONE SVCS
CYP CH,05/07/2018,SAINSBURYS SACAT 2059,11.00,"GROCERY STORES, SUPERMARKETS"
CYP CH,05/07/2018,GREGGS PLC,3.00,"EATING PLACES, RESTAURANTS"
CYP CH,05/07/2018,OSMASTON PARK,39.98,DISCOUNT STORES
CYP CH,05/07/2018,ALDI 102 772,2.48,"GROCERY STORES, SUPERMARKETS"
CYP CH,05/07/2018,ALDI 102 772,4.20,"GROCERY STORES, SUPERMARKETS"
CYP CH,05/07/2018,ALDI 102 772,31.42,"GROCERY STORES, SUPERMARKETS"
CYP CH,05/07/2018,WILKO RETAIL LIMIT,7.00,HOUSEHOLD APPLIANCE STORES
CYP CH,08/07/2018,MCDONALDS,5.69,"EATING PLACES, RESTAURANTS"
CYP CH,08/07/2018,CENTRAL ENG COOP,3.42,DEPARTMENT STORES
CYP CH,08/07/2018,CENTRAL ENG COOP,1.09,DEPARTMENT STORES
CYP CH,08/07/2018,CENTRAL ENG COOP,4.50,DEPARTMENT STORES
CYP CH,08/07/2018,CO-OP GROUP 070316,43.60,"GROCERY STORES, SUPERMARKETS"
CYP CH,08/07/2018,ASDA SUPERSTORE,10.00,"GROCERY STORES, SUPERMARKETS"
CYP CH,08/07/2018,ASDA SUPERSTORE,15.13,"GROCERY STORES, SUPERMARKETS"
CYP CH,08/07/2018,ASDA SUPERSTORE,14.00,"GROCERY STORES, SUPERMARKETS"
CYP CH,07/07/2018,ASDA SUPERSTORE,8.00,"GROCERY STORES, SUPERMARKETS"
CYP CH,07/07/2018,ASDA SUPERSTORE,12.82,"GROCERY STORES, SUPERMARKETS"
CYP CH,07/07/2018,MCDONALDS,1.49,FAST FOOD RESTAURANTS
CYP CH,07/07/2018,FARMFOODS- OSMASTO,27.91,"GROCERY STORES, SUPERMARKETS"
CYP CH,07/07/2018,C.E.X LIMITED,13.98,ELECTRICAL PARTS AND EQUIPMENT
CYP CH,07/07/2018,WILKO RETAIL LIMIT,11.20,HOUSEHOLD APPLIANCE STORES
CYP CH,06/07/2018,KEDLESTON FISH,9.50,"EATING PLACES, RESTAURANTS"
CYP CH,06/07/2018,ARGOS LTD,222.43,DISCOUNT STORES
CYP CH,06/07/2018,MCDONALDS,4.31,FAST FOOD RESTAURANTS
CYP CH,06/07/2018,DEAN & SMEDLEY LTD,4.07,"DRUG STORES, PHARMACIES"
CYP CH,06/07/2018,W M MORRISONS.COM,75.62,"GROCERY STORES, SUPERMARKETS"
CYP CH,06/07/2018,INTU PARKING DERBY,3.10,AUTOMOBILE PARKING LOTS AND GARAGES
CYP CH,06/07/2018,SUBWAY,2.40,"EATING PLACES, RESTAURANTS"
CYP CH,06/07/2018,J D SPORTS 267,185.05,SPORTING GOODS STORES
CYP CH,06/07/2018,MCDONALDS,5.01,FAST FOOD RESTAURANTS
CYP CH,06/07/2018,WILKO RETAIL LIMIT,27.65,HOUSEHOLD APPLIANCE STORES
CYP CH,06/07/2018,JD SPORTS INTERNET,152.00,SPORTING GOODS STORES
CYP CH,06/07/2018,MCDONALDS,2.97,"EATING PLACES, RESTAURANTS"
CYP CH,06/07/2018,IKEA LIMITED,137.40,"EQUIP, FURNITURE, HOME FURNSHNGS STRS (EXCPT APPL)"
CYP CH,06/07/2018,ASDA GROCERIES ONLINE,73.00,"GROCERY STORES, SUPERMARKETS"
CYP CH,06/07/2018,IKEA LIMITED,12.00,"EQUIP, FURNITURE, HOME FURNSHNGS STRS (EXCPT APPL)"
CYP CH,06/07/2018,ASDA GROCERIES ONLINE,-11.00,"GROCERY STORES, SUPERMARKETS"
CYP CH,09/07/2018,SAINSBURYS SACAT 2059,35.15,"GROCERY STORES, SUPERMARKETS"
CYP CH,09/07/2018,SAINSBURYS SACAT 2059,3.00,"GROCERY STORES, SUPERMARKETS"
CYP CH,09/07/2018,SAINSBURYS SACAT 2059,8.50,"GROCERY STORES, SUPERMARKETS"
CYP CH,09/07/2018,KFC - BURTON,3.27,FAST FOOD RESTAURANTS
CYP CH,09/07/2018,WWW.TENPIN.CO.UK,5.00,"CLUBS-CNTRY,MBRSHIP(ATHLET,REC,SPRTS,PRIVATE GOLF"
CYP CH,09/07/2018,WWW.TENPIN.CO.UK,20.85,"CLUBS-CNTRY,MBRSHIP(ATHLET,REC,SPRTS,PRIVATE GOLF"
CYP CH,09/07/2018,W M MORRISONS.COM,165.09,"GROCERY STORES, SUPERMARKETS"
CYP CH,09/07/2018,FAST LANE,132.50,"CLUBS-CNTRY,MBRSHIP(ATHLET,REC,SPRTS,PRIVATE GOLF"
CYP CH,09/07/2018,CASH CONVERTERS NOTTIN,39.99,MISCELLANEOUS AND SPECIALTY RETAIL STORES
CYP CH,09/07/2018,CENTRAL ENG COOP,20.00,DEPARTMENT STORES
CYP CH,09/07/2018,ASDA GROCERIES ONLINE,34.91,"GROCERY STORES, SUPERMARKETS"
CYP CH,09/07/2018,ASDA SUPERSTORE,19.56,"GROCERY STORES, SUPERMARKETS"
CYP CH,08/07/2018,JAXX Q CLUB,8.80,POOL AND BILLIARD ESTABLISHMENTS
CYP CH,10/07/2018,MCDONALDS,3.87,"EATING PLACES, RESTAURANTS"
CYP CH,10/07/2018,MCDONALDS,20.36,"EATING PLACES, RESTAURANTS"
CYP CH,10/07/2018,ASDA SUPERSTORE,10.16,"GROCERY STORES, SUPERMARKETS"
CYP CH,10/07/2018,ASDA SUPERSTORE,156.00,"GROCERY STORES, SUPERMARKETS"
CYP CH,10/07/2018,OXYGEN FREEJUMPING,9.50,"CLUBS-CNTRY,MBRSHIP(ATHLET,REC,SPRTS,PRIVATE GOLF"
CYP CH,10/07/2018,FAST LANE,5.50,"CLUBS-CNTRY,MBRSHIP(ATHLET,REC,SPRTS,PRIVATE GOLF"
CYP CH,10/07/2018,ASDA SUPERSTORE,2.20,"GROCERY STORES, SUPERMARKETS"
CYP CH,10/07/2018,ASDA SUPERSTORE,99.00,"GROCERY STORES, SUPERMARKETS"
CYP CH,10/07/2018,MCDONALDS,2.60,FAST FOOD RESTAURANTS
CYP CH,10/07/2018,INTU PARKING DERBY,3.10,AUTOMOBILE PARKING LOTS AND GARAGES
CYP CH,10/07/2018,CENTRAL ENG COOP,12.58,DEPARTMENT STORES
CYP CH,10/07/2018,MCDONALDS,2.97,FAST FOOD RESTAURANTS
CYP CH,10/07/2018,HOME BARGAINS,1.38,HARDWARE STORES
CYP CH,10/07/2018,ASDA GROCERIES ONLINE,185.70,"GROCERY STORES, SUPERMARKETS"
CYP CH,10/07/2018,BOOTS 0023,5.55,"DRUG STORES, PHARMACIES"
CYP CH,10/07/2018,ASDA GROCERIES ONLINE,-3.50,"GROCERY STORES, SUPERMARKETS"
CYP CH,09/07/2018,THE RIVERSIDE FISH BAR,10.60,FAST FOOD RESTAURANTS
CYP CH,11/07/2018,CENTRAL ENG COOP,4.47,DEPARTMENT STORES
CYP CH,11/07/2018,ARGOS LTD,26.99,DISCOUNT STORES
CYP CH,11/07/2018,TESCO STORE 2404,41.30,"GROCERY STORES, SUPERMARKETS"
CYP CH,11/07/2018,THE RANGE,2.99,DEPARTMENT STORES
CYP CH,11/07/2018,MCDONALDS,2.48,FAST FOOD RESTAURANTS
CYP CH,11/07/2018,DERBY TEACHING HOSPITA,2.40,AUTOMOBILE PARKING LOTS AND GARAGES
CYP CH,11/07/2018,B & Q 1328,6.00,"BUILDING MATERIALS, LUMBER STORES"
CYP CH,11/07/2018,ASDA SUPERSTORE,32.50,"GROCERY STORES, SUPERMARKETS"
CYP CH,11/07/2018,WILKO RETAIL LIMIT,8.50,HOUSEHOLD APPLIANCE STORES
CYP CH,11/07/2018,ASDA SUPERSTORE,22.63,"GROCERY STORES, SUPERMARKETS"
CYP CH,11/07/2018,ALDI 43 772,1.49,"GROCERY STORES, SUPERMARKETS"
CYP CH,11/07/2018,ASDA SUPERSTORE,10.45,"GROCERY STORES, SUPERMARKETS"
CYP CH,11/07/2018,WILKO RETAIL LIMIT,2.00,HOUSEHOLD APPLIANCE STORES
CYP CH,12/07/2018,JD SPORTS INTERNET,118.00,SPORTING GOODS STORES
CYP CH,12/07/2018,MCDONALDS,1.49,"EATING PLACES, RESTAURANTS"
CYP CH,12/07/2018,MCDONALDS,3.71,FAST FOOD RESTAURANTS
CYP CH,12/07/2018,ASDA SUPERSTORE,11.75,"GROCERY STORES, SUPERMARKETS"
CYP CH,12/07/2018,MCDONALDS,1.11,FAST FOOD RESTAURANTS
CYP CH,12/07/2018,WWW.TENPIN.CO.UK,20.85,"CLUBS-CNTRY,MBRSHIP(ATHLET,REC,SPRTS,PRIVATE GOLF"
CYP CH,12/07/2018,MCDONALDS,3.51,FAST FOOD RESTAURANTS
CYP CH,12/07/2018,ASDA SUPERSTORE,15.00,"GROCERY STORES, SUPERMARKETS"
CYP CH,12/07/2018,MCDONALDS,3.09,FAST FOOD RESTAURANTS
CYP CH,12/07/2018,ASDA SUPERSTORE,7.00,"GROCERY STORES, SUPERMARKETS"
CYP CH,12/07/2018,ARGOS LTD,25.98,DISCOUNT STORES
CYP CH,12/07/2018,ARGOS LTD,141.94,DISCOUNT STORES
CYP CH,15/07/2018,CENTRAL ENG COOP,13.12,DEPARTMENT STORES
CYP CH,15/07/2018,FARMFOODS- OSMASTO,29.02,"GROCERY STORES, SUPERMARKETS"
CYP CH,15/07/2018,ARGOS LTD,24.99,DISCOUNT STORES
CYP CH,15/07/2018,CENTRAL ENG COOP,47.32,DEPARTMENT STORES
CYP CH,15/07/2018,CENTRAL ENG COOP,15.00,DEPARTMENT STORES
CYP CH,15/07/2018,APL /ALBATROS,12.50,LIMOUSINES AND TAXICABS
CYP CH,15/07/2018,BURGER KING DERBY DT,25.96,FAST FOOD RESTAURANTS
CYP CH,15/07/2018,MCDONALDS,4.89,"EATING PLACES, RESTAURANTS"
CYP CH,15/07/2018,WEST PARK LEISURE CENT,8.40,GOVERNMENT SERVICES-NOT ELSEWHERE CLASSIFIED
CYP CH,15/07/2018,TESCO STORE 2404,15.00,"GROCERY STORES, SUPERMARKETS"
CYP CH,15/07/2018,B & Q 1328,-6.00,"BUILDING MATERIALS, LUMBER STORES"
CYP CH,15/07/2018,WICKES,-7.19,HOME SUPPLY WAREHOUSE STORES
CYP CH,14/07/2018,TESCO STORES 2380,4.85,"GROCERY STORES, SUPERMARKETS"
CYP CH,14/07/2018,WWW.TENPIN.CO.UK,17.55,"CLUBS-CNTRY,MBRSHIP(ATHLET,REC,SPRTS,PRIVATE GOLF"
CYP CH,14/07/2018,WWW.TENPIN.CO.UK,19.35,"CLUBS-CNTRY,MBRSHIP(ATHLET,REC,SPRTS,PRIVATE GOLF"
CYP CH,14/07/2018,APL /ALBATROS,11.70,LIMOUSINES AND TAXICABS
CYP CH,14/07/2018,APL /ALBATROS,7.00,LIMOUSINES AND TAXICABS
CYP CH,14/07/2018,ODEON/BOOKIT,23.50,MOTION PICTURE THEATERS
CYP CH,14/07/2018,ASDA SUPERSTORE,6.04,"GROCERY STORES, SUPERMARKETS"
CYP CH,14/07/2018,CENTRAL ENG COOP,1.50,DEPARTMENT STORES
CYP CH,14/07/2018,CENTRAL ENG COOP,2.50,DEPARTMENT STORES
CYP CH,14/07/2018,CENTRAL ENG COOP,5.88,DEPARTMENT STORES
CYP CH,14/07/2018,AMAZON UK MARKETPLACE,20.99,BOOK STORES
CYP CH,14/07/2018,TESCO STORE 2404,20.50,"GROCERY STORES, SUPERMARKETS"
CYP CH,14/07/2018,TESCO STORE 2404,9.33,"GROCERY STORES, SUPERMARKETS"
CYP CH,14/07/2018,CENTRAL ENG COOP,1.29,DEPARTMENT STORES
CYP CH,14/07/2018,ASDA SUPERSTORE,75.86,"GROCERY STORES, SUPERMARKETS"
CYP CH,14/07/2018,CENTRAL ENG COOP,1.49,DEPARTMENT STORES
CYP CH,14/07/2018,AMAZON UK MARKETPLACE,27.93,BOOK STORES
CYP CH,14/07/2018,AMAZON UK MARKETPLACE,23.99,BOOK STORES
CYP CH,13/07/2018,SHOWCASE DERBY,16.65,MOTION PICTURE THEATERS
CYP CH,13/07/2018,CENTRAL ENG COOP,8.00,DEPARTMENT STORES
CYP CH,13/07/2018,ASDA SUPERSTORE,20.54,"GROCERY STORES, SUPERMARKETS"
CYP CH,13/07/2018,ZANFISH ALLENTON,25.60,FAST FOOD RESTAURANTS
CYP CH,13/07/2018,SAINSBURYS SACAT 2059,12.05,"GROCERY STORES, SUPERMARKETS"
CYP CH,13/07/2018,OSMASTON PARK,10.00,DISCOUNT STORES
CYP CH,13/07/2018,W M MORRISONS.COM,86.72,"GROCERY STORES, SUPERMARKETS"
CYP CH,13/07/2018,MCDONALDS,2.97,FAST FOOD RESTAURANTS
CYP CH,13/07/2018,CO-OP GROUP 070316,37.29,"GROCERY STORES, SUPERMARKETS"
CYP CH,13/07/2018,CO-OP GROUP 070316,13.99,"GROCERY STORES, SUPERMARKETS"
CYP CH,13/07/2018,MCDONALDS,2.42,"EATING PLACES, RESTAURANTS"
CYP CH,13/07/2018,WILKO RETAIL LIMIT,33.15,HOUSEHOLD APPLIANCE STORES
CYP CH,13/07/2018,CENTRAL ENG COOP,3.50,DEPARTMENT STORES
CYP CH,13/07/2018,MCDONALDS,6.81,"EATING PLACES, RESTAURANTS"
CYP CH,16/07/2018,ODEON,18.09,MOTION PICTURE THEATERS
CYP CH,16/07/2018,ODEON/BOOKIT,32.75,MOTION PICTURE THEATERS
CYP CH,16/07/2018,MCDONALDS,5.97,FAST FOOD RESTAURANTS
CYP CH,16/07/2018,ASDA SUPERSTORE,11.24,"GROCERY STORES, SUPERMARKETS"
CYP CH,16/07/2018,ASDA SUPERSTORE,4.55,"GROCERY STORES, SUPERMARKETS"
CYP CH,16/07/2018,DERBY GOLF CENTRE,11.00,"CLUBS-CNTRY,MBRSHIP(ATHLET,REC,SPRTS,PRIVATE GOLF"
CYP CH,16/07/2018,B&M RETAIL,5.98,DISCOUNT STORES
CYP CH,16/07/2018,SAINSBURYS SACAT 0751,17.07,"GROCERY STORES, SUPERMARKETS"
CYP CH,16/07/2018,ARGOS LTD,19.99,DISCOUNT STORES
CYP CH,16/07/2018,ONE STOP 1487,4.47,"GROCERY STORES, SUPERMARKETS"
CYP CH,16/07/2018,W M MORRISONS.COM,143.42,"GROCERY STORES, SUPERMARKETS"
CYP CH,16/07/2018,B&M RETAIL LTD,27.84,DISCOUNT STORES
CYP CH,16/07/2018,JD SPORTS INTERNET,120.00,SPORTING GOODS STORES
CYP CH,16/07/2018,WILKO RETAIL LIMIT,50.45,HOUSEHOLD APPLIANCE STORES
CYP CH,16/07/2018,MCDONALDS,3.18,FAST FOOD RESTAURANTS
CYP CH,16/07/2018,IKEA LIMITED,131.40,"EQUIP, FURNITURE, HOME FURNSHNGS STRS (EXCPT APPL)"
CYP CH,16/07/2018,IKEA LIMITED,361.60,"EQUIP, FURNITURE, HOME FURNSHNGS STRS (EXCPT APPL)"
CYP CH,16/07/2018,AMAZON SVCS EU-UK AMAZ,20.00,BOOK STORES
CYP CH,16/07/2018,OSMASTON PARK,41.98,DISCOUNT STORES
CYP CH,16/07/2018,SAINSBURYS 2059,19.05,"GROCERY STORES, SUPERMARKETS"
CYP CH,16/07/2018,ONE STOP 1487,2.35,"GROCERY STORES, SUPERMARKETS"
CYP CH,16/07/2018,MCDONALDS,3.09,FAST FOOD RESTAURANTS
CYP CH,16/07/2018,THE RANGE,87.44,DEPARTMENT STORES
CYP CH,16/07/2018,THE RANGE,379.98,DEPARTMENT STORES
CYP CH,16/07/2018,THE RANGE,349.99,DEPARTMENT STORES
CYP CH,16/07/2018,THE RANGE,289.99,DEPARTMENT STORES
CYP CH,16/07/2018,AMAZON UK MARKETPLACE,16.95,BOOK STORES
CYP CH,16/07/2018,ASDA GROCERIES ONLINE,197.30,"GROCERY STORES, SUPERMARKETS"
CYP CH,16/07/2018,ASDA GROCERIES ONLINE,.47,"GROCERY STORES, SUPERMARKETS"
CYP CH,16/07/2018,BOOTS 6566,38.25,"DRUG STORES, PHARMACIES"
CYP CH,16/07/2018,ASDA GROCERIES ONLINE,-2.96,"GROCERY STORES, SUPERMARKETS"
CYP CH,16/07/2018,ASDA SUPERSTORE,23.64,"GROCERY STORES, SUPERMARKETS"
CYP CH,16/07/2018,3C_ FULL STREET CAR PA,4.00,AUTOMOBILE PARKING LOTS AND GARAGES
CYP CH,15/07/2018,B&M RETAIL LTD,-8.00,DISCOUNT STORES
CYP CH,17/07/2018,APL /ALBATROS,4.70,LIMOUSINES AND TAXICABS
CYP CH,17/07/2018,WILLOWS SPORT CENTRE,4.50,RECREATIONAL AND SPORTING CAMPS
CYP CH,17/07/2018,WILLOWS SPORT CENTRE,6.95,RECREATIONAL AND SPORTING CAMPS
CYP CH,17/07/2018,MUSIC MAGPIE,191.99,ELECTRONIC SALES
CYP CH,17/07/2018,CENTRAL ENG COOP,34.65,DEPARTMENT STORES
CYP CH,17/07/2018,WILLOWS SPORT CENTRE,33.00,RECREATIONAL AND SPORTING CAMPS
CYP CH,17/07/2018,APL /ALBATROS,4.60,LIMOUSINES AND TAXICABS
CYP CH,17/07/2018,MCDONALDS,4.48,FAST FOOD RESTAURANTS
CYP CH,17/07/2018,MFA BOWL,7.00,"CLUBS-CNTRY,MBRSHIP(ATHLET,REC,SPRTS,PRIVATE GOLF"
CYP CH,17/07/2018,CENTRAL ENG COOP,3.03,DEPARTMENT STORES
CYP CH,17/07/2018,TESCO STORE 2404,10.03,"GROCERY STORES, SUPERMARKETS"
CYP CH,17/07/2018,INTU PARKING DERBY,3.10,AUTOMOBILE PARKING LOTS AND GARAGES
CYP CH,17/07/2018,SUBWAY,3.00,"EATING PLACES, RESTAURANTS"
CYP CH,17/07/2018,MCDONALDS,3.07,FAST FOOD RESTAURANTS
CYP CH,17/07/2018,J D SPORTS 267,110.00,SPORTING GOODS STORES
CYP CH,17/07/2018,BOOTS 6558,42.39,"DRUG STORES, PHARMACIES"
CYP CH,19/07/2018,APPLE ONLINE STORE GBP,10.00,ELECTRONIC SALES
CYP CH,18/07/2018,HARVESTER PRIDE PA,37.37,"EATING PLACES, RESTAURANTS"
CYP CH,18/07/2018,ASDA SUPERSTORE,94.00,"GROCERY STORES, SUPERMARKETS"
CYP CH,18/07/2018,ASDA SUPERSTORE,75.64,"GROCERY STORES, SUPERMARKETS"
CYP CH,18/07/2018,AMAZON SVCS EU-UK AMAZ,8.48,BOOK STORES
CYP CH,18/07/2018,CENTRAL ENG COOP,5.00,DEPARTMENT STORES
CYP CH,18/07/2018,SAINSBURYS 2059,64.05,"GROCERY STORES, SUPERMARKETS"
CYP CH,18/07/2018,INTU PARKING DERBY,3.00,AUTOMOBILE PARKING LOTS AND GARAGES
CYP CH,18/07/2018,RED BOX,35.00,FAMILY CLOTHING STORES
CYP CH,18/07/2018,PHONE GADGETS 4U,15.00,TELECOMMUNICATION EQUIPMENT INCL TELEPHONE SALES
CYP CH,18/07/2018,IZ  LETAP TRADING,90.00,MISCELLANEOUS AND SPECIALTY RETAIL STORES
CYP CH,18/07/2018,MCDONALDS,3.27,FAST FOOD RESTAURANTS
CYP CH,18/07/2018,WWW.FOOTLOCKER.EU,94.99,SHOE STORES
CYP CH,18/07/2018,THE BOOK PEOPLE,27.25,BOOK STORES
CYP CH,18/07/2018,JUST EAT,21.00,FAST FOOD RESTAURANTS
CYP CH,18/07/2018,JD SPORTS INTERNET,115.00,SPORTING GOODS STORES
CYP CH,18/07/2018,WWW.ARGOS.CO.UK,176.94,DISCOUNT STORES
CYP CH,18/07/2018,MCDONALDS,2.79,FAST FOOD RESTAURANTS
CYP CH,18/07/2018,ASDA SUPERSTORE,34.14,"GROCERY STORES, SUPERMARKETS"
CYP CH,18/07/2018,MCDONALDS,21.28,FAST FOOD RESTAURANTS
CYP CH,18/07/2018,BOOTS 6558,8.00,"DRUG STORES, PHARMACIES"
CYP CH,19/07/2018,GIFFGAFF,10.00,TELECOM INCL PREPAID/RECURRING PHONE SVCS
CYP CH,19/07/2018,KFC,6.19,FAST FOOD RESTAURANTS
CYP CH,19/07/2018,WWW.TENPIN.CO.UK,20.00,"CLUBS-CNTRY,MBRSHIP(ATHLET,REC,SPRTS,PRIVATE GOLF"
CYP CH,19/07/2018,ASDA SUPERSTORE,14.00,"GROCERY STORES, SUPERMARKETS"
CYP CH,19/07/2018,ASDA SUPERSTORE,12.00,"GROCERY STORES, SUPERMARKETS"
CYP CH,19/07/2018,COSMO,33.08,"EATING PLACES, RESTAURANTS"
CYP CH,19/07/2018,JD SPORTS INTERNET,115.00,SPORTING GOODS STORES
CYP CH,19/07/2018,MCDONALDS,3.25,"EATING PLACES, RESTAURANTS"
CYP CH,19/07/2018,TESCO STORE 2404,13.00,"GROCERY STORES, SUPERMARKETS"
CYP CH,19/07/2018,TESCO STORE 2404,20.10,"GROCERY STORES, SUPERMARKETS"
CYP CH,19/07/2018,ASDA SUPERSTORE,4.58,"GROCERY STORES, SUPERMARKETS"
CYP CH,19/07/2018,POST OFFICE COUNTER,23.04,POSTAL SERVICES-GOVERNMENT ONLY
CYP CH,19/07/2018,AMAZON UK MARKETPLACE,15.99,BOOK STORES
CYP CH,19/07/2018,KFC,2.99,FAST FOOD RESTAURANTS
CYP CH,19/07/2018,MCDONALDS,9.70,"EATING PLACES, RESTAURANTS"
CYP CH,19/07/2018,AMAZON UK MARKETPLACE,10.48,BOOK STORES
CYP CH,19/07/2018,WWW.CITIZENCARD.COM,15.00,GOVERNMENT SERVICES-NOT ELSEWHERE CLASSIFIED
CYP CH,19/07/2018,WWW.NISBETS.COM,145.15,DIRECT MARKETING-CATALOG MERCHANTS
CYP CH,19/07/2018,WWW.CITIZENCARD.COM,15.00,GOVERNMENT SERVICES-NOT ELSEWHERE CLASSIFIED
CYP CH,19/07/2018,CENTRAL ENG COOP,10.00,DEPARTMENT STORES
CYP CH,19/07/2018,ASDA GROCERIES ONLINE,5.00,"GROCERY STORES, SUPERMARKETS"
CYP CH,19/07/2018,TESCO STORE 2404,20.00,"GROCERY STORES, SUPERMARKETS"
CYP CH,19/07/2018,ASDA SUPERSTORE,.98,"GROCERY STORES, SUPERMARKETS"
CYP CH,19/07/2018,ASDA SUPERSTORE,13.00,"GROCERY STORES, SUPERMARKETS"
CYP CH,19/07/2018,ASDA SUPERSTORE,17.00,"GROCERY STORES, SUPERMARKETS"
CYP CH,18/07/2018,THE RIVERSIDE FISH BAR,9.00,FAST FOOD RESTAURANTS
CYP CH,22/07/2018,CO-OP GROUP 171691,3.00,"GROCERY STORES, SUPERMARKETS"
CYP CH,22/07/2018,ONE STOP 1524,11.85,"GROCERY STORES, SUPERMARKETS"
CYP CH,22/07/2018,MCDONALDS,3.71,FAST FOOD RESTAURANTS
CYP CH,22/07/2018,HERON FOODS LTD,8.50,"MISC FOOD STORE-CONVENIENCE,MRKT,SPLTY,VENDNG MACS"
CYP CH,22/07/2018,ASDA SUPERSTORE,3.00,"GROCERY STORES, SUPERMARKETS"
CYP CH,22/07/2018,CENTRAL ENG COOP,5.28,DEPARTMENT STORES
CYP CH,22/07/2018,SAINSBURYS SACAT 2059,7.90,"GROCERY STORES, SUPERMARKETS"
CYP CH,22/07/2018,DERBY SAINSBURYS,10.00,"HAT CLEANING SHOPS, SHOE REPAIR SHOPS, SHOE SHINE"
CYP CH,22/07/2018,ASDA SUPERSTORE,28.64,"GROCERY STORES, SUPERMARKETS"
CYP CH,22/07/2018,ASDA SUPERSTORE,16.50,"GROCERY STORES, SUPERMARKETS"
CYP CH,21/07/2018,MCDONALDS,2.48,FAST FOOD RESTAURANTS
CYP CH,21/07/2018,MCDONALDS,4.89,"EATING PLACES, RESTAURANTS"
CYP CH,21/07/2018,MCDONALDS,5.03,"EATING PLACES, RESTAURANTS"
CYP CH,21/07/2018,INTU PARKING DERBY,1.50,AUTOMOBILE PARKING LOTS AND GARAGES
CYP CH,21/07/2018,PHONE GADGETS 4U,9.99,TELECOMMUNICATION EQUIPMENT INCL TELEPHONE SALES
CYP CH,21/07/2018,SUBWAY,19.70,"EATING PLACES, RESTAURANTS"
CYP CH,21/07/2018,SUBWAY MACKWORTH,3.20,"EATING PLACES, RESTAURANTS"
CYP CH,21/07/2018,MCDONALDS,5.96,FAST FOOD RESTAURANTS
CYP CH,20/07/2018,MCDONALDS,6.54,FAST FOOD RESTAURANTS
CYP CH,20/07/2018,MCDONALDS,2.10,FAST FOOD RESTAURANTS
CYP CH,20/07/2018,ASDA SUPERSTORE,12.00,"GROCERY STORES, SUPERMARKETS"
CYP CH,20/07/2018,DOMINOS PIZZA 28059,1.25,FAST FOOD RESTAURANTS
CYP CH,20/07/2018,MCDONALDS,9.56,FAST FOOD RESTAURANTS
CYP CH,20/07/2018,DOMINOS PIZZA 28059,10.62,FAST FOOD RESTAURANTS
CYP CH,20/07/2018,PAPA JOHNS,11.99,FAST FOOD RESTAURANTS
CYP CH,20/07/2018,WWW.TENPIN.CO.UK,15.90,"CLUBS-CNTRY,MBRSHIP(ATHLET,REC,SPRTS,PRIVATE GOLF"
CYP CH,20/07/2018,SAINSBURYS 2733,20.00,"GROCERY STORES, SUPERMARKETS"
CYP CH,20/07/2018,IZ  LETAP TRADING LIMI,200.00,MISCELLANEOUS AND SPECIALTY RETAIL STORES
CYP CH,20/07/2018,MCDONALDS,5.93,FAST FOOD RESTAURANTS
CYP CH,20/07/2018,ASDA SUPERSTORE,147.97,"GROCERY STORES, SUPERMARKETS"
CYP CH,20/07/2018,THE RANGE,26.26,DEPARTMENT STORES
CYP CH,20/07/2018,ALDI 43 772,66.19,"GROCERY STORES, SUPERMARKETS"
CYP CH,20/07/2018,ALDI 102 772,1.96,"GROCERY STORES, SUPERMARKETS"
CYP CH,20/07/2018,ASDA SUPERSTORE,14.50,"GROCERY STORES, SUPERMARKETS"
CYP CH,20/07/2018,ASDA SUPERSTORE,14.00,"GROCERY STORES, SUPERMARKETS"
CYP CH,20/07/2018,AMAZON UK MARKETPLACE,7.48,BOOK STORES
CYP CH,20/07/2018,ASDA SUPERSTORE,13.31,"GROCERY STORES, SUPERMARKETS"
CYP CH,23/07/2018,GIFFGAFF,5.00,TELECOM INCL PREPAID/RECURRING PHONE SVCS
CYP CH,23/07/2018,MCDONALDS,6.00,"EATING PLACES, RESTAURANTS"
CYP CH,23/07/2018,MCDONALDS,4.13,FAST FOOD RESTAURANTS
CYP CH,23/07/2018,ASDA SUPERSTORE,24.25,"GROCERY STORES, SUPERMARKETS"
CYP CH,23/07/2018,INTU PARKING DERBY,3.10,AUTOMOBILE PARKING LOTS AND GARAGES
CYP CH,23/07/2018,GAME RETAIL,56.03,"GAME, TOY, AND HOBBY SHOPS"
CYP CH,23/07/2018,W M MORRISONS.COM,163.98,"GROCERY STORES, SUPERMARKETS"
CYP CH,23/07/2018,CATERPAC DISPOSABLES L,234.81,"COMMERCIAL EQUIPMENT, NOT ELSEWHERE CLASSIFIED"
CYP CH,23/07/2018,INTU PARKING DERBY,3.10,AUTOMOBILE PARKING LOTS AND GARAGES
CYP CH,23/07/2018,PP MACKWORTHHA,2.75,HARDWARE STORES
CYP CH,23/07/2018,CENTRAL ENG COOP,4.30,DEPARTMENT STORES
CYP CH,23/07/2018,ASDA GROCERIES ONLINE,45.96,"GROCERY STORES, SUPERMARKETS"
CYP CH,23/07/2018,WWW.TENPIN.CO.UK,25.05,"CLUBS-CNTRY,MBRSHIP(ATHLET,REC,SPRTS,PRIVATE GOLF"
CYP CH,23/07/2018,ASDA SUPERSTORE,20.50,"GROCERY STORES, SUPERMARKETS"
CYP CH,23/07/2018,3C_ FULL STREET CAR PA,4.00,AUTOMOBILE PARKING LOTS AND GARAGES
CYP CH,25/07/2018,APPLE ONLINE STORE GBP,-10.00,ELECTRONIC SALES
CYP CH,24/07/2018,KEDLESTON FISH,3.25,"EATING PLACES, RESTAURANTS"
CYP CH,24/07/2018,CENTRAL ENG COOP,3.00,DEPARTMENT STORES
CYP CH,24/07/2018,MCDONALDS,1.98,FAST FOOD RESTAURANTS
CYP CH,24/07/2018,KFC,2.48,FAST FOOD RESTAURANTS
CYP CH,24/07/2018,WWW.TENPIN.CO.UK,5.60,"CLUBS-CNTRY,MBRSHIP(ATHLET,REC,SPRTS,PRIVATE GOLF"
CYP CH,24/07/2018,MCDONALDS,3.59,FAST FOOD RESTAURANTS
CYP CH,24/07/2018,THE RANGE,74.95,DEPARTMENT STORES
CYP CH,24/07/2018,TESCO STORE 2404,3.00,"GROCERY STORES, SUPERMARKETS"
CYP CH,24/07/2018,HACKWOOD FARM LTD,8.55,"MISC FOOD STORE-CONVENIENCE,MRKT,SPLTY,VENDNG MACS"
CYP CH,24/07/2018,ASDA SUPERSTORE,32.68,"GROCERY STORES, SUPERMARKETS"
CYP CH,24/07/2018,ARGOS LTD,159.99,DISCOUNT STORES
CYP CH,24/07/2018,ENCORE TICKETS,44.90,"THEATRICAL PRODUCERS(EXCL MOTION PIX),TICKET AGNCY"
CYP CH,25/07/2018,SUBWAY-LEXO YELLOW LTD,4.00,"EATING PLACES, RESTAURANTS"
CYP CH,25/07/2018,ODEON,12.50,MOTION PICTURE THEATERS
CYP CH,25/07/2018,ODEON UPT,22.00,MOTION PICTURE THEATERS
CYP CH,25/07/2018,WM MORRISON 039,3.00,"GROCERY STORES, SUPERMARKETS"
CYP CH,25/07/2018,ASDA SUPERSTORE,16.00,"GROCERY STORES, SUPERMARKETS"
CYP CH,25/07/2018,ASDA SUPERSTORE,3.89,"GROCERY STORES, SUPERMARKETS"
CYP CH,25/07/2018,MCDONALDS,2.22,FAST FOOD RESTAURANTS
CYP CH,25/07/2018,PARENTPAY MOTO R,12.95,"COLLEGES, UNIV, PRO SCHOOLS, JUNIOR COLLEGES"
CYP CH,25/07/2018,ALLENTON APPLIANCES LI,135.00,ELECTRICAL AND SMALL APPLIANCE REPAIR SHOPS
CYP CH,25/07/2018,OCEAN FRESH AT STEVES,5.40,FAST FOOD RESTAURANTS
CYP CH,25/07/2018,BIRDS MICKLEOVER,7.80,BAKERIES
CYP CH,25/07/2018,INTU PARKING DERBY,3.10,AUTOMOBILE PARKING LOTS AND GARAGES
CYP CH,25/07/2018,WATERSTONES.COM,28.95,BOOK STORES
CYP CH,25/07/2018,HOLLYWOOD BOWL,6.18,"CLUBS-CNTRY,MBRSHIP(ATHLET,REC,SPRTS,PRIVATE GOLF"
CYP CH,25/07/2018,MCDONALDS,2.88,FAST FOOD RESTAURANTS
CYP CH,25/07/2018,HOLLYWOOD BOWL,3.09,"CLUBS-CNTRY,MBRSHIP(ATHLET,REC,SPRTS,PRIVATE GOLF"
CYP CH,25/07/2018,MCDONALDS,5.60,FAST FOOD RESTAURANTS
CYP CH,25/07/2018,CENTRAL ENG COOP,.33,DEPARTMENT STORES
CYP CH,25/07/2018,ASDA SUPERSTORE,29.66,"GROCERY STORES, SUPERMARKETS"
CYP CH,26/07/2018,UPPER CRUST,8.07,FAST FOOD RESTAURANTS
CYP CH,26/07/2018,PRIME BURGER EUSTON,3.90,FAST FOOD RESTAURANTS
CYP CH,26/07/2018,TGI FRIDAY'S,40.27,"EATING PLACES, RESTAURANTS"
CYP CH,26/07/2018,POST OFFICE COUNTER,6.50,POSTAL SERVICES-GOVERNMENT ONLY
CYP CH,26/07/2018,MCDONALDS,8.35,FAST FOOD RESTAURANTS
CYP CH,26/07/2018,THE SHARD,5.00,"EATING PLACES, RESTAURANTS"
CYP CH,26/07/2018,CO-OP GROUP 070316,13.77,"GROCERY STORES, SUPERMARKETS"
CYP CH,26/07/2018,EUSTON TIC,19.00,"TRANSPRTN-SUBRBN & LOCAL COMTR PSNGR, INCL FERRIES"
CYP CH,26/07/2018,ASDA SUPERSTORE,23.88,"GROCERY STORES, SUPERMARKETS"
CYP CH,26/07/2018,ASDA SUPERSTORE,26.26,"GROCERY STORES, SUPERMARKETS"
CYP CH,26/07/2018,VIATOR,30.75,TRAVEL AGENCIES AND TOUR OPERATORS
CYP CH,25/07/2018,PRIORY FISH BAR,12.70,FAST FOOD RESTAURANTS
CYP CH,25/07/2018,BUTLINS HOLIDAYS,195.30,"LODGING-HOTELS,MOTELS,RESORTS-NOT CLASSIFIED"
CYP CH,25/07/2018,3C_ FULL STREET CAR PA,3.50,AUTOMOBILE PARKING LOTS AND GARAGES
CYP CH,29/07/2018,SAINSBURYS LOC4756,50.00,"GROCERY STORES, SUPERMARKETS"
CYP CH,29/07/2018,SHOWCASE DERBY,29.25,MOTION PICTURE THEATERS
CYP CH,29/07/2018,ONE STOP 1487,6.90,"GROCERY STORES, SUPERMARKETS"
CYP CH,29/07/2018,MCDONALDS,9.69,FAST FOOD RESTAURANTS
CYP CH,29/07/2018,ASDA SUPERSTORE,12.00,"GROCERY STORES, SUPERMARKETS"
CYP CH,29/07/2018,ASDA SUPERSTORE,3.35,"GROCERY STORES, SUPERMARKETS"
CYP CH,28/07/2018,CENTRAL ENG COOP,5.50,DEPARTMENT STORES
CYP CH,28/07/2018,CENTRAL ENG COOP,1.05,DEPARTMENT STORES
CYP CH,28/07/2018,ASDA SUPERSTORE,20.00,"GROCERY STORES, SUPERMARKETS"
CYP CH,28/07/2018,JAXX Q CLUB,13.35,POOL AND BILLIARD ESTABLISHMENTS
CYP CH,28/07/2018,CENTRAL ENG COOP,4.79,DEPARTMENT STORES
CYP CH,28/07/2018,WWW.ARGOS.CO.UK,36.99,DISCOUNT STORES
CYP CH,28/07/2018,CENTRAL ENG COOP,7.09,DEPARTMENT STORES
CYP CH,28/07/2018,SAINSBURYS 0871,74.64,"GROCERY STORES, SUPERMARKETS"
CYP CH,28/07/2018,SAINSBURYS 0871,4.00,"GROCERY STORES, SUPERMARKETS"
CYP CH,28/07/2018,MCDONALDS,5.19,FAST FOOD RESTAURANTS
CYP CH,28/07/2018,FAST LANE,75.00,"CLUBS-CNTRY,MBRSHIP(ATHLET,REC,SPRTS,PRIVATE GOLF"
CYP CH,28/07/2018,WWW.ARGOS.CO.UK,103.94,DISCOUNT STORES
CYP CH,27/07/2018,ODEON,45.84,MOTION PICTURE THEATERS
CYP CH,27/07/2018,HARVEY HADDEN - COFFEE,3.85,GOVERNMENT SERVICES-NOT ELSEWHERE CLASSIFIED
CYP CH,27/07/2018,BURGER KING DERBY DT,19.67,FAST FOOD RESTAURANTS
CYP CH,27/07/2018,SAINSBURYS 2059,3.50,"GROCERY STORES, SUPERMARKETS"
CYP CH,27/07/2018,SAINSBURYS SACAT 2059,3.50,"GROCERY STORES, SUPERMARKETS"
CYP CH,27/07/2018,OSMASTON PARK,10.00,DISCOUNT STORES
CYP CH,27/07/2018,PREMIER,3.59,"GROCERY STORES, SUPERMARKETS"
CYP CH,27/07/2018,ONE STOP 1487,20.00,"GROCERY STORES, SUPERMARKETS"
CYP CH,27/07/2018,MCDONALDS,2.58,"EATING PLACES, RESTAURANTS"
CYP CH,27/07/2018,ASDA SUPERSTORE,5.67,"GROCERY STORES, SUPERMARKETS"
CYP CH,27/07/2018,SAINSBURYS 2059,-3.50,"GROCERY STORES, SUPERMARKETS"
CYP CH,26/07/2018,CHERRY TREE FARM,24.57,"BAR,LOUNGE,DISCO,NIGHTCLUB,TAVERN-ALCOHOLIC DRINKS"
CYP CH,26/07/2018,CHERRY TREE FARM,6.90,"BAR,LOUNGE,DISCO,NIGHTCLUB,TAVERN-ALCOHOLIC DRINKS"
CYP CH,30/07/2018,W M MORRISONS.COM,183.96,"GROCERY STORES, SUPERMARKETS"
CYP CH,30/07/2018,KEDLESTON FISH,2.00,"EATING PLACES, RESTAURANTS"
CYP CH,30/07/2018,JD SPORTS INTERNET,125.00,SPORTING GOODS STORES
CYP CH,30/07/2018,MCDONALDS,4.13,FAST FOOD RESTAURANTS
CYP CH,30/07/2018,ASDA SUPERSTORE,5.00,"GROCERY STORES, SUPERMARKETS"
CYP CH,30/07/2018,DERBY QUAD LTD,5.95,MOTION PICTURE THEATERS
CYP CH,30/07/2018,DUNELM LTD,58.50,"DRAPERY, UPOLSTERY, AND WINDOW COVERINGS STORES"
CYP CH,30/07/2018,DERBY QUAD ENTERPRISES,25.75,"BAR,LOUNGE,DISCO,NIGHTCLUB,TAVERN-ALCOHOLIC DRINKS"
CYP CH,30/07/2018,DERBY QUAD ENTERPRISES,6.30,"BAR,LOUNGE,DISCO,NIGHTCLUB,TAVERN-ALCOHOLIC DRINKS"
CYP CH,30/07/2018,B&M RETAIL,2.98,DISCOUNT STORES
CYP CH,30/07/2018,ASDA GROCERIES ONLINE,63.11,"GROCERY STORES, SUPERMARKETS"
CYP CH,30/07/2018,ASDA GROCERIES ONLINE,103.12,"GROCERY STORES, SUPERMARKETS"
CYP CH,30/07/2018,SAINSBURYS LOC4741,1.00,"GROCERY STORES, SUPERMARKETS"
CYP CH,30/07/2018,ASDA SUPERSTORE,19.24,"GROCERY STORES, SUPERMARKETS"
CYP CH,31/07/2018,ODEON,25.50,MOTION PICTURE THEATERS
CYP CH,31/07/2018,ODEON,5.70,MOTION PICTURE THEATERS
CYP CH,31/07/2018,KLARNA   DBS ONLINE LT,55.00,FAMILY CLOTHING STORES
CYP CH,31/07/2018,TESCO STORES 2404,36.80,"GROCERY STORES, SUPERMARKETS"
CYP CH,31/07/2018,SAINSBURYS SACAT 2059,43.90,"GROCERY STORES, SUPERMARKETS"
CYP CH,31/07/2018,DUNELM LTD,28.99,"DRAPERY, UPOLSTERY, AND WINDOW COVERINGS STORES"
CYP CH,31/07/2018,SUBWAY,9.00,"EATING PLACES, RESTAURANTS"
CYP CH,31/07/2018,RIVER ISLAND 174,12.00,MEN'S AND WOMEN'S CLOTHING STORES
CYP CH,31/07/2018,INTU PARKING DERBY,3.10,AUTOMOBILE PARKING LOTS AND GARAGES
CYP CH,31/07/2018,H&M,26.03,MEN'S AND WOMEN'S CLOTHING STORES
CYP CH,31/07/2018,KFC,17.99,FAST FOOD RESTAURANTS
CYP CH,31/07/2018,TOP SHOP,55.05,MEN'S AND WOMEN'S CLOTHING STORES
CYP CH,31/07/2018,TOP SHOP,14.00,MEN'S AND WOMEN'S CLOTHING STORES
CYP CH,31/07/2018,NEW LOOK,35.59,WOMEN'S READY TO WEAR STORES
CYP CH,31/07/2018,OFFICE HOLDINGS LTD DE,59.00,SHOE STORES
CYP CH,31/07/2018,NEW LOOK 1815,25.98,WOMEN'S READY TO WEAR STORES
CYP CH,31/07/2018,NEW LOOK 1815,7.99,WOMEN'S READY TO WEAR STORES
CYP CH,31/07/2018,KRISPY KREME DERBY,2.20,"CANDY, NUT, CONFECTIONERY STORES"
CYP CH,31/07/2018,ASDA SUPERSTORE,23.40,"GROCERY STORES, SUPERMARKETS"
CYP CH,01/08/2018,SHELTON LOCK FISH BAR,9.60,"EATING PLACES, RESTAURANTS"
CYP CH,01/08/2018,PREMIER,1.89,"GROCERY STORES, SUPERMARKETS"
CYP CH,01/08/2018,ONE STOP 1487,2.00,"GROCERY STORES, SUPERMARKETS"
CYP CH,31/07/2018,B&M RETAIL LTD,2.99,DISCOUNT STORES
CYP CH,31/07/2018,B&M RETAIL LTD,2.00,DISCOUNT STORES
CYP CH,31/07/2018,B&M RETAIL LTD,12.22,DISCOUNT STORES
CYP CH,31/07/2018,MCDONALDS,15.69,"EATING PLACES, RESTAURANTS"
CYP CH,31/07/2018,WWW.TENPIN.CO.UK,20.84,"CLUBS-CNTRY,MBRSHIP(ATHLET,REC,SPRTS,PRIVATE GOLF"
CYP CH,31/07/2018,B&M RETAIL LTD,50.96,DISCOUNT STORES
CYP CH,31/07/2018,MCDONALDS,5.76,"EATING PLACES, RESTAURANTS"
CYP CH,31/07/2018,J D SPORTS 267,50.05,SPORTING GOODS STORES
CYP CH,31/07/2018,CENTRAL ENG COOP,11.37,DEPARTMENT STORES
CYP CH,31/07/2018,STARBUCKS,8.50,"EATING PLACES, RESTAURANTS"
CYP CH,31/07/2018,ARGOS LTD,60.96,DISCOUNT STORES
CYP CH,02/08/2018,MCDONALDS,3.58,"EATING PLACES, RESTAURANTS"
CYP CH,02/08/2018,ARGOS LTD,249.99,DISCOUNT STORES
CYP CH,02/08/2018,ASDA SUPERSTORE,7.00,"GROCERY STORES, SUPERMARKETS"
CYP CH,02/08/2018,APL /ALBATROS,4.30,LIMOUSINES AND TAXICABS
CYP CH,02/08/2018,JD SPORTS INTERNET,58.99,SPORTING GOODS STORES
CYP CH,02/08/2018,MCDONALDS,3.81,"EATING PLACES, RESTAURANTS"
CYP CH,02/08/2018,MCDONALDS,3.27,FAST FOOD RESTAURANTS
CYP CH,02/08/2018,KFC,2.99,FAST FOOD RESTAURANTS
CYP CH,02/08/2018,ASDA SUPERSTORE,4.09,"GROCERY STORES, SUPERMARKETS"
CYP CH,02/08/2018,ARGOS LTD,9.99,DISCOUNT STORES
CYP CH,02/08/2018,ASDA GROCERIES ONLINE,184.64,"GROCERY STORES, SUPERMARKETS"
CYP CH,02/08/2018,ASDA GROCERIES ONLINE,-.90,"GROCERY STORES, SUPERMARKETS"
CYP CH,02/08/2018,ASDA SUPERSTORE,12.00,"GROCERY STORES, SUPERMARKETS"
CYP CH,01/08/2018,MCDONALDS,1.99,FAST FOOD RESTAURANTS
CYP CH,01/08/2018,MCDONALDS,1.29,"EATING PLACES, RESTAURANTS"
CYP CH,01/08/2018,MCDONALDS,7.49,"EATING PLACES, RESTAURANTS"
CYP CH,01/08/2018,CENTRAL ENG COOP,2.39,DEPARTMENT STORES
CYP CH,01/08/2018,KFC,2.48,FAST FOOD RESTAURANTS
CYP CH,01/08/2018,SHOWCASE DERBY,21.65,MOTION PICTURE THEATERS
CYP CH,01/08/2018,CAXTON STORES 15800,5.04,"GROCERY STORES, SUPERMARKETS"
CYP CH,01/08/2018,CENTRAL ENG COOP,10.00,DEPARTMENT STORES
CYP CH,01/08/2018,ANTLER,39.00,LEATHER GOODS AND LUGGAGE STORES
CYP CH,01/08/2018,TESCO STORE 2404,7.19,"GROCERY STORES, SUPERMARKETS"
CYP CH,01/08/2018,ASDA GROCERIES ONLINE,56.08,"GROCERY STORES, SUPERMARKETS"
CYP CH,31/07/2018,WWW.TOPSHOP.COM,39.95,MEN'S AND WOMEN'S CLOTHING STORES
CYP CH,05/08/2018,CENTRAL ENG COOP,10.00,DEPARTMENT STORES
CYP CH,05/08/2018,CENTRAL ENG COOP,3.75,DEPARTMENT STORES
CYP CH,05/08/2018,SAINSBURYS SACAT0871,15.00,"GROCERY STORES, SUPERMARKETS"
CYP CH,05/08/2018,SAINSBURYS SACAT0871,8.60,"GROCERY STORES, SUPERMARKETS"
CYP CH,05/08/2018,SAINSBURYS SACAT0871,7.65,"GROCERY STORES, SUPERMARKETS"
CYP CH,05/08/2018,SAINSBURYS SACAT0871,15.05,"GROCERY STORES, SUPERMARKETS"
CYP CH,05/08/2018,KFC DERBY METEOR CENTR,4.89,FAST FOOD RESTAURANTS
CYP CH,04/08/2018,GIFFGAFF,20.00,TELECOM INCL PREPAID/RECURRING PHONE SVCS
CYP CH,04/08/2018,MCDONALDS,15.48,FAST FOOD RESTAURANTS
CYP CH,04/08/2018,CENTRAL ENG COOP,3.50,DEPARTMENT STORES
CYP CH,04/08/2018,KEDLESTON FISH,7.40,"EATING PLACES, RESTAURANTS"
CYP CH,04/08/2018,KEDLESTON FISH,5.85,"EATING PLACES, RESTAURANTS"
CYP CH,04/08/2018,KFC,9.88,FAST FOOD RESTAURANTS
CYP CH,04/08/2018,KFC,6.29,FAST FOOD RESTAURANTS
CYP CH,04/08/2018,MCDONALDS,6.60,"EATING PLACES, RESTAURANTS"
CYP CH,04/08/2018,ONE STOP 1487,20.00,"GROCERY STORES, SUPERMARKETS"
CYP CH,04/08/2018,ONE STOP 1487,4.90,"GROCERY STORES, SUPERMARKETS"
CYP CH,04/08/2018,BEAUTY SPOT COSMETICS,9.77,BARBER AND BEAUTY SHOPS
CYP CH,04/08/2018,MCDONALDS,4.99,FAST FOOD RESTAURANTS
CYP CH,04/08/2018,ASDA SUPERSTORE,8.00,"GROCERY STORES, SUPERMARKETS"
CYP CH,03/08/2018,KFC,4.89,FAST FOOD RESTAURANTS
CYP CH,03/08/2018,MCDONALDS,4.61,"EATING PLACES, RESTAURANTS"
CYP CH,03/08/2018,KEDLESTON FISH,17.00,"EATING PLACES, RESTAURANTS"
CYP CH,03/08/2018,SHOWCASE DERBY,16.65,MOTION PICTURE THEATERS
CYP CH,03/08/2018,ONE STOP 1487,5.00,"GROCERY STORES, SUPERMARKETS"
CYP CH,03/08/2018,ALTON TOWERS,3.10,"AMUSEMENT PARKS,CARNIVALS,CIRCUS,FORTUNE TELLERS"
CYP CH,03/08/2018,ATP ADMISSIONS,19.00,"AMUSEMENT PARKS,CARNIVALS,CIRCUS,FORTUNE TELLERS"
CYP CH,03/08/2018,ASDA SUPERSTORE,39.38,"GROCERY STORES, SUPERMARKETS"
CYP CH,03/08/2018,APL /ALBATROS,6.80,LIMOUSINES AND TAXICABS
CYP CH,03/08/2018,APL /ALBATROS,15.60,LIMOUSINES AND TAXICABS
CYP CH,03/08/2018,SHARIF AND SONS SUPERM,9.74,"GROCERY STORES, SUPERMARKETS"
CYP CH,03/08/2018,MCDONALDS,4.69,FAST FOOD RESTAURANTS
CYP CH,03/08/2018,KFC,9.88,FAST FOOD RESTAURANTS
CYP CH,03/08/2018,ALDI 43 772,71.75,"GROCERY STORES, SUPERMARKETS"
CYP CH,03/08/2018,W M MORRISONS.COM,8.00,"GROCERY STORES, SUPERMARKETS"
CYP CH,03/08/2018,3C_ FULL STREET CAR PA,5.00,AUTOMOBILE PARKING LOTS AND GARAGES
CYP CH,06/08/2018,CENTRAL ENG COOP,2.04,DEPARTMENT STORES
CYP CH,06/08/2018,ASDA SUPERSTORE,8.33,"GROCERY STORES, SUPERMARKETS"
CYP CH,06/08/2018,SAINSBURYS SACAT 2059,7.00,"GROCERY STORES, SUPERMARKETS"
CYP CH,06/08/2018,SAINSBURYS SACAT 2059,14.50,"GROCERY STORES, SUPERMARKETS"
CYP CH,06/08/2018,INTU PARKING DERBY,3.10,AUTOMOBILE PARKING LOTS AND GARAGES
CYP CH,06/08/2018,SUPERDRUG STORES PLC,1.75,"DRUG STORES, PHARMACIES"
CYP CH,06/08/2018,SPORTSDIRECT 360,6.05,SPORTING GOODS STORES
CYP CH,06/08/2018,W M MORRISONS.COM,143.37,"GROCERY STORES, SUPERMARKETS"
CYP CH,06/08/2018,CENTRAL ENG COOP,1.14,DEPARTMENT STORES
CYP CH,06/08/2018,SPORTSDIRECT 360,46.00,SPORTING GOODS STORES
CYP CH,06/08/2018,RYMAN,7.98,"OFFICE, SCHOOL SUPPLY, AND STATIONERY STORES"
CYP CH,06/08/2018,HOMEBASE LTD 042,7.50,"BUILDING MATERIALS, LUMBER STORES"
CYP CH,06/08/2018,TIMPSON,10.80,"HAT CLEANING SHOPS, SHOE REPAIR SHOPS, SHOE SHINE"
CYP CH,06/08/2018,DELTON FOOD,46.50,"MISC FOOD STORE-CONVENIENCE,MRKT,SPLTY,VENDNG MACS"
CYP CH,06/08/2018,ASDA GROCERIES ONLINE,170.89,"GROCERY STORES, SUPERMARKETS"
CYP CH,06/08/2018,ASDA GROCERIES ONLINE,66.75,"GROCERY STORES, SUPERMARKETS"
CYP CH,06/08/2018,MCDONALDS,.89,FAST FOOD RESTAURANTS
CYP CH,06/08/2018,BOOTS 0023,8.96,"DRUG STORES, PHARMACIES"
CYP CH,07/08/2018,CENTRAL ENG COOP,5.39,DEPARTMENT STORES
CYP CH,07/08/2018,SAINSBURYS SACAT0871,2.60,"GROCERY STORES, SUPERMARKETS"
CYP CH,07/08/2018,MCDONALDS,15.06,"EATING PLACES, RESTAURANTS"
CYP CH,07/08/2018,MCDONALDS,11.95,FAST FOOD RESTAURANTS
CYP CH,07/08/2018,CENTRAL ENG COOP,5.97,DEPARTMENT STORES
CYP CH,07/08/2018,SHOWCASE DERBY,16.65,MOTION PICTURE THEATERS
CYP CH,07/08/2018,MARLBOROUGH ROAD GENER,4.09,"GROCERY STORES, SUPERMARKETS"
CYP CH,07/08/2018,SAINSBURYS SACAT 0751,11.99,"GROCERY STORES, SUPERMARKETS"
CYP CH,07/08/2018,ARGOS CHADDESDEN I,8.99,DISCOUNT STORES
CYP CH,07/08/2018,KARTING 2000 BLACKPOOL,32.00,RECREATION SERVICES (NOT ELSEWHERE CLASSIFIED)
CYP CH,07/08/2018,ROCK CITY SUPERSTORE L,9.50,"GIFT, CARD, NOVELTY AND SOUVENIR SHOPS"
CYP CH,07/08/2018,BLACKPOOL TOWER,4.95,TOURIST ATTRACTIONS AND EXHIBITS
CYP CH,07/08/2018,MCDONALDS,5.01,FAST FOOD RESTAURANTS
CYP CH,07/08/2018,PIER ROCK LIMITED,12.99,"CANDY, NUT, CONFECTIONERY STORES"
CYP CH,07/08/2018,BLACKPOOL DUNGEON PHOT,26.00,TOURIST ATTRACTIONS AND EXHIBITS
CYP CH,07/08/2018,KARTING 2000 BLACKPOOL,16.00,RECREATION SERVICES (NOT ELSEWHERE CLASSIFIED)
CYP CH,07/08/2018,MCDONALDS,4.79,FAST FOOD RESTAURANTS
CYP CH,07/08/2018,SUBWAY,3.20,"EATING PLACES, RESTAURANTS"
CYP CH,07/08/2018,THE RANGE,2.00,DEPARTMENT STORES
CYP CH,07/08/2018,THE RANGE,75.51,DEPARTMENT STORES
CYP CH,07/08/2018,BLACKPOOL TOWER,30.00,TOURIST ATTRACTIONS AND EXHIBITS
CYP CH,07/08/2018,MCDONALDS,11.65,FAST FOOD RESTAURANTS
CYP CH,07/08/2018,KFC,2.99,FAST FOOD RESTAURANTS
CYP CH,07/08/2018,KARTING 2000 BLACKPOOL,8.00,RECREATION SERVICES (NOT ELSEWHERE CLASSIFIED)
CYP CH,07/08/2018,PLEASURE BEACH,78.00,"AMUSEMENT PARKS,CARNIVALS,CIRCUS,FORTUNE TELLERS"
CYP CH,07/08/2018,KARTING 2000 BLACKPOOL,16.00,RECREATION SERVICES (NOT ELSEWHERE CLASSIFIED)
CYP CH,07/08/2018,WWW.THE-SHARD.COM,44.45,"THEATRICAL PRODUCERS(EXCL MOTION PIX),TICKET AGNCY"
CYP CH,07/08/2018,ROADCHEF M SERV UPAY L,2.49,"EATING PLACES, RESTAURANTS"
CYP CH,07/08/2018,MCDONALDS,17.17,FAST FOOD RESTAURANTS
CYP CH,07/08/2018,ROADCHEF M SERV UPAY L,10.98,"EATING PLACES, RESTAURANTS"
CYP CH,07/08/2018,ALDI 102 772,40.79,"GROCERY STORES, SUPERMARKETS"
CYP CH,07/08/2018,ALDI 102 772,.99,"GROCERY STORES, SUPERMARKETS"
CYP CH,06/08/2018,PRIMARK 546,38.00,FAMILY CLOTHING STORES
CYP CH,08/08/2018,MCDONALDS,5.69,FAST FOOD RESTAURANTS
CYP CH,08/08/2018,ASDA SUPERSTORE,3.98,"GROCERY STORES, SUPERMARKETS"
CYP CH,08/08/2018,CENTRAL ENG COOP,18.29,DEPARTMENT STORES
CYP CH,08/08/2018,ASDA SUPERSTORE,4.00,"GROCERY STORES, SUPERMARKETS"
CYP CH,08/08/2018,ASDA SUPERSTORE,11.00,"GROCERY STORES, SUPERMARKETS"
CYP CH,08/08/2018,OFSTED MOTO,"1,322.00",GOVERNMENT SERVICES-NOT ELSEWHERE CLASSIFIED
CYP CH,08/08/2018,OCEAN FRESH AT STEVES,30.56,FAST FOOD RESTAURANTS
CYP CH,09/08/2018,MCDONALDS,5.03,"EATING PLACES, RESTAURANTS"
CYP CH,09/08/2018,KFC,6.29,FAST FOOD RESTAURANTS
CYP CH,09/08/2018,SHOWCASE DERBY,8.10,MOTION PICTURE THEATERS
CYP CH,09/08/2018,SHOWCASE DERBY,23.65,MOTION PICTURE THEATERS
CYP CH,09/08/2018,GIRAFFE CONCEPTS LTD,33.36,"EATING PLACES, RESTAURANTS"
CYP CH,09/08/2018,ASDA SUPERSTORE,8.00,"GROCERY STORES, SUPERMARKETS"
CYP CH,09/08/2018,ASDA SUPERSTORE,125.39,"GROCERY STORES, SUPERMARKETS"
CYP CH,09/08/2018,MCDONALDS,5.33,FAST FOOD RESTAURANTS
CYP CH,09/08/2018,MCDONALDS,4.91,FAST FOOD RESTAURANTS
CYP CH,09/08/2018,B&M RETAIL,3.98,DISCOUNT STORES
CYP CH,09/08/2018,B&M RETAIL,4.27,DISCOUNT STORES
CYP CH,09/08/2018,SUK RETAIL LTD,5.48,"OFFICE, SCHOOL SUPPLY, AND STATIONERY STORES"
CYP CH,09/08/2018,THE SHARD,6.00,"EATING PLACES, RESTAURANTS"
CYP CH,09/08/2018,DRAYTON MANOR PARK LIM,29.50,"AMUSEMENT PARKS,CARNIVALS,CIRCUS,FORTUNE TELLERS"
CYP CH,09/08/2018,THE SHARD,4.95,"BANDS, ORCHESTRAS, & MISC ENTRTNRS-NOT ELSWHR CLAS"
CYP CH,09/08/2018,ONE STOP 1487,17.42,"GROCERY STORES, SUPERMARKETS"
CYP CH,09/08/2018,EUSTON TIC,19.00,"TRANSPRTN-SUBRBN & LOCAL COMTR PSNGR, INCL FERRIES"
CYP CH,09/08/2018,SUBWAY,4.50,"EATING PLACES, RESTAURANTS"
CYP CH,09/08/2018,NEXT 0673 DERBY,24.00,FAMILY CLOTHING STORES
CYP CH,09/08/2018,SAINSBURYS 0871,25.00,"GROCERY STORES, SUPERMARKETS"
CYP CH,09/08/2018,JD SPORTS INTERNET,43.99,SPORTING GOODS STORES
CYP CH,09/08/2018,B & Q 1328,4.70,"BUILDING MATERIALS, LUMBER STORES"
CYP CH,09/08/2018,TESCO STORE 2404,18.44,"GROCERY STORES, SUPERMARKETS"
CYP CH,09/08/2018,GREGGS PLC,.55,"EATING PLACES, RESTAURANTS"
CYP CH,09/08/2018,ASDA SUPERSTORE,40.00,"GROCERY STORES, SUPERMARKETS"
CYP CH,08/08/2018,3C_ FULL STREET CAR PA,3.50,AUTOMOBILE PARKING LOTS AND GARAGES
CYP CH,07/08/2018,HARPURS COACHES,20.00,LIMOUSINES AND TAXICABS
CYP CH,12/08/2018,MCDONALDS,4.27,FAST FOOD RESTAURANTS
CYP CH,12/08/2018,MCDONALDS,5.07,FAST FOOD RESTAURANTS
CYP CH,12/08/2018,PAPA JOHNS,21.48,FAST FOOD RESTAURANTS
CYP CH,12/08/2018,OXYGEN FREEJUMPING,3.20,"CLUBS-CNTRY,MBRSHIP(ATHLET,REC,SPRTS,PRIVATE GOLF"
CYP CH,12/08/2018,OXYGEN FREEJUMPING,23.00,"CLUBS-CNTRY,MBRSHIP(ATHLET,REC,SPRTS,PRIVATE GOLF"
CYP CH,12/08/2018,WWW.TWYCROSSZOO.ORG,25.00,TOURIST ATTRACTIONS AND EXHIBITS
CYP CH,12/08/2018,ONE STOP 1487,25.34,"GROCERY STORES, SUPERMARKETS"
CYP CH,12/08/2018,ASDA SUPERSTORE,118.19,"GROCERY STORES, SUPERMARKETS"
CYP CH,12/08/2018,BUTLINS EVERYDAYS,7.07,"GROCERY STORES, SUPERMARKETS"
CYP CH,12/08/2018,APL /ALBATROS,11.10,LIMOUSINES AND TAXICABS
CYP CH,12/08/2018,ARGOS LTD,26.97,DISCOUNT STORES
CYP CH,12/08/2018,HALFORDS 0972,14.99,BICYCLE SHOPS-SALES AND SERVICE
CYP CH,12/08/2018,HALFORDS 0709,7.99,BICYCLE SHOPS-SALES AND SERVICE
CYP CH,12/08/2018,WILKO RETAIL LIMIT,1.50,HOUSEHOLD APPLIANCE STORES
CYP CH,12/08/2018,ASDA SUPERSTORE,-1.00,"GROCERY STORES, SUPERMARKETS"
CYP CH,11/08/2018,MCDONALDS,4.13,FAST FOOD RESTAURANTS
CYP CH,11/08/2018,MCDONALDS,1.43,FAST FOOD RESTAURANTS
CYP CH,11/08/2018,SHOWCASE CINEMAS UPT,13.00,MOTION PICTURE THEATERS
CYP CH,11/08/2018,SHOWCASE CINEMAS UPT,40.60,MOTION PICTURE THEATERS
CYP CH,11/08/2018,MCDONALDS,9.43,FAST FOOD RESTAURANTS
CYP CH,11/08/2018,CENTRAL ENG COOP,2.17,DEPARTMENT STORES
CYP CH,11/08/2018,CENTRAL ENG COOP,5.00,DEPARTMENT STORES
CYP CH,11/08/2018,PLEASURE BEACH,24.00,"AMUSEMENT PARKS,CARNIVALS,CIRCUS,FORTUNE TELLERS"
CYP CH,11/08/2018,THE RANGE,34.02,DEPARTMENT STORES
CYP CH,11/08/2018,THE RANGE,1.09,DEPARTMENT STORES
CYP CH,11/08/2018,SKEGNESS,12.30,"EATING PLACES, RESTAURANTS"
CYP CH,11/08/2018,SKEGNESS,19.00,"EATING PLACES, RESTAURANTS"
CYP CH,11/08/2018,WH SMITH,17.72,NEWS DEALERS AND NEWSSTANDS
CYP CH,11/08/2018,SUPERDRUG STORES PLC,26.46,"DRUG STORES, PHARMACIES"
CYP CH,11/08/2018,BUTLINS ZEN SPA LEISUR,44.00,HEALTH  AND BEAUTY SPAS
CYP CH,11/08/2018,ASDA GROCERIES ONLINE,147.96,"GROCERY STORES, SUPERMARKETS"
CYP CH,11/08/2018,ASDA GROCERIES ONLINE,-18.42,"GROCERY STORES, SUPERMARKETS"
CYP CH,10/08/2018,BUTLINS EVERYDAYS,5.45,"GROCERY STORES, SUPERMARKETS"
CYP CH,10/08/2018,CENTRAL ENG COOP,4.80,DEPARTMENT STORES
CYP CH,10/08/2018,OXYGEN FREEJUMPING,4.80,"CLUBS-CNTRY,MBRSHIP(ATHLET,REC,SPRTS,PRIVATE GOLF"
CYP CH,10/08/2018,OXYGEN FREEJUMPING,3.20,"CLUBS-CNTRY,MBRSHIP(ATHLET,REC,SPRTS,PRIVATE GOLF"
CYP CH,10/08/2018,OXYGEN FREEJUMPING,3.50,"CLUBS-CNTRY,MBRSHIP(ATHLET,REC,SPRTS,PRIVATE GOLF"
CYP CH,10/08/2018,OXYGEN FREEJUMPING,23.00,"CLUBS-CNTRY,MBRSHIP(ATHLET,REC,SPRTS,PRIVATE GOLF"
CYP CH,10/08/2018,CENTRAL ENG COOP,7.86,DEPARTMENT STORES
CYP CH,10/08/2018,B&M RETAIL,19.99,DISCOUNT STORES
CYP CH,10/08/2018,B&M RETAIL,13.47,DISCOUNT STORES
CYP CH,10/08/2018,B&M RETAIL,17.95,DISCOUNT STORES
CYP CH,10/08/2018,BUTLINS BURGER KING,14.34,FAST FOOD RESTAURANTS
CYP CH,10/08/2018,CENTRAL ENG COOP,2.58,DEPARTMENT STORES
CYP CH,10/08/2018,CENTRAL ENG COOP,7.48,DEPARTMENT STORES
CYP CH,10/08/2018,ASDA SUPERSTORE,37.00,"GROCERY STORES, SUPERMARKETS"
CYP CH,10/08/2018,ONE STOP 1487,2.00,"GROCERY STORES, SUPERMARKETS"
CYP CH,10/08/2018,ASDA SUPERSTORE,23.00,"GROCERY STORES, SUPERMARKETS"
CYP CH,10/08/2018,CENTRAL ENG COOP R,10.75,DEPARTMENT STORES
CYP CH,10/08/2018,BIRDS (DERBY),3.19,BAKERIES
CYP CH,10/08/2018,CENTRAL ENG COOP,10.00,DEPARTMENT STORES
CYP CH,10/08/2018,INTU PARKING DERBY,3.10,AUTOMOBILE PARKING LOTS AND GARAGES
CYP CH,10/08/2018,MAHAL NEWS,25.00,NEWS DEALERS AND NEWSSTANDS
CYP CH,10/08/2018,JD SPORTS INTERNET,33.99,SPORTING GOODS STORES
CYP CH,10/08/2018,ALDI 43 772,50.60,"GROCERY STORES, SUPERMARKETS"
CYP CH,10/08/2018,ASDA GROCERIES ONLINE,62.83,"GROCERY STORES, SUPERMARKETS"
CYP CH,10/08/2018,ASDA GROCERIES ONLINE,-2.50,"GROCERY STORES, SUPERMARKETS"
CYP CH,10/08/2018,ASDA GROCERIES ONLINE,-1.35,"GROCERY STORES, SUPERMARKETS"
CYP CH,10/08/2018,ASDA SUPERSTORE,66.95,"GROCERY STORES, SUPERMARKETS"
CYP CH,09/08/2018,SPORTSDIRECT.COM,54.97,SPORTING GOODS STORES
CYP CH,13/08/2018,ASDA SUPERSTORE,6.00,"GROCERY STORES, SUPERMARKETS"
CYP CH,13/08/2018,ASDA SUPERSTORE,5.30,"GROCERY STORES, SUPERMARKETS"
CYP CH,13/08/2018,ASDA SUPERSTORE,23.50,"GROCERY STORES, SUPERMARKETS"
CYP CH,13/08/2018,ASDA SUPERSTORE,4.68,"GROCERY STORES, SUPERMARKETS"
CYP CH,13/08/2018,MCDONALDS,10.18,FAST FOOD RESTAURANTS
CYP CH,13/08/2018,KEDLESTON FISH,6.25,"EATING PLACES, RESTAURANTS"
CYP CH,13/08/2018,KFC DERBY METEOR CENTR,8.46,FAST FOOD RESTAURANTS
CYP CH,13/08/2018,WM MORRISON 078,11.00,"GROCERY STORES, SUPERMARKETS"
CYP CH,13/08/2018,TRAINLINE,23.40,PASSENGER RAILWAYS
CYP CH,13/08/2018,MCDONALDS,7.70,FAST FOOD RESTAURANTS
CYP CH,13/08/2018,W M MORRISONS.COM,181.92,"GROCERY STORES, SUPERMARKETS"
CYP CH,13/08/2018,FOOTASYLUM PLC,6.94,SPORTING GOODS STORES
CYP CH,13/08/2018,MCDONALDS,5.43,FAST FOOD RESTAURANTS
CYP CH,13/08/2018,ASDA GROCERIES ONLINE,151.38,"GROCERY STORES, SUPERMARKETS"
CYP CH,13/08/2018,ASDA GROCERIES ONLINE,63.74,"GROCERY STORES, SUPERMARKETS"
CYP CH,13/08/2018,ASDA GROCERIES ONLINE,-1.50,"GROCERY STORES, SUPERMARKETS"
CYP CH,10/08/2018,LOOK AGAIN,35.99,DISCOUNT STORES
CYP CH,14/08/2018,ASDA SUPERSTORE,4.08,"GROCERY STORES, SUPERMARKETS"
CYP CH,14/08/2018,SHOWCASE DERBY,16.65,MOTION PICTURE THEATERS
CYP CH,14/08/2018,MARLBOROUGH ROAD GENER,3.15,"GROCERY STORES, SUPERMARKETS"
CYP CH,14/08/2018,ANDUFF CARWASH,11.00,CAR WASHES
CYP CH,14/08/2018,TWYCROSS ZOO,14.35,FAST FOOD RESTAURANTS
CYP CH,14/08/2018,TWYCROSS ZOO-EAST MIDL,34.90,TOURIST ATTRACTIONS AND EXHIBITS
CYP CH,14/08/2018,B&M RETAIL LTD,2.99,DISCOUNT STORES
CYP CH,14/08/2018,B&M RETAIL LTD,98.89,DISCOUNT STORES
CYP CH,14/08/2018,DUNELM LTD,34.00,"DRAPERY, UPOLSTERY, AND WINDOW COVERINGS STORES"
CYP CH,16/08/2018,,"-13,503.05",
CYP CH,15/08/2018,DUNELM LTD,27.60,"DRAPERY, UPOLSTERY, AND WINDOW COVERINGS STORES"
CYP CH,15/08/2018,EE STORE 4853,10.79,TELECOM INCL PREPAID/RECURRING PHONE SVCS
CYP CH,15/08/2018,CENTRAL ENG COOP,6.29,DEPARTMENT STORES
CYP CH,15/08/2018,CENTRAL ENG COOP,5.95,DEPARTMENT STORES
CYP CH,15/08/2018,TESCO STORE 2404,28.00,"GROCERY STORES, SUPERMARKETS"
CYP CH,15/08/2018,TESCO STORE 2404,20.00,"GROCERY STORES, SUPERMARKETS"
CYP CH,15/08/2018,B&M RETAIL LTD,15.98,DISCOUNT STORES
CYP CH,15/08/2018,ALLENTON APPLIANCES LI,60.00,ELECTRICAL AND SMALL APPLIANCE REPAIR SHOPS
CYP CH,15/08/2018,LIDL UK  DERBY,4.14,"GROCERY STORES, SUPERMARKETS"
CYP CH,15/08/2018,NANDOS BULLRING,25.95,"EATING PLACES, RESTAURANTS"
CYP CH,15/08/2018,NATIONAL SEALIFE CENTR,12.50,TOURIST ATTRACTIONS AND EXHIBITS
CYP CH,15/08/2018,MCDONALDS,4.79,FAST FOOD RESTAURANTS
CYP CH,15/08/2018,BAGUETTE DU MONDE,3.45,FAST FOOD RESTAURANTS
CYP CH,15/08/2018,ALTON TOWERS,110.00,TOURIST ATTRACTIONS AND EXHIBITS
CYP CH,16/08/2018,WWW.TENPIN.CO.UK,40.00,"CLUBS-CNTRY,MBRSHIP(ATHLET,REC,SPRTS,PRIVATE GOLF"
CYP CH,16/08/2018,NOTTINGHAM MAGPIE,22.47,FAST FOOD RESTAURANTS
CYP CH,16/08/2018,SHOWCASE DERBY,7.90,MOTION PICTURE THEATERS
CYP CH,16/08/2018,SHOWCASE DERBY,16.65,MOTION PICTURE THEATERS
CYP CH,16/08/2018,TEAMPORT,15.75,"AMUSEMENT PARKS,CARNIVALS,CIRCUS,FORTUNE TELLERS"
CYP CH,16/08/2018,KFC,6.95,FAST FOOD RESTAURANTS
CYP CH,16/08/2018,MCDONALDS,2.99,FAST FOOD RESTAURANTS
CYP CH,16/08/2018,TEAMPORT,122.00,"AMUSEMENT PARKS,CARNIVALS,CIRCUS,FORTUNE TELLERS"
CYP CH,16/08/2018,MFA BOWL,5.90,"CLUBS-CNTRY,MBRSHIP(ATHLET,REC,SPRTS,PRIVATE GOLF"
CYP CH,16/08/2018,MFA BOWL,14.00,"CLUBS-CNTRY,MBRSHIP(ATHLET,REC,SPRTS,PRIVATE GOLF"
CYP CH,16/08/2018,ASDA SUPERSTORE,29.08,"GROCERY STORES, SUPERMARKETS"
CYP CH,16/08/2018,MCDONALDS,10.83,FAST FOOD RESTAURANTS
CYP CH,16/08/2018,TESCO STORE 2404,4.70,"GROCERY STORES, SUPERMARKETS"
CYP CH,16/08/2018,ALBATROSS CARS DERBY L,8.50,LIMOUSINES AND TAXICABS
CYP CH,16/08/2018,APL /ALBATROS,11.20,LIMOUSINES AND TAXICABS
CYP CH,16/08/2018,MCDONALDS,5.38,"EATING PLACES, RESTAURANTS"
CYP CH,16/08/2018,MCDONALDS,3.07,FAST FOOD RESTAURANTS
CYP CH,16/08/2018,CENTRAL ENG COOP,4.00,DEPARTMENT STORES
CYP CH,16/08/2018,CENTRAL ENG COOP,4.35,DEPARTMENT STORES
CYP CH,16/08/2018,APL /ALBATROS,1.50,LIMOUSINES AND TAXICABS
CYP CH,16/08/2018,FOOD REPUBLIC,11.00,FAST FOOD RESTAURANTS
CYP CH,16/08/2018,EAST MIDLANDS TRAI,13.10,PASSENGER RAILWAYS
CYP CH,16/08/2018,TESCO STORE 2404,7.00,"GROCERY STORES, SUPERMARKETS"
CYP CH,16/08/2018,TESCO STORE 2404,-20.00,"GROCERY STORES, SUPERMARKETS"
CYP CH,15/08/2018,APL /ALBATROS,7.00,LIMOUSINES AND TAXICABS
CYP CH,15/08/2018,SPORTSDIRECT 188,2.10,SPORTING GOODS STORES
CYP CH,15/08/2018,SPORTSDIRECT 188,38.04,SPORTING GOODS STORES
CYP CH,15/08/2018,NATIONAL SEALIFE CENTR,20.00,TOURIST ATTRACTIONS AND EXHIBITS
CYP CH,15/08/2018,APL /ALBATROS,7.10,LIMOUSINES AND TAXICABS
CYP CH,19/08/2018,MCDONALDS,4.13,FAST FOOD RESTAURANTS
CYP CH,19/08/2018,CENTRAL ENG COOP R,2.00,DEPARTMENT STORES
CYP CH,19/08/2018,CENTRAL ENG COOP R,2.95,DEPARTMENT STORES
CYP CH,19/08/2018,MCDONALDS,9.08,FAST FOOD RESTAURANTS
CYP CH,19/08/2018,ONE STOP 1487,12.10,"GROCERY STORES, SUPERMARKETS"
CYP CH,19/08/2018,ASDA SUPERSTORE,4.00,"GROCERY STORES, SUPERMARKETS"
CYP CH,19/08/2018,MCDONALDS,5.43,FAST FOOD RESTAURANTS
CYP CH,19/08/2018,ASDA SUPERSTORE,25.95,"GROCERY STORES, SUPERMARKETS"
CYP CH,19/08/2018,ASDA GROCERIES ONLINE,5.00,"GROCERY STORES, SUPERMARKETS"
CYP CH,19/08/2018,ASDA SUPERSTORE,81.00,"GROCERY STORES, SUPERMARKETS"
CYP CH,18/08/2018,MCDONALDS,2.52,FAST FOOD RESTAURANTS
CYP CH,18/08/2018,SAINSBURYS SACAT 2059,20.00,"GROCERY STORES, SUPERMARKETS"
CYP CH,18/08/2018,ASDA SUPERSTORE,4.00,"GROCERY STORES, SUPERMARKETS"
CYP CH,18/08/2018,ASDA SUPERSTORE,6.00,"GROCERY STORES, SUPERMARKETS"
CYP CH,18/08/2018,MCDONALDS,9.90,FAST FOOD RESTAURANTS
CYP CH,18/08/2018,ASDA SUPERSTORE,6.00,"GROCERY STORES, SUPERMARKETS"
CYP CH,18/08/2018,TESCO STORES 2404,3.70,"GROCERY STORES, SUPERMARKETS"
CYP CH,18/08/2018,KEDLESTON FISH,5.40,"EATING PLACES, RESTAURANTS"
CYP CH,18/08/2018,GIFFGAFF,10.00,TELECOM INCL PREPAID/RECURRING PHONE SVCS
CYP CH,18/08/2018,HALFORDS 0972,38.98,BICYCLE SHOPS-SALES AND SERVICE
CYP CH,18/08/2018,BIRDS MICKLEOVER,1.40,BAKERIES
CYP CH,18/08/2018,GREGGS PLC,4.00,"EATING PLACES, RESTAURANTS"
CYP CH,18/08/2018,PRIMARK 546,28.50,FAMILY CLOTHING STORES
CYP CH,18/08/2018,GREGGS PLC,3.75,"EATING PLACES, RESTAURANTS"
CYP CH,17/08/2018,MCDONALDS,5.29,FAST FOOD RESTAURANTS
CYP CH,17/08/2018,CENTRAL ENG COOP R,20.00,DEPARTMENT STORES
CYP CH,17/08/2018,APL /ALBATROS,4.20,LIMOUSINES AND TAXICABS
CYP CH,17/08/2018,MCDONALDS,5.43,FAST FOOD RESTAURANTS
CYP CH,17/08/2018,ONE STOP 1487,20.00,"GROCERY STORES, SUPERMARKETS"
CYP CH,17/08/2018,ONE STOP 1487,4.00,"GROCERY STORES, SUPERMARKETS"
CYP CH,17/08/2018,ONE STOP 1487,16.98,"GROCERY STORES, SUPERMARKETS"
CYP CH,17/08/2018,KEDLESTON FISH,15.80,"EATING PLACES, RESTAURANTS"
CYP CH,17/08/2018,MCDONALDS,7.89,FAST FOOD RESTAURANTS
CYP CH,17/08/2018,ODEON,30.89,MOTION PICTURE THEATERS
CYP CH,17/08/2018,MCDONALDS,6.72,FAST FOOD RESTAURANTS
CYP CH,17/08/2018,WH SMITH,15.98,NEWS DEALERS AND NEWSSTANDS
CYP CH,17/08/2018,FIVE GUYS DERBY,18.00,FAST FOOD RESTAURANTS
CYP CH,17/08/2018,MIP VODAFONE TOPUP,20.00,TELECOM INCL PREPAID/RECURRING PHONE SVCS
CYP CH,17/08/2018,ONE STOP 1487,3.00,"GROCERY STORES, SUPERMARKETS"
CYP CH,17/08/2018,COSTA COFFEE 43033530,3.35,FAST FOOD RESTAURANTS
CYP CH,17/08/2018,MCDONALDS,8.07,FAST FOOD RESTAURANTS
CYP CH,17/08/2018,TIMPSON LTD,20.30,"HAT CLEANING SHOPS, SHOE REPAIR SHOPS, SHOE SHINE"
CYP CH,17/08/2018,DRIVING GIFT LTD,20.00,SCHOOLS & EDUCATIONAL SVC-NOT ELSEWHERE CLASSIFIED
CYP CH,17/08/2018,DRIVING GIFT LTD,20.00,SCHOOLS & EDUCATIONAL SVC-NOT ELSEWHERE CLASSIFIED
CYP CH,17/08/2018,ALDI 43 772,55.96,"GROCERY STORES, SUPERMARKETS"
CYP CH,17/08/2018,DRIVING GIFT LTD,20.00,SCHOOLS & EDUCATIONAL SVC-NOT ELSEWHERE CLASSIFIED
CYP CH,17/08/2018,ASDA GROCERIES ONLINE,173.78,"GROCERY STORES, SUPERMARKETS"
CYP CH,17/08/2018,3C_ FULL STREET CAR PA,2.50,AUTOMOBILE PARKING LOTS AND GARAGES
CYP CH,17/08/2018,ASDA SUPERSTORE,84.74,"GROCERY STORES, SUPERMARKETS"
CYP CH,17/08/2018,ASDA GROCERIES ONLINE,-10.15,"GROCERY STORES, SUPERMARKETS"
CYP CH,17/08/2018,ASDA GROCERIES ONLINE,-2.00,"GROCERY STORES, SUPERMARKETS"
CYP CH,20/08/2018,KFC DERBY METEOR CENTR,4.69,FAST FOOD RESTAURANTS
CYP CH,20/08/2018,CENTRAL ENG COOP,10.17,DEPARTMENT STORES
CYP CH,20/08/2018,ASDA SUPERSTORE,1.80,"GROCERY STORES, SUPERMARKETS"
CYP CH,20/08/2018,WWW.TENPIN.CO.UK,2.70,"CLUBS-CNTRY,MBRSHIP(ATHLET,REC,SPRTS,PRIVATE GOLF"
CYP CH,20/08/2018,WWW.TENPIN.CO.UK,20.85,"CLUBS-CNTRY,MBRSHIP(ATHLET,REC,SPRTS,PRIVATE GOLF"
CYP CH,20/08/2018,MCDONALDS,5.03,"EATING PLACES, RESTAURANTS"
CYP CH,20/08/2018,WWW.TENPIN.CO.UK,2.50,"CLUBS-CNTRY,MBRSHIP(ATHLET,REC,SPRTS,PRIVATE GOLF"
CYP CH,20/08/2018,WWW.TENPIN.CO.UK,20.85,"CLUBS-CNTRY,MBRSHIP(ATHLET,REC,SPRTS,PRIVATE GOLF"
CYP CH,20/08/2018,MCDONALDS,5.29,FAST FOOD RESTAURANTS
CYP CH,20/08/2018,DCFC TICKET SALES,45.50,"THEATRICAL PRODUCERS(EXCL MOTION PIX),TICKET AGNCY"
CYP CH,20/08/2018,ARGOS LTD,24.99,DISCOUNT STORES
CYP CH,20/08/2018,SAINSBURYS SACAT 2059,33.20,"GROCERY STORES, SUPERMARKETS"
CYP CH,20/08/2018,BBS BAKERS AND BARISTA,5.00,"EATING PLACES, RESTAURANTS"
CYP CH,20/08/2018,POUNDLAND LTD,5.00,DISCOUNT STORES
CYP CH,20/08/2018,PASTA4U,4.49,FAST FOOD RESTAURANTS
CYP CH,20/08/2018,ALBATROSS CARS DERBY L,20.60,LIMOUSINES AND TAXICABS
CYP CH,20/08/2018,SUBWAY,6.80,"EATING PLACES, RESTAURANTS"
CYP CH,20/08/2018,OFFICE HOLDINGS LTD DE,17.99,SHOE STORES
CYP CH,20/08/2018,TK MAXX,189.90,VARIETY STORES
CYP CH,20/08/2018,TK MAXX,12.99,VARIETY STORES
CYP CH,20/08/2018,W M MORRISONS.COM,163.06,"GROCERY STORES, SUPERMARKETS"
CYP CH,20/08/2018,"BULLRING CAR PARK, BIR",8.50,AUTOMOBILE PARKING LOTS AND GARAGES
CYP CH,20/08/2018,ALBATROSS CARS DERBY L,21.00,LIMOUSINES AND TAXICABS
CYP CH,20/08/2018,FIVE GUYS BULLRING,20.10,FAST FOOD RESTAURANTS
CYP CH,20/08/2018,KIKO UK LTD,17.80,COSMETIC STORES
CYP CH,20/08/2018,EASY FASHION,20.00,ACCESSORY AND APPAREL STORES-MISCELLANEOUS
CYP CH,20/08/2018,GREGGS,2.45,"EATING PLACES, RESTAURANTS"
CYP CH,20/08/2018,SUPERDRUG STORES PLC,16.04,"DRUG STORES, PHARMACIES"
CYP CH,20/08/2018,SHAKIN' IT LTD,6.60,"MISC FOOD STORE-CONVENIENCE,MRKT,SPLTY,VENDNG MACS"
CYP CH,20/08/2018,JACK & JONES,65.00,FAMILY CLOTHING STORES
CYP CH,20/08/2018,DERBY CATHEDRAL ENT LT,9.30,BOOK STORES
CYP CH,20/08/2018,NEW LOOK,7.99,WOMEN'S READY TO WEAR STORES
CYP CH,20/08/2018,ASDA GROCERIES ONLINE,189.35,"GROCERY STORES, SUPERMARKETS"
CYP CH,20/08/2018,ASDA GROCERIES ONLINE,53.68,"GROCERY STORES, SUPERMARKETS"
CYP CH,20/08/2018,ASDA GROCERIES ONLINE,-.89,"GROCERY STORES, SUPERMARKETS"
CYP CH,21/08/2018,ASDA SUPERSTORE,8.50,"GROCERY STORES, SUPERMARKETS"
CYP CH,21/08/2018,MCDONALDS,4.13,FAST FOOD RESTAURANTS
CYP CH,21/08/2018,ASDA SUPERSTORE,14.00,"GROCERY STORES, SUPERMARKETS"
CYP CH,21/08/2018,ASDA SUPERSTORE,23.56,"GROCERY STORES, SUPERMARKETS"
CYP CH,21/08/2018,MCDONALDS,7.56,FAST FOOD RESTAURANTS
CYP CH,21/08/2018,ASDA SUPERSTORE,2.70,"GROCERY STORES, SUPERMARKETS"
CYP CH,21/08/2018,ASDA SUPERSTORE,9.96,"GROCERY STORES, SUPERMARKETS"
CYP CH,21/08/2018,ASDA SUPERSTORE,11.00,"GROCERY STORES, SUPERMARKETS"
CYP CH,21/08/2018,SHOWCASE CINEMAS UPT,9.00,MOTION PICTURE THEATERS
CYP CH,21/08/2018,SHOWCASE CINEMAS UPT,11.70,MOTION PICTURE THEATERS
CYP CH,21/08/2018,SHOWCASE CINEMAS UPT,24.35,MOTION PICTURE THEATERS
CYP CH,21/08/2018,ANTLER,39.00,LEATHER GOODS AND LUGGAGE STORES
CYP CH,21/08/2018,WWW.OXYGENFREEJUMP,11.50,"CLUBS-CNTRY,MBRSHIP(ATHLET,REC,SPRTS,PRIVATE GOLF"
CYP CH,21/08/2018,FRESHSTORES LTD,2.90,"MISC FOOD STORE-CONVENIENCE,MRKT,SPLTY,VENDNG MACS"
CYP CH,21/08/2018,YOO KASE LTD,14.99,MISCELLANEOUS AND SPECIALTY RETAIL STORES
CYP CH,21/08/2018,SUBWAY,10.50,"EATING PLACES, RESTAURANTS"
CYP CH,21/08/2018,ADIDASGROUP,30.90,"SPORTS APPAREL, RIDING APPAREL STORES"
CYP CH,21/08/2018,MCDONALDS,6.89,FAST FOOD RESTAURANTS
CYP CH,21/08/2018,CURRYS ONLINE,432.99,ELECTRONIC SALES
CYP CH,21/08/2018,ASDA SUPERSTORE,10.00,"GROCERY STORES, SUPERMARKETS"
CYP CH,21/08/2018,ASDA SUPERSTORE,4.09,"GROCERY STORES, SUPERMARKETS"
CYP CH,21/08/2018,ITECHNOLOGIES,25.00,COMPUTER MAIN./REPAIR/SERVICES NOT ELSEWHERE CLASS
CYP CH,21/08/2018,CARPHONE WAREHOUSE,5.00,TELECOMMUNICATION EQUIPMENT INCL TELEPHONE SALES
CYP CH,21/08/2018,FAST LANE,40.00,"CLUBS-CNTRY,MBRSHIP(ATHLET,REC,SPRTS,PRIVATE GOLF"
CYP CH,21/08/2018,WWW.STAPLES.CO.UK,142.78,"OFFICE, SCHOOL SUPPLY, AND STATIONERY STORES"
CYP CH,21/08/2018,ASDA SUPERSTORE,1.00,"GROCERY STORES, SUPERMARKETS"
CYP CH,20/08/2018,BOUNCE REVOLUTION,23.90,RECREATION SERVICES (NOT ELSEWHERE CLASSIFIED)
CYP CH,22/08/2018,JD SPORTS INTERNET,42.99,SPORTING GOODS STORES
CYP CH,22/08/2018,MCDONALDS,7.15,FAST FOOD RESTAURANTS
CYP CH,22/08/2018,MCDONALDS,2.58,FAST FOOD RESTAURANTS
CYP CH,22/08/2018,ASDA SUPERSTORE,19.00,"GROCERY STORES, SUPERMARKETS"
CYP CH,22/08/2018,ASDA SUPERSTORE,11.68,"GROCERY STORES, SUPERMARKETS"
CYP CH,22/08/2018,ASDA SUPERSTORE,19.99,"GROCERY STORES, SUPERMARKETS"
CYP CH,22/08/2018,ASDA SUPERSTORE,24.49,"GROCERY STORES, SUPERMARKETS"
CYP CH,22/08/2018,T K MAXX,7.99,VARIETY STORES
CYP CH,22/08/2018,T K MAXX,12.99,VARIETY STORES
CYP CH,22/08/2018,SMYTHS TOYS,29.99,"GAME, TOY, AND HOBBY SHOPS"
CYP CH,22/08/2018,MCDONALDS,4.26,FAST FOOD RESTAURANTS
CYP CH,22/08/2018,GAME RETAIL,199.99,"GAME, TOY, AND HOBBY SHOPS"
CYP CH,22/08/2018,MCDONALDS,29.47,FAST FOOD RESTAURANTS
CYP CH,22/08/2018,FANTASY ISLAND,44.00,"AMUSEMENT PARKS,CARNIVALS,CIRCUS,FORTUNE TELLERS"
CYP CH,22/08/2018,CENTRAL ENG COOP R,2.95,DEPARTMENT STORES
CYP CH,22/08/2018,BOUNCE REVOLUTION,8.95,RECREATION SERVICES (NOT ELSEWHERE CLASSIFIED)
CYP CH,22/08/2018,ASDA SUPERSTORE,7.00,"GROCERY STORES, SUPERMARKETS"
CYP CH,22/08/2018,CENTRAL ENG COOP,2.14,DEPARTMENT STORES
CYP CH,22/08/2018,CENTRAL ENG COOP,6.00,DEPARTMENT STORES
CYP CH,22/08/2018,WATERWORLD 2000 LIMITE,54.46,RECREATION SERVICES (NOT ELSEWHERE CLASSIFIED)
CYP CH,22/08/2018,HOLLYWOOD BAR & DINER,11.50,"EATING PLACES, RESTAURANTS"
CYP CH,22/08/2018,MCDONALDS,1.99,FAST FOOD RESTAURANTS
CYP CH,22/08/2018,MCDONALDS,18.36,FAST FOOD RESTAURANTS
CYP CH,22/08/2018,B&M RETAIL LTD,10.00,DISCOUNT STORES
CYP CH,22/08/2018,ASDA SUPERSTORE,5.74,"GROCERY STORES, SUPERMARKETS"
CYP CH,22/08/2018,SELECT CONVENIENCE,1.59,"GROCERY STORES, SUPERMARKETS"
CYP CH,23/08/2018,MCDONALDS,4.89,"EATING PLACES, RESTAURANTS"
CYP CH,23/08/2018,CENTRAL ENG COOP,20.00,DEPARTMENT STORES
CYP CH,23/08/2018,MCDONALDS,7.65,FAST FOOD RESTAURANTS
CYP CH,23/08/2018,MCDONALDS,13.24,FAST FOOD RESTAURANTS
CYP CH,23/08/2018,ASDA SUPERSTORE,18.60,"GROCERY STORES, SUPERMARKETS"
CYP CH,23/08/2018,GELATO DIVINO UK LTD,4.50,"EATING PLACES, RESTAURANTS"
CYP CH,23/08/2018,B&M RETAIL LTD,25.18,DISCOUNT STORES
CYP CH,23/08/2018,DUNELM LTD,35.50,"DRAPERY, UPOLSTERY, AND WINDOW COVERINGS STORES"
CYP CH,23/08/2018,SAINSBURYS 2059,20.00,"GROCERY STORES, SUPERMARKETS"
CYP CH,23/08/2018,SAINSBURYS 2059,12.50,"GROCERY STORES, SUPERMARKETS"
CYP CH,23/08/2018,SAINSBURYS 2059,77.00,"GROCERY STORES, SUPERMARKETS"
CYP CH,23/08/2018,SUBWAY,6.80,"EATING PLACES, RESTAURANTS"
CYP CH,23/08/2018,HALFORDS 0972,91.98,BICYCLE SHOPS-SALES AND SERVICE
CYP CH,23/08/2018,APPLE CENTRE DERBY,20.00,COMPUTER SOFTWARE STORES
CYP CH,23/08/2018,SUPERDRUG STORES PLC,30.99,"DRUG STORES, PHARMACIES"
CYP CH,23/08/2018,MCDONALDS,15.96,FAST FOOD RESTAURANTS
CYP CH,23/08/2018,TONI & GUY DERBY,38.00,BARBER AND BEAUTY SHOPS
CYP CH,23/08/2018,OXYGEN FREEJUMPING,23.00,"CLUBS-CNTRY,MBRSHIP(ATHLET,REC,SPRTS,PRIVATE GOLF"
CYP CH,23/08/2018,ASDA SUPERSTORE,1.00,"GROCERY STORES, SUPERMARKETS"
CYP CH,23/08/2018,ASDA SUPERSTORE,5.00,"GROCERY STORES, SUPERMARKETS"
CYP CH,22/08/2018,ZANFISH SINFIN,6.80,"EATING PLACES, RESTAURANTS"
CYP CH,27/08/2018,MCDONALDS,5.90,"EATING PLACES, RESTAURANTS"
CYP CH,27/08/2018,CENTRAL ENG COOP,15.00,DEPARTMENT STORES
CYP CH,27/08/2018,ASDA SUPERSTORE,16.00,"GROCERY STORES, SUPERMARKETS"
CYP CH,27/08/2018,ASDA SUPERSTORE,24.00,"GROCERY STORES, SUPERMARKETS"
CYP CH,27/08/2018,THE RANGE,12.96,DEPARTMENT STORES
CYP CH,27/08/2018,B&M RETAIL LTD,8.00,DISCOUNT STORES
CYP CH,27/08/2018,B&M RETAIL LTD,41.96,DISCOUNT STORES
CYP CH,27/08/2018,ASDA GROCERIES ONLINE,195.11,"GROCERY STORES, SUPERMARKETS"
CYP CH,27/08/2018,ASDA GROCERIES ONLINE,-14.75,"GROCERY STORES, SUPERMARKETS"
CYP CH,27/08/2018,ASDA GROCERIES ONLINE,-1.65,"GROCERY STORES, SUPERMARKETS"
CYP CH,26/08/2018,ASDA SUPERSTORE,28.00,"GROCERY STORES, SUPERMARKETS"
CYP CH,26/08/2018,TESCO STORE 2404,50.48,"GROCERY STORES, SUPERMARKETS"
CYP CH,26/08/2018,ARGOS LTD,35.00,DISCOUNT STORES
CYP CH,26/08/2018,SAINSBURYS SACAT0871,24.80,"GROCERY STORES, SUPERMARKETS"
CYP CH,26/08/2018,TESCO STORE 2404,.55,"GROCERY STORES, SUPERMARKETS"
CYP CH,25/08/2018,JD SPORTS INTERNET,68.99,SPORTING GOODS STORES
CYP CH,25/08/2018,CENTRAL ENG COOP,8.19,DEPARTMENT STORES
CYP CH,25/08/2018,ASDA SUPERSTORE,37.61,"GROCERY STORES, SUPERMARKETS"
CYP CH,25/08/2018,ASDA SUPERSTORE,29.00,"GROCERY STORES, SUPERMARKETS"
CYP CH,25/08/2018,ASDA SUPERSTORE,22.95,"GROCERY STORES, SUPERMARKETS"
CYP CH,25/08/2018,SAINSBURYS 2059,37.00,"GROCERY STORES, SUPERMARKETS"
CYP CH,25/08/2018,POUNDLAND 1453,5.05,DISCOUNT STORES
CYP CH,25/08/2018,SAINSBURYS 2059,5.00,"GROCERY STORES, SUPERMARKETS"
CYP CH,25/08/2018,THE WORKS,8.00,DISCOUNT STORES
CYP CH,25/08/2018,WH SMITH,28.06,NEWS DEALERS AND NEWSSTANDS
CYP CH,25/08/2018,ARGOS LTD,9.99,DISCOUNT STORES
CYP CH,25/08/2018,SAINSBURYS 0871,20.00,"GROCERY STORES, SUPERMARKETS"
CYP CH,25/08/2018,CENTRAL ENG COOP,4.50,DEPARTMENT STORES
CYP CH,25/08/2018,MCDONALDS,2.48,FAST FOOD RESTAURANTS
CYP CH,25/08/2018,JD SPORTS INTERNET,65.00,SPORTING GOODS STORES
CYP CH,25/08/2018,WILKO RETAIL LIMIT,5.50,HOUSEHOLD APPLIANCE STORES
CYP CH,24/08/2018,CENTRAL ENG COOP,16.50,DEPARTMENT STORES
CYP CH,24/08/2018,MCDONALDS,7.18,FAST FOOD RESTAURANTS
CYP CH,24/08/2018,MCDONALDS,.99,"EATING PLACES, RESTAURANTS"
CYP CH,24/08/2018,ASDA SUPERSTORE,11.96,"GROCERY STORES, SUPERMARKETS"
CYP CH,24/08/2018,MCDONALDS,3.99,FAST FOOD RESTAURANTS
CYP CH,24/08/2018,BEAUTY SPOT COSMETICS,.99,BARBER AND BEAUTY SHOPS
CYP CH,24/08/2018,ASDA SUPERSTORE,133.86,"GROCERY STORES, SUPERMARKETS"
CYP CH,24/08/2018,MCDONALDS,4.13,FAST FOOD RESTAURANTS
CYP CH,28/08/2018,MCDONALDS,5.43,FAST FOOD RESTAURANTS
CYP CH,28/08/2018,ASDA SUPERSTORE,2.24,"GROCERY STORES, SUPERMARKETS"
CYP CH,28/08/2018,WM MORRISON 078,5.47,"GROCERY STORES, SUPERMARKETS"
CYP CH,28/08/2018,WM MORRISON 078,20.00,"GROCERY STORES, SUPERMARKETS"
CYP CH,28/08/2018,ASDA SUPERSTORE,13.00,"GROCERY STORES, SUPERMARKETS"
CYP CH,28/08/2018,JUST EAT,6.34,FAST FOOD RESTAURANTS
CYP CH,28/08/2018,GIFFGAFF,10.00,TELECOM INCL PREPAID/RECURRING PHONE SVCS
CYP CH,28/08/2018,W M MORRISONS.COM,107.79,"GROCERY STORES, SUPERMARKETS"
CYP CH,28/08/2018,WM MORRISON 078,34.22,"GROCERY STORES, SUPERMARKETS"
CYP CH,28/08/2018,J D SPORTS 267,25.05,SPORTING GOODS STORES
CYP CH,28/08/2018,GREGGS PLC,4.95,"EATING PLACES, RESTAURANTS"
CYP CH,29/08/2018,KFC,1.99,FAST FOOD RESTAURANTS
CYP CH,29/08/2018,KFC,7.68,FAST FOOD RESTAURANTS
CYP CH,29/08/2018,CENTRAL ENG COOP,2.20,DEPARTMENT STORES
CYP CH,29/08/2018,CENTRAL ENG COOP,4.05,DEPARTMENT STORES
CYP CH,29/08/2018,CENTRAL ENG COOP R,6.39,DEPARTMENT STORES
CYP CH,29/08/2018,MCDONALDS,5.45,FAST FOOD RESTAURANTS
CYP CH,29/08/2018,MCDONALDS,13.47,FAST FOOD RESTAURANTS
CYP CH,29/08/2018,ARGOS LTD,8.99,DISCOUNT STORES
CYP CH,29/08/2018,SAINSBURYS SACAT0871,12.00,"GROCERY STORES, SUPERMARKETS"
CYP CH,29/08/2018,MCDONALDS,7.51,FAST FOOD RESTAURANTS
CYP CH,29/08/2018,HOLIDAY PAYMENT VRUK,-418.90,TRAVEL AGENCIES AND TOUR OPERATORS
CYP CH,29/08/2018,HOLIDAY PAYMENT VRUK,-150.00,TRAVEL AGENCIES AND TOUR OPERATORS
CYP CH,29/08/2018,MCDONALDS,.89,FAST FOOD RESTAURANTS
CYP CH,28/08/2018,PRIMARK 546,23.70,FAMILY CLOTHING STORES
CYP CH,30/08/2018,MCDONALDS,4.89,"EATING PLACES, RESTAURANTS"
CYP CH,30/08/2018,KFC,7.48,FAST FOOD RESTAURANTS
CYP CH,30/08/2018,MCDONALDS,7.33,"EATING PLACES, RESTAURANTS"
CYP CH,30/08/2018,SHOWCASE DERBY,8.10,MOTION PICTURE THEATERS
CYP CH,30/08/2018,SHOWCASE DERBY,19.50,MOTION PICTURE THEATERS
CYP CH,30/08/2018,APL /ALBATROS,13.20,LIMOUSINES AND TAXICABS
CYP CH,30/08/2018,HOLIDAY PAYMENT VRUK,374.00,TRAVEL AGENCIES AND TOUR OPERATORS
CYP CH,30/08/2018,B&M RETAIL LTD,2.99,DISCOUNT STORES
CYP CH,30/08/2018,B&M RETAIL LTD,82.04,DISCOUNT STORES
CYP CH,30/08/2018,B&M RETAIL LTD,24.05,DISCOUNT STORES
CYP CH,30/08/2018,ALTON TOWERS,110.00,TOURIST ATTRACTIONS AND EXHIBITS
CYP CH,02/09/2018,MCDONALDS,2.08,FAST FOOD RESTAURANTS
CYP CH,02/09/2018,KFC,11.76,FAST FOOD RESTAURANTS
CYP CH,02/09/2018,MCDONALDS,3.68,"EATING PLACES, RESTAURANTS"
CYP CH,02/09/2018,TAMWORTH BK,20.89,"EATING PLACES, RESTAURANTS"
CYP CH,02/09/2018,MCDONALDS,5.70,FAST FOOD RESTAURANTS
CYP CH,02/09/2018,ASDA SUPERSTORE,3.69,"GROCERY STORES, SUPERMARKETS"
CYP CH,02/09/2018,SAINSBURYS SACAT 2059,2.50,"GROCERY STORES, SUPERMARKETS"
CYP CH,02/09/2018,ASDA SUPERSTORE,11.00,"GROCERY STORES, SUPERMARKETS"
CYP CH,02/09/2018,TRAINLINE,27.15,PASSENGER RAILWAYS
CYP CH,02/09/2018,MCDONALDS,4.97,FAST FOOD RESTAURANTS
CYP CH,01/09/2018,MCDONALDS,5.42,FAST FOOD RESTAURANTS
CYP CH,01/09/2018,MCDONALDS,5.76,FAST FOOD RESTAURANTS
CYP CH,01/09/2018,MFA BOWL  ILKESTON,3.50,BOWLING ALLEYS
CYP CH,01/09/2018,ASDA SUPERSTORE,42.63,"GROCERY STORES, SUPERMARKETS"
CYP CH,01/09/2018,ASDA SUPERSTORE,16.00,"GROCERY STORES, SUPERMARKETS"
CYP CH,01/09/2018,ALBATROSS CARS DERBY L,4.30,LIMOUSINES AND TAXICABS
CYP CH,01/09/2018,ARGOS LTD,39.99,DISCOUNT STORES
CYP CH,01/09/2018,B J WILSON LTD,13.42,"DRUG STORES, PHARMACIES"
CYP CH,01/09/2018,CENTRAL ENG COOP,10.00,DEPARTMENT STORES
CYP CH,01/09/2018,CENTRAL ENG COOP,20.00,DEPARTMENT STORES
CYP CH,01/09/2018,ATP ADMISSIONS,43.50,"AMUSEMENT PARKS,CARNIVALS,CIRCUS,FORTUNE TELLERS"
CYP CH,01/09/2018,GIFFGAFF,10.00,TELECOM INCL PREPAID/RECURRING PHONE SVCS
CYP CH,01/09/2018,MCDONALDS,.99,FAST FOOD RESTAURANTS
CYP CH,01/09/2018,ASDA SUPERSTORE,51.63,"GROCERY STORES, SUPERMARKETS"
CYP CH,31/08/2018,TESCO STORE 2404,35.51,"GROCERY STORES, SUPERMARKETS"
CYP CH,31/08/2018,SAINSBURYS LOC4831,4.50,"GROCERY STORES, SUPERMARKETS"
CYP CH,31/08/2018,MCDONALDS,2.69,"EATING PLACES, RESTAURANTS"
CYP CH,31/08/2018,THE RAILWAY,9.90,"EATING PLACES, RESTAURANTS"
CYP CH,31/08/2018,THE RAILWAY,55.10,"EATING PLACES, RESTAURANTS"
CYP CH,31/08/2018,CENTRAL ENG COOP,15.03,DEPARTMENT STORES
CYP CH,31/08/2018,WPH GROUP LTD,100.00,"LODGING-HOTELS,MOTELS,RESORTS-NOT CLASSIFIED"
CYP CH,31/08/2018,TESCO STORES 2380,21.06,"GROCERY STORES, SUPERMARKETS"
CYP CH,31/08/2018,CENTRAL ENG COOP,.79,DEPARTMENT STORES
CYP CH,03/09/2018,MCDONALDS,6.00,FAST FOOD RESTAURANTS
CYP CH,03/09/2018,CENTRAL ENG COOP,25.00,DEPARTMENT STORES
CYP CH,03/09/2018,WM MORRISON 078,4.00,"GROCERY STORES, SUPERMARKETS"
CYP CH,03/09/2018,WM MORRISON 078,154.33,"GROCERY STORES, SUPERMARKETS"
CYP CH,03/09/2018,DUNELM ONLINE ORDER,23.95,"DRAPERY, UPOLSTERY, AND WINDOW COVERINGS STORES"
CYP CH,03/09/2018,WWW.NISBETS.COM,83.91,DIRECT MARKETING-CATALOG MERCHANTS
CYP CH,03/09/2018,WWW.NISBETS.COM,92.37,DIRECT MARKETING-CATALOG MERCHANTS
CYP CH,03/09/2018,WM MORRISONS FOOD.COM,190.00,"GROCERY STORES, SUPERMARKETS"
CYP CH,03/09/2018,INTU PARKING DERBY,4.20,AUTOMOBILE PARKING LOTS AND GARAGES
CYP CH,03/09/2018,SUBWAY,15.30,"EATING PLACES, RESTAURANTS"
CYP CH,03/09/2018,TASTY PLAICE DERBY,2.58,"EATING PLACES, RESTAURANTS"
CYP CH,03/09/2018,J D SPORTS 267,65.05,SPORTING GOODS STORES
CYP CH,03/09/2018,SPECSAVERS 00023000DER,25.00,"OPTICIANS,OPTICAL GOODS & EYEGLASSES"
CYP CH,03/09/2018,POUNDLAND 1453,6.00,DISCOUNT STORES
CYP CH,03/09/2018,UNIFORM DIRECT,4.00,MEN'S/WOMEN'S/CHILDREN'S UNIFORMS/COMMERCIAL CLOTH
CYP CH,03/09/2018,UNIFORM DIRECT,33.10,MEN'S/WOMEN'S/CHILDREN'S UNIFORMS/COMMERCIAL CLOTH
CYP CH,03/09/2018,CURRYS ONLINE,159.99,ELECTRONIC SALES
CYP CH,03/09/2018,MATALAN,55.00,MEN'S AND WOMEN'S CLOTHING STORES
CYP CH,03/09/2018,SPORTSDIRECT 360,43.52,SPORTING GOODS STORES
CYP CH,03/09/2018,ASDA SUPERSTORE,6.00,"GROCERY STORES, SUPERMARKETS"
CYP CH,03/09/2018,ASDA SUPERSTORE,149.99,"GROCERY STORES, SUPERMARKETS"
CYP CH,03/09/2018,BIRDS (BORROWASH),4.99,BAKERIES
CYP CH,03/09/2018,B&M RETAIL,84.48,DISCOUNT STORES
CYP CH,03/09/2018,W M MORRISONS.COM,8.00,"GROCERY STORES, SUPERMARKETS"
CYP CH,03/09/2018,ASDA GROCERIES ONLINE,139.16,"GROCERY STORES, SUPERMARKETS"
CYP CH,03/09/2018,UNIFORM DIRECT,-2.00,MEN'S/WOMEN'S/CHILDREN'S UNIFORMS/COMMERCIAL CLOTH
CYP CH,03/09/2018,WPH GROUP LTD,-100.00,"LODGING-HOTELS,MOTELS,RESORTS-NOT CLASSIFIED"
CYP CH,04/09/2018,GIFFGAFF,20.00,TELECOM INCL PREPAID/RECURRING PHONE SVCS
CYP CH,04/09/2018,CO-OP GROUP 070316,46.70,"GROCERY STORES, SUPERMARKETS"
CYP CH,04/09/2018,INTU PARKING DERBY,3.10,AUTOMOBILE PARKING LOTS AND GARAGES
CYP CH,04/09/2018,SAINSBURYS SACAT 2733,12.20,"GROCERY STORES, SUPERMARKETS"
CYP CH,04/09/2018,J D SPORTS 267,115.05,SPORTING GOODS STORES
CYP CH,04/09/2018,CURRYS SUPERSTORE,14.99,ELECTRONIC SALES
CYP CH,04/09/2018,LLOYDS AT SAINSBURYS,6.99,"GROCERY STORES, SUPERMARKETS"
CYP CH,04/09/2018,WWW.SCHOOLTRENDS.CO.UK,65.93,MEN'S/WOMEN'S/CHILDREN'S UNIFORMS/COMMERCIAL CLOTH
CYP CH,04/09/2018,ARGOS LTD,249.98,DISCOUNT STORES
CYP CH,04/09/2018,JD SPORTS INTERNET,80.00,SPORTING GOODS STORES
CYP CH,04/09/2018,SUBWAY,3.20,"EATING PLACES, RESTAURANTS"
CYP CH,04/09/2018,DERBY ROAD CONVENIENCE,10.00,"GROCERY STORES, SUPERMARKETS"
CYP CH,04/09/2018,APL /ALBATROS,4.60,LIMOUSINES AND TAXICABS
CYP CH,04/09/2018,J D SPORTS 510,32.05,SPORTING GOODS STORES
CYP CH,04/09/2018,NANDOS BULLRING,23.55,"EATING PLACES, RESTAURANTS"
CYP CH,04/09/2018,WEST MIDLAND SAFARI PA,50.00,"THEATRICAL PRODUCERS(EXCL MOTION PIX),TICKET AGNCY"
CYP CH,04/09/2018,ASDA SUPERSTORE,22.53,"GROCERY STORES, SUPERMARKETS"
CYP CH,04/09/2018,J D SPORTS 510,50.00,SPORTING GOODS STORES
CYP CH,04/09/2018,J D SPORTS 510,65.05,SPORTING GOODS STORES
CYP CH,04/09/2018,FOOT LOCKER 4266,134.99,MISCELLANEOUS AND SPECIALTY RETAIL STORES
CYP CH,04/09/2018,TESCO STORE 2404,63.00,"GROCERY STORES, SUPERMARKETS"
CYP CH,04/09/2018,ASDA SUPERSTORE,17.72,"GROCERY STORES, SUPERMARKETS"
CYP CH,06/09/2018,MCDONALDS,12.94,FAST FOOD RESTAURANTS
CYP CH,05/09/2018,SAINSBURYS LOC4764,13.30,"GROCERY STORES, SUPERMARKETS"
CYP CH,05/09/2018,ASDA SUPERSTORE,15.56,"GROCERY STORES, SUPERMARKETS"
CYP CH,05/09/2018,ASDA SUPERSTORE,31.41,"GROCERY STORES, SUPERMARKETS"
CYP CH,05/09/2018,ODEON,4.65,MOTION PICTURE THEATERS
CYP CH,05/09/2018,ODEON UPT,18.00,MOTION PICTURE THEATERS
CYP CH,05/09/2018,CENTRAL ENG COOP,2.00,DEPARTMENT STORES
CYP CH,05/09/2018,MCDONALDS,10.58,FAST FOOD RESTAURANTS
CYP CH,05/09/2018,WILKO RETAIL LIMIT,66.65,HOUSEHOLD APPLIANCE STORES
CYP CH,05/09/2018,WWW.WORKPLACE-PRODUCTS,313.20,OFFICE AND COMMERCIAL FURNITURE
CYP CH,05/09/2018,PP MACKWORTHHA,33.68,HARDWARE STORES
CYP CH,05/09/2018,ASDA SUPERSTORE,3.40,"GROCERY STORES, SUPERMARKETS"
CYP CH,06/09/2018,ASDA SUPERSTORE,12.09,"GROCERY STORES, SUPERMARKETS"
CYP CH,06/09/2018,SHOWCASE DERBY,14.20,MOTION PICTURE THEATERS
CYP CH,06/09/2018,SAINSBURYS 2059,4.06,"GROCERY STORES, SUPERMARKETS"
CYP CH,06/09/2018,ONE STOP 1487,1.35,"GROCERY STORES, SUPERMARKETS"
CYP CH,06/09/2018,WWW.TENPIN.CO.UK,22.40,"CLUBS-CNTRY,MBRSHIP(ATHLET,REC,SPRTS,PRIVATE GOLF"
CYP CH,06/09/2018,DUNELM LTD,100.00,"DRAPERY, UPOLSTERY, AND WINDOW COVERINGS STORES"
CYP CH,06/09/2018,SAINSBURYS 2733,30.55,"GROCERY STORES, SUPERMARKETS"
CYP CH,06/09/2018,SAINSBURYS 2733,12.00,"GROCERY STORES, SUPERMARKETS"
CYP CH,06/09/2018,SAINSBURYS SACAT 2059,10.00,"GROCERY STORES, SUPERMARKETS"
CYP CH,06/09/2018,J D SPORTS 267,45.05,SPORTING GOODS STORES
CYP CH,06/09/2018,ASDA SUPERSTORE,18.59,"GROCERY STORES, SUPERMARKETS"
CYP CH,06/09/2018,B&M RETAIL LTD,110.25,DISCOUNT STORES
CYP CH,06/09/2018,MCDONALDS,3.67,"EATING PLACES, RESTAURANTS"
CYP CH,06/09/2018,INTU PARKING DERBY,5.00,AUTOMOBILE PARKING LOTS AND GARAGES
CYP CH,06/09/2018,DUNELM LTD,203.00,"DRAPERY, UPOLSTERY, AND WINDOW COVERINGS STORES"
CYP CH,06/09/2018,DUNELM LTD,489.54,"DRAPERY, UPOLSTERY, AND WINDOW COVERINGS STORES"
CYP CH,06/09/2018,UNIFORM DIRECT,16.10,MEN'S/WOMEN'S/CHILDREN'S UNIFORMS/COMMERCIAL CLOTH
CYP CH,06/09/2018,ASDA SUPERSTORE,27.50,"GROCERY STORES, SUPERMARKETS"
CYP CH,06/09/2018,MORLEYS-CHADDESDEN,56.46,CHILDREN'S AND INFANT'S WEAR STORES
CYP CH,06/09/2018,MCDONALDS,5.17,FAST FOOD RESTAURANTS
CYP CH,06/09/2018,THE CLARKS SHOP,44.05,SHOE STORES
CYP CH,06/09/2018,RYMAN,9.99,"OFFICE, SCHOOL SUPPLY, AND STATIONERY STORES"
CYP CH,06/09/2018,ALDI 102 772,30.44,"GROCERY STORES, SUPERMARKETS"
CYP CH,06/09/2018,ASDA SUPERSTORE,1.00,"GROCERY STORES, SUPERMARKETS"
CYP CH,06/09/2018,ASDA SUPERSTORE,5.05,"GROCERY STORES, SUPERMARKETS"
CYP CH,06/09/2018,WILKO RETAIL LIMIT,9.00,HOUSEHOLD APPLIANCE STORES
CYP CH,09/09/2018,GIFFGAFF,10.00,TELECOM INCL PREPAID/RECURRING PHONE SVCS
CYP CH,09/09/2018,ODEON/BOOKIT,34.25,MOTION PICTURE THEATERS
CYP CH,09/09/2018,TESCO STORE 2404,8.00,"GROCERY STORES, SUPERMARKETS"
CYP CH,09/09/2018,ASDA SUPERSTORE,7.17,"GROCERY STORES, SUPERMARKETS"
CYP CH,09/09/2018,TESCO STORE 2404,4.50,"GROCERY STORES, SUPERMARKETS"
CYP CH,09/09/2018,BOOTS 0023,10.08,"DRUG STORES, PHARMACIES"
CYP CH,09/09/2018,TESCO STORE 2404,-22.00,"GROCERY STORES, SUPERMARKETS"
CYP CH,08/09/2018,SAINSBURYS LOC4764,6.50,"GROCERY STORES, SUPERMARKETS"
CYP CH,08/09/2018,MCDONALDS,5.03,"EATING PLACES, RESTAURANTS"
CYP CH,08/09/2018,SAINSBURYS 2059,22.00,"GROCERY STORES, SUPERMARKETS"
CYP CH,08/09/2018,SAINSBURYS 2059,10.00,"GROCERY STORES, SUPERMARKETS"
CYP CH,08/09/2018,SAINSBURYS 2059,10.00,"GROCERY STORES, SUPERMARKETS"
CYP CH,08/09/2018,SAINSBURYS 2059,23.00,"GROCERY STORES, SUPERMARKETS"
CYP CH,08/09/2018,KFC DERBY,49.62,FAST FOOD RESTAURANTS
CYP CH,08/09/2018,ASDA SUPERSTORE,57.09,"GROCERY STORES, SUPERMARKETS"
CYP CH,08/09/2018,TESCO STORE 2404,1.25,"GROCERY STORES, SUPERMARKETS"
CYP CH,08/09/2018,TESCO STORE 2404,32.00,"GROCERY STORES, SUPERMARKETS"
CYP CH,08/09/2018,ASDA GROCERIES ONLINE,58.86,"GROCERY STORES, SUPERMARKETS"
CYP CH,08/09/2018,ASDA SUPERSTORE,25.09,"GROCERY STORES, SUPERMARKETS"
CYP CH,07/09/2018,ASDA SUPERSTORE,15.50,"GROCERY STORES, SUPERMARKETS"
CYP CH,07/09/2018,ASDA SUPERSTORE,15.03,"GROCERY STORES, SUPERMARKETS"
CYP CH,07/09/2018,CATERPAC DISPOSABLES L,95.70,"COMMERCIAL EQUIPMENT, NOT ELSEWHERE CLASSIFIED"
CYP CH,07/09/2018,HOMEBASE LTD 475,19.80,"BUILDING MATERIALS, LUMBER STORES"
CYP CH,07/09/2018,B&M RETAIL,63.92,DISCOUNT STORES
CYP CH,07/09/2018,WM MORRISON 078,13.53,"GROCERY STORES, SUPERMARKETS"
CYP CH,07/09/2018,SUK RETAIL LTD,137.97,"OFFICE, SCHOOL SUPPLY, AND STATIONERY STORES"
CYP CH,07/09/2018,THE RANGE,103.84,DEPARTMENT STORES
CYP CH,07/09/2018,ASDA SUPERSTORE,56.39,"GROCERY STORES, SUPERMARKETS"
CYP CH,07/09/2018,JUST EAT,31.10,"EATING PLACES, RESTAURANTS"
CYP CH,07/09/2018,ASDA SUPERSTORE,68.25,"GROCERY STORES, SUPERMARKETS"
CYP CH,06/09/2018,PRIMARK 546,3.30,FAMILY CLOTHING STORES
CYP CH,06/09/2018,PRIMARK 546,15.90,FAMILY CLOTHING STORES
CYP CH,10/09/2018,SAINSBURYS LOC4764,50.00,"GROCERY STORES, SUPERMARKETS"
CYP CH,10/09/2018,CENTRAL ENG COOP,6.94,DEPARTMENT STORES
CYP CH,10/09/2018,ASDA SUPERSTORE,37.46,"GROCERY STORES, SUPERMARKETS"
CYP CH,10/09/2018,CENTRAL ENG COOP,12.17,DEPARTMENT STORES
CYP CH,10/09/2018,MCDONALDS,9.50,"EATING PLACES, RESTAURANTS"
CYP CH,10/09/2018,ASDA SUPERSTORE,7.50,"GROCERY STORES, SUPERMARKETS"
CYP CH,10/09/2018,CARPHONE WAREHOUSE,5.00,TELECOMMUNICATION EQUIPMENT INCL TELEPHONE SALES
CYP CH,10/09/2018,B & Q 1328,56.00,"BUILDING MATERIALS, LUMBER STORES"
CYP CH,10/09/2018,W M MORRISONS.COM,165.74,"GROCERY STORES, SUPERMARKETS"
CYP CH,10/09/2018,C.E.X LIMITED,140.00,ELECTRICAL PARTS AND EQUIPMENT
CYP CH,10/09/2018,ASDA SUPERSTORE,26.00,"GROCERY STORES, SUPERMARKETS"
CYP CH,10/09/2018,ONE STOP 1487,2.00,"GROCERY STORES, SUPERMARKETS"
CYP CH,10/09/2018,WWW.LITTLEOVER.DERBY.S,15.00,"SCHOOLS, ELEMENTARY AND SECONDARY"
CYP CH,10/09/2018,COSTA COFFEE 43033530,3.80,FAST FOOD RESTAURANTS
CYP CH,10/09/2018,ASDA SUPERSTORE,9.25,"GROCERY STORES, SUPERMARKETS"
CYP CH,10/09/2018,O NEILLS,37.00,"SPORTS APPAREL, RIDING APPAREL STORES"
CYP CH,10/09/2018,FIRST SAFETY,63.50,MEN'S/WOMEN'S/CHILDREN'S UNIFORMS/COMMERCIAL CLOTH
CYP CH,10/09/2018,SAINSBURYS 0871,30.50,"GROCERY STORES, SUPERMARKETS"
CYP CH,10/09/2018,ALBATROSS CARS DERBY L,7.00,LIMOUSINES AND TAXICABS
CYP CH,10/09/2018,ASDA SUPERSTORE,27.00,"GROCERY STORES, SUPERMARKETS"
CYP CH,10/09/2018,ALDI 43 772,30.34,"GROCERY STORES, SUPERMARKETS"
CYP CH,10/09/2018,SAINSBURYS 0871,55.95,"GROCERY STORES, SUPERMARKETS"
CYP CH,10/09/2018,ASDA SUPERSTORE,6.00,"GROCERY STORES, SUPERMARKETS"
CYP CH,10/09/2018,ASDA SUPERSTORE,16.00,"GROCERY STORES, SUPERMARKETS"
CYP CH,11/09/2018,JD SPORTS INTERNET,55.00,SPORTING GOODS STORES
CYP CH,11/09/2018,MCDONALDS,3.08,FAST FOOD RESTAURANTS
CYP CH,11/09/2018,IKEA LIMITED,160.00,"EQUIP, FURNITURE, HOME FURNSHNGS STRS (EXCPT APPL)"
CYP CH,11/09/2018,IKEA LIMITED,30.00,"EQUIP, FURNITURE, HOME FURNSHNGS STRS (EXCPT APPL)"
CYP CH,11/09/2018,DECATHLON,4.99,SPORTING GOODS STORES
CYP CH,11/09/2018,CENTRAL ENG COOP,30.00,DEPARTMENT STORES
CYP CH,11/09/2018,INTU PARKING DERBY,3.00,AUTOMOBILE PARKING LOTS AND GARAGES
CYP CH,11/09/2018,SPORTSDIRECT 360,17.00,SPORTING GOODS STORES
CYP CH,11/09/2018,MARKS&SPENCER PLC,61.05,"GROCERY STORES, SUPERMARKETS"
CYP CH,11/09/2018,MILL HILL CORNER,120.00,"EQUIP, FURNITURE, HOME FURNSHNGS STRS (EXCPT APPL)"
CYP CH,11/09/2018,MILL HILL CORNER,159.00,"EQUIP, FURNITURE, HOME FURNSHNGS STRS (EXCPT APPL)"
CYP CH,11/09/2018,APL /ALBATROS,4.70,LIMOUSINES AND TAXICABS
CYP CH,11/09/2018,MCDONALDS,3.08,FAST FOOD RESTAURANTS
CYP CH,11/09/2018,ARGOS LTD,134.96,DISCOUNT STORES
CYP CH,11/09/2018,WILKO RETAIL LIMIT,13.45,HOUSEHOLD APPLIANCE STORES
CYP CH,11/09/2018,WILKO RETAIL LIMIT,4.50,HOUSEHOLD APPLIANCE STORES
CYP CH,11/09/2018,WILKO RETAIL LIMIT,1.75,HOUSEHOLD APPLIANCE STORES
CYP CH,10/09/2018,ASDA GROCERIES ONLINE,162.78,"GROCERY STORES, SUPERMARKETS"
CYP CH,12/09/2018,APL /ALBATROS,5.40,LIMOUSINES AND TAXICABS
CYP CH,12/09/2018,WWW.HOBBYCRAFT.CO.UK,10.50,"ARTIST SUPPLY STORES, CRAFT SHOPS"
CYP CH,12/09/2018,APL /ALBATROS,7.50,LIMOUSINES AND TAXICABS
CYP CH,12/09/2018,SAINSBURYS 2059,11.25,"GROCERY STORES, SUPERMARKETS"
CYP CH,12/09/2018,ASDA SUPERSTORE,12.00,"GROCERY STORES, SUPERMARKETS"
CYP CH,12/09/2018,WILKO RETAIL LIMIT,27.00,HOUSEHOLD APPLIANCE STORES
CYP CH,12/09/2018,MCDONALDS,3.67,FAST FOOD RESTAURANTS
CYP CH,12/09/2018,CENTRAL ENG COOP,3.99,DEPARTMENT STORES
CYP CH,12/09/2018,B&M RETAIL LTD,75.07,DISCOUNT STORES
CYP CH,12/09/2018,WILKO RETAIL LIMIT,35.00,HOUSEHOLD APPLIANCE STORES
CYP CH,12/09/2018,BOOTS 0023,24.36,"DRUG STORES, PHARMACIES"
CYP CH,12/09/2018,ASDA SUPERSTORE,18.50,"GROCERY STORES, SUPERMARKETS"
CYP CH,12/09/2018,SAINSBURYS 2059,1.00,"GROCERY STORES, SUPERMARKETS"
CYP CH,11/09/2018,TVLICENSING.CO.UK,150.50,"CONSULTING, MANAGEMENT, AND PUBLIC RELATIONS SVCS"
CYP CH,13/09/2018,ASDA SUPERSTORE,6.50,"GROCERY STORES, SUPERMARKETS"
CYP CH,13/09/2018,MCDONALDS,3.67,FAST FOOD RESTAURANTS
CYP CH,13/09/2018,CENTRAL ENG COOP,10.00,DEPARTMENT STORES
CYP CH,13/09/2018,ASDA SUPERSTORE,10.62,"GROCERY STORES, SUPERMARKETS"
CYP CH,13/09/2018,ASDA SUPERSTORE,34.64,"GROCERY STORES, SUPERMARKETS"
CYP CH,13/09/2018,ASDA SUPERSTORE,135.32,"GROCERY STORES, SUPERMARKETS"
CYP CH,13/09/2018,ASDA SUPERSTORE,136.00,"GROCERY STORES, SUPERMARKETS"
CYP CH,13/09/2018,MCDONALDS,2.58,FAST FOOD RESTAURANTS
CYP CH,13/09/2018,ARGOS LTD,5.00,DISCOUNT STORES
CYP CH,13/09/2018,DERBY ARENA,15.80,"CLUBS-CNTRY,MBRSHIP(ATHLET,REC,SPRTS,PRIVATE GOLF"
CYP CH,13/09/2018,DW SPORTS FITNESS,145.00,SPORTING GOODS STORES
CYP CH,13/09/2018,ARGOS LTD,20.00,DISCOUNT STORES
CYP CH,13/09/2018,HOMEBASE LTD 042,9.99,"BUILDING MATERIALS, LUMBER STORES"
CYP CH,13/09/2018,APL /ALBATROS,6.50,LIMOUSINES AND TAXICABS
CYP CH,13/09/2018,ASDA SUPERSTORE,9.99,"GROCERY STORES, SUPERMARKETS"
CYP CH,13/09/2018,ASDA SUPERSTORE,10.98,"GROCERY STORES, SUPERMARKETS"
CYP CH,12/09/2018,THE RIVERSIDE FISH BAR,1.95,FAST FOOD RESTAURANTS
CYP CH,12/09/2018,THE RIVERSIDE FISH BAR,11.25,FAST FOOD RESTAURANTS
CYP CH,17/09/2018,,"-12,819.43",
CYP CH,16/09/2018,ASDA SUPERSTORE,42.89,"GROCERY STORES, SUPERMARKETS"
CYP CH,16/09/2018,SAINSBURYS 0871,18.20,"GROCERY STORES, SUPERMARKETS"
CYP CH,16/09/2018,CURRYS SUPERSTORE,79.99,ELECTRONIC SALES
CYP CH,16/09/2018,MARKEATON GARDEN CENTR,19.30,LAWN AND GARDEN SUPPLY STORES
CYP CH,15/09/2018,PIZZA HUT - DE22 3LJ,6.43,"EATING PLACES, RESTAURANTS"
CYP CH,15/09/2018,MCDONALDS,5.43,FAST FOOD RESTAURANTS
CYP CH,15/09/2018,KFC DERBY,11.18,FAST FOOD RESTAURANTS
CYP CH,15/09/2018,ASDA SUPERSTORE,12.00,"GROCERY STORES, SUPERMARKETS"
CYP CH,15/09/2018,ASDA SUPERSTORE,34.73,"GROCERY STORES, SUPERMARKETS"
CYP CH,15/09/2018,ASDA SUPERSTORE,5.00,"GROCERY STORES, SUPERMARKETS"
CYP CH,15/09/2018,FIVE GUYS ARNDALE,18.60,FAST FOOD RESTAURANTS
CYP CH,15/09/2018,IN-TIME WATCH SERVICES,12.95,"CLOCK, JEWELRY, AND WATCH REPAIR SHOPS"
CYP CH,15/09/2018,SPORTSDIRECT 289,40.00,SPORTING GOODS STORES
CYP CH,15/09/2018,BODYCARE H/BEAUTY,9.99,COSMETIC STORES
CYP CH,15/09/2018,MCDONALDS,5.43,FAST FOOD RESTAURANTS
CYP CH,15/09/2018,J D SPORTS,95.00,SPORTING GOODS STORES
CYP CH,15/09/2018,MCDONALDS,6.06,FAST FOOD RESTAURANTS
CYP CH,15/09/2018,COSTA COFFEE 43035970,5.70,FAST FOOD RESTAURANTS
CYP CH,15/09/2018,MCDONALDS,4.99,FAST FOOD RESTAURANTS
CYP CH,15/09/2018,EURO CAR PARKS LTD.,3.50,AUTOMOBILE PARKING LOTS AND GARAGES
CYP CH,15/09/2018,ASDA SUPERSTORE,27.54,"GROCERY STORES, SUPERMARKETS"
CYP CH,14/09/2018,ASDA SUPERSTORE,7.00,"GROCERY STORES, SUPERMARKETS"
CYP CH,14/09/2018,ASDA SUPERSTORE,44.82,"GROCERY STORES, SUPERMARKETS"
CYP CH,14/09/2018,ASDA SUPERSTORE,10.27,"GROCERY STORES, SUPERMARKETS"
CYP CH,14/09/2018,ASDA SUPERSTORE,4.87,"GROCERY STORES, SUPERMARKETS"
CYP CH,14/09/2018,ASDA SUPERSTORE,2.50,"GROCERY STORES, SUPERMARKETS"
CYP CH,14/09/2018,ASDA SUPERSTORE,167.00,"GROCERY STORES, SUPERMARKETS"
CYP CH,14/09/2018,NANDOS DERBY,30.85,"EATING PLACES, RESTAURANTS"
CYP CH,14/09/2018,WILKO RETAIL LIMIT,27.50,HOUSEHOLD APPLIANCE STORES
CYP CH,14/09/2018,PREMIER,1.25,"GROCERY STORES, SUPERMARKETS"
CYP CH,14/09/2018,MCDONALDS,2.38,"EATING PLACES, RESTAURANTS"
CYP CH,14/09/2018,ALDI 43 772,57.42,"GROCERY STORES, SUPERMARKETS"
CYP CH,14/09/2018,ASDA SUPERSTORE,8.00,"GROCERY STORES, SUPERMARKETS"
CYP CH,13/09/2018,HALFORDS ON LINE,220.00,BICYCLE SHOPS-SALES AND SERVICE
CYP CH,17/09/2018,WM MORRISON 078,10.50,"GROCERY STORES, SUPERMARKETS"
CYP CH,17/09/2018,DERBY ARENA,12.40,"CLUBS-CNTRY,MBRSHIP(ATHLET,REC,SPRTS,PRIVATE GOLF"
CYP CH,17/09/2018,INTU PARKING DERBY,3.50,AUTOMOBILE PARKING LOTS AND GARAGES
CYP CH,17/09/2018,SAINSBURYS SACAT 2733,10.00,"GROCERY STORES, SUPERMARKETS"
CYP CH,17/09/2018,SAINSBURYS SACAT 2733,2.30,"GROCERY STORES, SUPERMARKETS"
CYP CH,17/09/2018,HOBBYCRAFT,28.50,"ARTIST SUPPLY STORES, CRAFT SHOPS"
CYP CH,17/09/2018,SUBWAY,4.10,"EATING PLACES, RESTAURANTS"
CYP CH,17/09/2018,SUBWAY,5.10,"EATING PLACES, RESTAURANTS"
CYP CH,17/09/2018,W M MORRISONS.COM,143.01,"GROCERY STORES, SUPERMARKETS"
CYP CH,17/09/2018,B & Q 1328,43.00,"BUILDING MATERIALS, LUMBER STORES"
CYP CH,17/09/2018,MCDONALDS,4.89,FAST FOOD RESTAURANTS
CYP CH,17/09/2018,MCDONALDS,5.43,FAST FOOD RESTAURANTS
CYP CH,17/09/2018,ASDA GROCERIES ONLINE,96.45,"GROCERY STORES, SUPERMARKETS"
CYP CH,17/09/2018,ASDA GROCERIES ONLINE,-.91,"GROCERY STORES, SUPERMARKETS"
CYP CH,17/09/2018,ASDA SUPERSTORE,17.54,"GROCERY STORES, SUPERMARKETS"
CYP CH,18/09/2018,MCDONALDS,2.88,"EATING PLACES, RESTAURANTS"
CYP CH,18/09/2018,ALTON TOWERS,82.00,TOURIST ATTRACTIONS AND EXHIBITS
CYP CH,18/09/2018,ASDA SUPERSTORE,7.85,"GROCERY STORES, SUPERMARKETS"
CYP CH,18/09/2018,SAINSBURYS 2059,9.00,"GROCERY STORES, SUPERMARKETS"
CYP CH,18/09/2018,KFC,6.24,FAST FOOD RESTAURANTS
CYP CH,18/09/2018,SHOWCASE DERBY,12.95,MOTION PICTURE THEATERS
CYP CH,18/09/2018,SHOWCASE DERBY,9.75,MOTION PICTURE THEATERS
CYP CH,18/09/2018,GIFFGAFF,10.00,TELECOM INCL PREPAID/RECURRING PHONE SVCS
CYP CH,18/09/2018,GIFFGAFF,10.00,TELECOM INCL PREPAID/RECURRING PHONE SVCS
CYP CH,18/09/2018,WWW.LITTLEOVER.DERBY.S,15.00,"SCHOOLS, ELEMENTARY AND SECONDARY"
CYP CH,18/09/2018,ZANFISH ALLENTON,22.40,FAST FOOD RESTAURANTS
CYP CH,18/09/2018,MCDONALDS,2.88,"EATING PLACES, RESTAURANTS"
CYP CH,18/09/2018,DW SPORTS FITNESS,7.00,SPORTING GOODS STORES
CYP CH,18/09/2018,CURRYS SUPERSTORE,29.99,ELECTRONIC SALES
CYP CH,18/09/2018,POUNDLAND 1453,3.00,DISCOUNT STORES
CYP CH,18/09/2018,ASDA SUPERSTORE,1.54,"GROCERY STORES, SUPERMARKETS"
CYP CH,18/09/2018,MCDONALDS,2.82,FAST FOOD RESTAURANTS
CYP CH,18/09/2018,ASDA SUPERSTORE,4.00,"GROCERY STORES, SUPERMARKETS"
CYP CH,18/09/2018,OSMASTON PARK,228.99,DISCOUNT STORES
CYP CH,18/09/2018,ASDA GROCERIES ONLINE,166.70,"GROCERY STORES, SUPERMARKETS"
CYP CH,18/09/2018,KFC,5.49,FAST FOOD RESTAURANTS
CYP CH,18/09/2018,ASDA SUPERSTORE,-15.00,"GROCERY STORES, SUPERMARKETS"
CYP CH,17/09/2018,BRANDSEARCH,69.98,MEN'S AND BOY'S CLOTHING AND ACCESSORIES STORES
CYP CH,17/09/2018,ASDA GROCERIES ONLINE,-18.69,"GROCERY STORES, SUPERMARKETS"
CYP CH,19/09/2018,ASDA SUPERSTORE,2.74,"GROCERY STORES, SUPERMARKETS"
CYP CH,19/09/2018,ASDA SUPERSTORE,17.00,"GROCERY STORES, SUPERMARKETS"
CYP CH,19/09/2018,ASDA SUPERSTORE,20.99,"GROCERY STORES, SUPERMARKETS"
CYP CH,19/09/2018,SAINSBURYS SACAT 2059,18.00,"GROCERY STORES, SUPERMARKETS"
CYP CH,19/09/2018,ASDA SUPERSTORE,10.00,"GROCERY STORES, SUPERMARKETS"
CYP CH,19/09/2018,CURRYS S/S DERBY,159.00,ELECTRONIC SALES
CYP CH,19/09/2018,CURRYS S/S DERBY,159.00,ELECTRONIC SALES
CYP CH,19/09/2018,ODEON,8.72,MOTION PICTURE THEATERS
CYP CH,19/09/2018,ODEON,18.00,MOTION PICTURE THEATERS
CYP CH,19/09/2018,WM MORRISONS STORE,3.00,"GROCERY STORES, SUPERMARKETS"
CYP CH,19/09/2018,ANDUFF CARWASH,11.00,CAR WASHES
CYP CH,19/09/2018,ASDA SUPERSTORE,20.37,"GROCERY STORES, SUPERMARKETS"
CYP CH,19/09/2018,MCDONALDS,2.58,FAST FOOD RESTAURANTS
CYP CH,19/09/2018,CENTRAL ENG COOP,16.40,DEPARTMENT STORES
CYP CH,19/09/2018,OSMASTON PARK,401.46,DISCOUNT STORES
CYP CH,19/09/2018,ASDA GROCERIES ONLINE,5.00,"GROCERY STORES, SUPERMARKETS"
CYP CH,19/09/2018,GIFFGAFF,-10.00,TELECOM INCL PREPAID/RECURRING PHONE SVCS
CYP CH,19/09/2018,ASDA SUPERSTORE,29.98,"GROCERY STORES, SUPERMARKETS"
CYP CH,20/09/2018,MCDONALDS,1.43,FAST FOOD RESTAURANTS
CYP CH,20/09/2018,WWW.GAME.CO.UK,5.00,"GAME, TOY, AND HOBBY SHOPS"
CYP CH,20/09/2018,MCDONALDS,2.98,FAST FOOD RESTAURANTS
CYP CH,20/09/2018,KFC,12.48,FAST FOOD RESTAURANTS
CYP CH,20/09/2018,HOBBYCRAFT,44.95,"ARTIST SUPPLY STORES, CRAFT SHOPS"
CYP CH,20/09/2018,CENTRAL ENG COOP,9.75,DEPARTMENT STORES
CYP CH,20/09/2018,WESTERN CARS,65.00,LIMOUSINES AND TAXICABS
CYP CH,20/09/2018,ZANFISH SINFIN,15.10,"EATING PLACES, RESTAURANTS"
CYP CH,20/09/2018,ARGOS LTD,19.99,DISCOUNT STORES
CYP CH,20/09/2018,CENTRAL ENG COOP,9.25,DEPARTMENT STORES
CYP CH,20/09/2018,COSTA COFFEE 43033530,3.80,FAST FOOD RESTAURANTS
CYP CH,20/09/2018,ASDA SUPERSTORE,8.00,"GROCERY STORES, SUPERMARKETS"
CYP CH,20/09/2018,MILL HILL CORNER,59.00,"EQUIP, FURNITURE, HOME FURNSHNGS STRS (EXCPT APPL)"
CYP CH,20/09/2018,DERBY ARENA,11.15,"CLUBS-CNTRY,MBRSHIP(ATHLET,REC,SPRTS,PRIVATE GOLF"
CYP CH,20/09/2018,KFC,2.99,FAST FOOD RESTAURANTS
CYP CH,23/09/2018,MCDONALDS,2.98,FAST FOOD RESTAURANTS
CYP CH,23/09/2018,APL /ALBATROS,11.20,LIMOUSINES AND TAXICABS
CYP CH,23/09/2018,CENTRAL ENG COOP,6.00,DEPARTMENT STORES
CYP CH,23/09/2018,CENTRAL ENG COOP,1.50,DEPARTMENT STORES
CYP CH,23/09/2018,APL /ALBATROS,10.80,LIMOUSINES AND TAXICABS
CYP CH,23/09/2018,B & Q 1328,6.00,"BUILDING MATERIALS, LUMBER STORES"
CYP CH,23/09/2018,KFC DERBY,1.99,FAST FOOD RESTAURANTS
CYP CH,23/09/2018,SAINSBURYS SACAT 2733,2.21,"GROCERY STORES, SUPERMARKETS"
CYP CH,23/09/2018,WILKO RETAIL LIMIT,12.50,HOUSEHOLD APPLIANCE STORES
CYP CH,23/09/2018,NEXT 0656,9.00,FAMILY CLOTHING STORES
CYP CH,22/09/2018,TESCO STORE 2404,2.00,"GROCERY STORES, SUPERMARKETS"
CYP CH,22/09/2018,TESCO STORE 2404,15.50,"GROCERY STORES, SUPERMARKETS"
CYP CH,22/09/2018,MCDONALDS,2.48,FAST FOOD RESTAURANTS
CYP CH,22/09/2018,CENTRAL ENG COOP,3.00,DEPARTMENT STORES
CYP CH,22/09/2018,MCDONALDS,13.60,FAST FOOD RESTAURANTS
CYP CH,22/09/2018,ASDA SUPERSTORE,5.95,"GROCERY STORES, SUPERMARKETS"
CYP CH,22/09/2018,MCDONALDS,4.13,FAST FOOD RESTAURANTS
CYP CH,22/09/2018,MCDONALDS,9.76,FAST FOOD RESTAURANTS
CYP CH,22/09/2018,BOOTS 0023,13.09,"DRUG STORES, PHARMACIES"
CYP CH,22/09/2018,APL /ALBATROS,4.80,LIMOUSINES AND TAXICABS
CYP CH,22/09/2018,B&M RETAIL LTD,10.07,DISCOUNT STORES
CYP CH,22/09/2018,ASDA GROCERIES ONLINE,1.19,"GROCERY STORES, SUPERMARKETS"
CYP CH,22/09/2018,ASDA GROCERIES ONLINE,92.53,"GROCERY STORES, SUPERMARKETS"
CYP CH,22/09/2018,ASDA SUPERSTORE,46.13,"GROCERY STORES, SUPERMARKETS"
CYP CH,22/09/2018,CINEWORLD,19.30,"THEATRICAL PRODUCERS(EXCL MOTION PIX),TICKET AGNCY"
CYP CH,22/09/2018,BODYCARE,12.77,COSMETIC STORES
CYP CH,21/09/2018,GIFFGAFF,10.00,TELECOM INCL PREPAID/RECURRING PHONE SVCS
CYP CH,21/09/2018,MCDONALDS,12.39,"EATING PLACES, RESTAURANTS"
CYP CH,21/09/2018,NEW LOOK 1815,40.04,WOMEN'S READY TO WEAR STORES
CYP CH,21/09/2018,SAINSBURYS LOC4716,4.50,"GROCERY STORES, SUPERMARKETS"
CYP CH,21/09/2018,ASDA SUPERSTORE,9.70,"GROCERY STORES, SUPERMARKETS"
CYP CH,21/09/2018,ASDA SUPERSTORE,5.00,"GROCERY STORES, SUPERMARKETS"
CYP CH,21/09/2018,ASDA SUPERSTORE,12.00,"GROCERY STORES, SUPERMARKETS"
CYP CH,21/09/2018,TESCO STORE 2404,2.65,"GROCERY STORES, SUPERMARKETS"
CYP CH,21/09/2018,TESCO STORE 2404,8.00,"GROCERY STORES, SUPERMARKETS"
CYP CH,21/09/2018,HALFORDS 0972,41.00,BICYCLE SHOPS-SALES AND SERVICE
CYP CH,21/09/2018,CYCLE REPUBLIC  DERBY,250.00,BICYCLE SHOPS-SALES AND SERVICE
CYP CH,21/09/2018,POST OFFICE COUNTER,303.00,POSTAL SERVICES-GOVERNMENT ONLY
CYP CH,21/09/2018,ASDA SUPERSTORE,33.98,"GROCERY STORES, SUPERMARKETS"
CYP CH,21/09/2018,B&M RETAIL LTD,54.97,DISCOUNT STORES
CYP CH,21/09/2018,MCDONALDS,3.77,FAST FOOD RESTAURANTS
CYP CH,21/09/2018,ALDI 43 772,70.88,"GROCERY STORES, SUPERMARKETS"
CYP CH,21/09/2018,B&M RETAIL,31.79,DISCOUNT STORES
CYP CH,21/09/2018,MCDONALDS,9.98,FAST FOOD RESTAURANTS
CYP CH,24/09/2018,ASDA STORES,5.38,"GROCERY STORES, SUPERMARKETS"
CYP CH,24/09/2018,ASDA STORES,7.80,"GROCERY STORES, SUPERMARKETS"
CYP CH,24/09/2018,TESCO-STORES 2949,23.10,"GROCERY STORES, SUPERMARKETS"
CYP CH,24/09/2018,TESCO-STORES 2949,4.00,"GROCERY STORES, SUPERMARKETS"
CYP CH,24/09/2018,TESCO-STORES 2949,5.70,"GROCERY STORES, SUPERMARKETS"
CYP CH,24/09/2018,W M MORRISONS.COM,162.89,"GROCERY STORES, SUPERMARKETS"
CYP CH,24/09/2018,APL /ALBATROS,9.20,LIMOUSINES AND TAXICABS
CYP CH,24/09/2018,ASDA SUPERSTORE,4.00,"GROCERY STORES, SUPERMARKETS"
CYP CH,24/09/2018,ASDA SUPERSTORE,9.00,"GROCERY STORES, SUPERMARKETS"
CYP CH,24/09/2018,TESCO STORE 2404,13.00,"GROCERY STORES, SUPERMARKETS"
CYP CH,24/09/2018,APL /ALBATROS,10.10,LIMOUSINES AND TAXICABS
CYP CH,24/09/2018,ASDA GROCERIES ONLINE,149.15,"GROCERY STORES, SUPERMARKETS"
CYP CH,24/09/2018,ASDA GROCERIES ONLINE,82.58,"GROCERY STORES, SUPERMARKETS"
CYP CH,24/09/2018,WILKO RETAIL LIMIT,5.00,HOUSEHOLD APPLIANCE STORES
CYP CH,24/09/2018,ASDA GROCERIES ONLINE,-.25,"GROCERY STORES, SUPERMARKETS"
CYP CH,23/09/2018,PRIMARK 546,13.90,FAMILY CLOTHING STORES
CYP CH,22/09/2018,B&M RETAIL LTD,25.95,DISCOUNT STORES
CYP CH,25/09/2018,MCDONALDS,2.67,FAST FOOD RESTAURANTS
CYP CH,25/09/2018,JD SPORTS INTERNET,34.99,SPORTING GOODS STORES
CYP CH,25/09/2018,OXYGEN FREEJUMPING,9.60,"CLUBS-CNTRY,MBRSHIP(ATHLET,REC,SPRTS,PRIVATE GOLF"
CYP CH,25/09/2018,CENTRAL ENG COOP,1.25,DEPARTMENT STORES
CYP CH,25/09/2018,INTU PARKING DERBY,3.10,AUTOMOBILE PARKING LOTS AND GARAGES
CYP CH,25/09/2018,WWW.LITTLEOVER.DERBY.S,15.00,"SCHOOLS, ELEMENTARY AND SECONDARY"
CYP CH,25/09/2018,WICKES,10.49,HOME SUPPLY WAREHOUSE STORES
CYP CH,26/09/2018,ODEON UPT,26.00,MOTION PICTURE THEATERS
CYP CH,26/09/2018,CENTRAL ENG COOP,14.10,DEPARTMENT STORES
CYP CH,26/09/2018,ODEON,24.00,MOTION PICTURE THEATERS
CYP CH,26/09/2018,ZANFISH ALLENTON,8.80,FAST FOOD RESTAURANTS
CYP CH,26/09/2018,TESCO STORE 2404,15.00,"GROCERY STORES, SUPERMARKETS"
CYP CH,26/09/2018,BEMBRIDGE CONVENIENCE,29.00,"MISC FOOD STORE-CONVENIENCE,MRKT,SPLTY,VENDNG MACS"
CYP CH,26/09/2018,B & Q 1328,47.38,"BUILDING MATERIALS, LUMBER STORES"
CYP CH,26/09/2018,ASDA SUPERSTORE,11.22,"GROCERY STORES, SUPERMARKETS"
CYP CH,26/09/2018,KFC DERBY,10.87,FAST FOOD RESTAURANTS
CYP CH,26/09/2018,DERBY COLLEGE,60.00,"COLLEGES, UNIV, PRO SCHOOLS, JUNIOR COLLEGES"
CYP CH,26/09/2018,ALDI 102 772,10.47,"GROCERY STORES, SUPERMARKETS"
CYP CH,26/09/2018,B&M RETAIL LTD,10.00,DISCOUNT STORES
CYP CH,27/09/2018,DUNELM LTD,50.00,"DRAPERY, UPOLSTERY, AND WINDOW COVERINGS STORES"
CYP CH,27/09/2018,DUNELM LTD,3.50,"DRAPERY, UPOLSTERY, AND WINDOW COVERINGS STORES"
CYP CH,27/09/2018,TESCO STORE 2404,1.25,"GROCERY STORES, SUPERMARKETS"
CYP CH,27/09/2018,TESCO STORE 2404,20.50,"GROCERY STORES, SUPERMARKETS"
CYP CH,27/09/2018,TESCO STORE 2404,29.00,"GROCERY STORES, SUPERMARKETS"
CYP CH,27/09/2018,TESCO STORE 2404,2.70,"GROCERY STORES, SUPERMARKETS"
CYP CH,27/09/2018,OCEAN FRESH AT STEVES,34.50,FAST FOOD RESTAURANTS
CYP CH,27/09/2018,SUBWAY,6.80,"EATING PLACES, RESTAURANTS"
CYP CH,27/09/2018,KFC,2.99,FAST FOOD RESTAURANTS
CYP CH,27/09/2018,T J MORRIS LTD,1.48,HARDWARE STORES
CYP CH,27/09/2018,T J MORRIS LTD,5.97,HARDWARE STORES
CYP CH,27/09/2018,COSTA COFFEE 43033530,3.80,FAST FOOD RESTAURANTS
CYP CH,27/09/2018,ASDA SUPERSTORE,3.00,"GROCERY STORES, SUPERMARKETS"
CYP CH,26/09/2018,JAXX Q CLUB,6.78,POOL AND BILLIARD ESTABLISHMENTS
CYP CH,26/09/2018,JAXX Q CLUB,8.40,POOL AND BILLIARD ESTABLISHMENTS
CYP CH,30/09/2018,CENTRAL ENG COOP,5.00,DEPARTMENT STORES
CYP CH,30/09/2018,ALBATROSS CARS DERBY L,4.50,LIMOUSINES AND TAXICABS
CYP CH,30/09/2018,SHOWCASE DERBY,10.80,MOTION PICTURE THEATERS
CYP CH,30/09/2018,SHOWCASE DERBY,16.65,MOTION PICTURE THEATERS
CYP CH,30/09/2018,SHOWCASE CINEMAS UPT,11.20,MOTION PICTURE THEATERS
CYP CH,30/09/2018,SHOWCASE CINEMAS UPT,19.90,MOTION PICTURE THEATERS
CYP CH,30/09/2018,TESCO STORES 6060,31.01,"GROCERY STORES, SUPERMARKETS"
CYP CH,30/09/2018,ARGOS LTD,10.00,DISCOUNT STORES
CYP CH,30/09/2018,ASDA SUPERSTORE,6.00,"GROCERY STORES, SUPERMARKETS"
CYP CH,30/09/2018,ASDA SUPERSTORE,50.00,"GROCERY STORES, SUPERMARKETS"
CYP CH,30/09/2018,ASDA SUPERSTORE,95.76,"GROCERY STORES, SUPERMARKETS"
CYP CH,29/09/2018,VESTA VODAFONE,10.00,TELECOM INCL PREPAID/RECURRING PHONE SVCS
CYP CH,29/09/2018,PIZZA HUT - DE22 3LJ,7.72,"EATING PLACES, RESTAURANTS"
CYP CH,29/09/2018,DUNN RIVER DINER & TAK,13.00,"EATING PLACES, RESTAURANTS"
CYP CH,29/09/2018,CENTRAL ENG COOP,5.00,DEPARTMENT STORES
CYP CH,29/09/2018,ASDA SUPERSTORE,11.00,"GROCERY STORES, SUPERMARKETS"
CYP CH,29/09/2018,ASDA SUPERSTORE,14.64,"GROCERY STORES, SUPERMARKETS"
CYP CH,29/09/2018,WWW BIGFOODIE CO UK,14.40,FAST FOOD RESTAURANTS
CYP CH,29/09/2018,DOMINOS PIZZA 28059,17.63,FAST FOOD RESTAURANTS
CYP CH,29/09/2018,WWW.GAME.CO.UK,15.00,"GAME, TOY, AND HOBBY SHOPS"
CYP CH,29/09/2018,BOUNCE REVOLUTION,23.90,RECREATION SERVICES (NOT ELSEWHERE CLASSIFIED)
CYP CH,29/09/2018,WWW.JUNIQE.CO.UK,85.75,MISCELLANEOUS AND SPECIALTY RETAIL STORES
CYP CH,29/09/2018,ASDA SUPERSTORE,15.13,"GROCERY STORES, SUPERMARKETS"
CYP CH,29/09/2018,ASDA SUPERSTORE,28.99,"GROCERY STORES, SUPERMARKETS"
CYP CH,29/09/2018,MCDONALDS,4.13,FAST FOOD RESTAURANTS
CYP CH,29/09/2018,ASDA SUPERSTORE,23.83,"GROCERY STORES, SUPERMARKETS"
CYP CH,29/09/2018,C.E.X LIMITED,20.00,ELECTRICAL PARTS AND EQUIPMENT
CYP CH,29/09/2018,C.E.X LIMITED,145.00,ELECTRICAL PARTS AND EQUIPMENT
CYP CH,29/09/2018,MCDONALDS,6.58,FAST FOOD RESTAURANTS
CYP CH,29/09/2018,ASDA GROCERIES ONLINE,68.43,"GROCERY STORES, SUPERMARKETS"
CYP CH,29/09/2018,ASDA GROCERIES ONLINE,-.55,"GROCERY STORES, SUPERMARKETS"
CYP CH,28/09/2018,MCDONALDS,12.10,FAST FOOD RESTAURANTS
CYP CH,28/09/2018,ASDA SUPERSTORE,12.95,"GROCERY STORES, SUPERMARKETS"
CYP CH,28/09/2018,ASDA SUPERSTORE,29.71,"GROCERY STORES, SUPERMARKETS"
CYP CH,28/09/2018,CENTRAL ENG COOP,1.40,DEPARTMENT STORES
CYP CH,28/09/2018,CENTRAL ENG COOP,12.06,DEPARTMENT STORES
CYP CH,28/09/2018,ALDI 43 772,65.05,"GROCERY STORES, SUPERMARKETS"
CYP CH,28/09/2018,APL /ALBATROS,8.00,LIMOUSINES AND TAXICABS
CYP CH,28/09/2018,WILKO RETAIL LIMIT,19.25,HOUSEHOLD APPLIANCE STORES
CYP CH,28/09/2018,MCDONALDS,2.97,FAST FOOD RESTAURANTS
CYP CH,27/09/2018,MCDONALDS,2.88,FAST FOOD RESTAURANTS
CYP CH,27/09/2018,CENTRAL ENG COOP,3.35,DEPARTMENT STORES
CYP CH,27/09/2018,CENTRAL ENG COOP,1.74,DEPARTMENT STORES
CYP CH,27/09/2018,CO-OP GROUP 070316,4.77,"GROCERY STORES, SUPERMARKETS"
CYP CH,27/09/2018,B & Q 1328,5.02,"BUILDING MATERIALS, LUMBER STORES"
CYP CH,27/09/2018,MCDONALDS,6.88,"EATING PLACES, RESTAURANTS"
CYP CH,01/10/2018,WWW.THREE.CO.UK,20.00,TELECOM INCL PREPAID/RECURRING PHONE SVCS
CYP CH,01/10/2018,ASDA SUPERSTORE,5.00,"GROCERY STORES, SUPERMARKETS"
CYP CH,01/10/2018,JD SPORTS INTERNET,38.99,SPORTING GOODS STORES
CYP CH,01/10/2018,ASDA SUPERSTORE,19.00,"GROCERY STORES, SUPERMARKETS"
CYP CH,01/10/2018,ASDA SUPERSTORE,22.00,"GROCERY STORES, SUPERMARKETS"
CYP CH,01/10/2018,MORLEY HAYES LEISURE L,14.00,SPORTING GOODS STORES
CYP CH,01/10/2018,WWW.THERANGE.CO.UK,203.20,"EQUIP, FURNITURE, HOME FURNSHNGS STRS (EXCPT APPL)"
CYP CH,01/10/2018,W M MORRISONS.COM,115.59,"GROCERY STORES, SUPERMARKETS"
CYP CH,01/10/2018,TIMPSON LTD,26.80,"HAT CLEANING SHOPS, SHOE REPAIR SHOPS, SHOE SHINE"
CYP CH,01/10/2018,CENTRAL ENG COOP,2.40,DEPARTMENT STORES
CYP CH,01/10/2018,ETSY.COM - STENCILIT,132.61,ACCESSORY AND APPAREL STORES-MISCELLANEOUS
CYP CH,01/10/2018,ASDA GROCERIES ONLINE,185.57,"GROCERY STORES, SUPERMARKETS"
CYP CH,01/10/2018,ASDA SUPERSTORE,58.72,"GROCERY STORES, SUPERMARKETS"
CYP CH,01/10/2018,ONE STOP 1487,3.00,"GROCERY STORES, SUPERMARKETS"
CYP CH,30/09/2018,MCDONALDS,5.17,FAST FOOD RESTAURANTS
CYP CH,02/10/2018,ALBATROSS CARS DERBY L,4.00,LIMOUSINES AND TAXICABS
CYP CH,02/10/2018,ASDA SUPERSTORE,10.00,"GROCERY STORES, SUPERMARKETS"
CYP CH,02/10/2018,ASDA SUPERSTORE,2.00,"GROCERY STORES, SUPERMARKETS"
CYP CH,02/10/2018,MCDONALDS,4.06,"EATING PLACES, RESTAURANTS"
CYP CH,02/10/2018,WWW.TENPIN.CO.UK,6.43,"CLUBS-CNTRY,MBRSHIP(ATHLET,REC,SPRTS,PRIVATE GOLF"
CYP CH,02/10/2018,SAINSBURYS 2059,14.00,"GROCERY STORES, SUPERMARKETS"
CYP CH,02/10/2018,WWW.TENPIN.CO.UK,35.20,"CLUBS-CNTRY,MBRSHIP(ATHLET,REC,SPRTS,PRIVATE GOLF"
CYP CH,02/10/2018,OXYGEN FREEJUMPING,13.50,"CLUBS-CNTRY,MBRSHIP(ATHLET,REC,SPRTS,PRIVATE GOLF"
CYP CH,02/10/2018,SAINSBURYS 2059,29.10,"GROCERY STORES, SUPERMARKETS"
CYP CH,02/10/2018,ALBATROSS CARS DERBY L,11.50,LIMOUSINES AND TAXICABS
CYP CH,02/10/2018,ALBATROSS CARS DERBY L,5.00,LIMOUSINES AND TAXICABS
CYP CH,02/10/2018,SHOWCASE DERBY,7.80,MOTION PICTURE THEATERS
CYP CH,02/10/2018,SHOWCASE DERBY,14.75,MOTION PICTURE THEATERS
CYP CH,02/10/2018,ALBATROSS CARS DERBY L,4.50,LIMOUSINES AND TAXICABS
CYP CH,02/10/2018,WWW.LITTLEOVER.DERBY.S,30.00,"SCHOOLS, ELEMENTARY AND SECONDARY"
CYP CH,02/10/2018,MCDONALDS,3.57,"EATING PLACES, RESTAURANTS"
CYP CH,02/10/2018,ALBATROSS CARS DERBY L,5.00,LIMOUSINES AND TAXICABS
CYP CH,02/10/2018,ALBATROSS CARS DERBY L,14.00,LIMOUSINES AND TAXICABS
CYP CH,02/10/2018,BOOTS 6558,84.19,"DRUG STORES, PHARMACIES"
CYP,02/07/2018,MCDONALDS,3.47,FAST FOOD RESTAURANTS
CYP,02/07/2018,CENTRAL ENG COOP,3.50,DEPARTMENT STORES
CYP,02/07/2018,TESCO STORE 2404,108.76,"GROCERY STORES, SUPERMARKETS"
CYP,02/07/2018,AMAZON UK MARKETPLACE,8.19,BOOK STORES
CYP,02/07/2018,AMAZON UK MARKETPLACE,23.99,BOOK STORES
CYP,03/07/2018,SAINSBURYS 2733,6.55,"GROCERY STORES, SUPERMARKETS"
CYP,03/07/2018,OXYGEN FREEJUMPING,95.00,"CLUBS-CNTRY,MBRSHIP(ATHLET,REC,SPRTS,PRIVATE GOLF"
CYP,03/07/2018,OXYGEN FREEJUMPING,95.00,"CLUBS-CNTRY,MBRSHIP(ATHLET,REC,SPRTS,PRIVATE GOLF"
CYP,03/07/2018,AMAZON DIGITAL SVCS,7.99,RECORD SHOPS
CYP,04/07/2018,ASDA SUPERSTORE,2.96,"GROCERY STORES, SUPERMARKETS"
CYP,04/07/2018,GIFFGAFF,20.00,TELECOM INCL PREPAID/RECURRING PHONE SVCS
CYP,04/07/2018,ESPO,145.80,GOVERNMENT SERVICES-NOT ELSEWHERE CLASSIFIED
CYP,04/07/2018,ESPO,25.88,GOVERNMENT SERVICES-NOT ELSEWHERE CLASSIFIED
CYP,04/07/2018,ASDA GROCERIES ONLINE,129.39,"GROCERY STORES, SUPERMARKETS"
CYP,04/07/2018,AMAZON EU,26.93,DIRECT MARKETING-OTHER DIRECT MARKETERS/NOT ELSEW.
CYP,04/07/2018,ASDA GROCERIES ONLINE,-1.90,"GROCERY STORES, SUPERMARKETS"
CYP,05/07/2018,MCDONALDS,9.25,FAST FOOD RESTAURANTS
CYP,05/07/2018,CINEWORLD BUR CP,33.40,"THEATRICAL PRODUCERS(EXCL MOTION PIX),TICKET AGNCY"
CYP,05/07/2018,SAINSBURYS SACAT 2059,4.00,"GROCERY STORES, SUPERMARKETS"
CYP,05/07/2018,MCDONALDS,7.96,"EATING PLACES, RESTAURANTS"
CYP,05/07/2018,SAINSBURYS SACAT 2059,7.20,"GROCERY STORES, SUPERMARKETS"
CYP,05/07/2018,TESCO STORE 2404,81.84,"GROCERY STORES, SUPERMARKETS"
CYP,05/07/2018,FARMFOODS- OSMASTO,35.46,"GROCERY STORES, SUPERMARKETS"
CYP,08/07/2018,SAINSBURYS LOC4716,13.85,"GROCERY STORES, SUPERMARKETS"
CYP,08/07/2018,KFC - DERBY XTRA,29.42,FAST FOOD RESTAURANTS
CYP,08/07/2018,SAINSBURYS SACAT 2733,3.85,"GROCERY STORES, SUPERMARKETS"
CYP,07/07/2018,NEW LOOK 1815,13.97,WOMEN'S READY TO WEAR STORES
CYP,07/07/2018,FOOT LOCKER,60.04,MISCELLANEOUS AND SPECIALTY RETAIL STORES
CYP,07/07/2018,TESCO STORES 2404,2.97,"GROCERY STORES, SUPERMARKETS"
CYP,07/07/2018,TESCO STORES 2404,26.00,"GROCERY STORES, SUPERMARKETS"
CYP,07/07/2018,SAINSBURYS SACAT 0751,6.20,"GROCERY STORES, SUPERMARKETS"
CYP,07/07/2018,ALDI 64 772,16.16,"GROCERY STORES, SUPERMARKETS"
CYP,07/07/2018,OXFORDUNIVERSITYPR,255.98,BOOK STORES
CYP,06/07/2018,TESCO STORE 2404,34.40,"GROCERY STORES, SUPERMARKETS"
CYP,06/07/2018,CURRYS ONLINE,169.99,ELECTRONIC SALES
CYP,06/07/2018,TESCO STORES 5886,2.60,"GROCERY STORES, SUPERMARKETS"
CYP,06/07/2018,AMAZON EU,39.99,DIRECT MARKETING-OTHER DIRECT MARKETERS/NOT ELSEW.
CYP,09/07/2018,LIDL UK,18.42,"GROCERY STORES, SUPERMARKETS"
CYP,09/07/2018,TESCO STORE 2404,3.40,"GROCERY STORES, SUPERMARKETS"
CYP,09/07/2018,SAINSBURYS TO YOU 2059,45.76,"GROCERY STORES, SUPERMARKETS"
CYP,11/07/2018,AMAZON UK MARKETPLACE,23.90,BOOK STORES
CYP,10/07/2018,B&M RETAIL,11.34,DISCOUNT STORES
CYP,10/07/2018,DNH GODADDY.COM EUROPE,131.98,COMPUTER NETWORK/INFORMATION SERVICES
CYP,10/07/2018,ASDA SUPERSTORE,46.06,"GROCERY STORES, SUPERMARKETS"
CYP,10/07/2018,ASDA SUPERSTORE,17.00,"GROCERY STORES, SUPERMARKETS"
CYP,10/07/2018,ASDA SUPERSTORE,23.51,"GROCERY STORES, SUPERMARKETS"
CYP,10/07/2018,ASDA SUPERSTORE,3.50,"GROCERY STORES, SUPERMARKETS"
CYP,10/07/2018,ASDA SUPERSTORE,11.20,"GROCERY STORES, SUPERMARKETS"
CYP,11/07/2018,AMAZON EU,103.98,DIRECT MARKETING-OTHER DIRECT MARKETERS/NOT ELSEW.
CYP,11/07/2018,AMAZON SVCS EU-UK AMAZ,49.95,BOOK STORES
CYP,11/07/2018,STAFFORDSHIRE COUNTY C,59.00,GOVERNMENT SERVICES-NOT ELSEWHERE CLASSIFIED
CYP,11/07/2018,HM PASSPORT,122.00,GOVERNMENT SERVICES-NOT ELSEWHERE CLASSIFIED
CYP,11/07/2018,HEX ALTONTOWERSHOLIDAY,237.89,TRAVEL AGENCIES AND TOUR OPERATORS
CYP,12/07/2018,MCDONALDS,2.99,FAST FOOD RESTAURANTS
CYP,12/07/2018,MFA BOWL,7.00,"CLUBS-CNTRY,MBRSHIP(ATHLET,REC,SPRTS,PRIVATE GOLF"
CYP,12/07/2018,ASDA SUPERSTORE,2.00,"GROCERY STORES, SUPERMARKETS"
CYP,12/07/2018,ASDA SUPERSTORE,13.48,"GROCERY STORES, SUPERMARKETS"
CYP,12/07/2018,ARGOS LTD,99.99,DISCOUNT STORES
CYP,12/07/2018,SAINSBURYS TO YOU 2059,42.85,"GROCERY STORES, SUPERMARKETS"
CYP,12/07/2018,ASDA GROCERIES ONLINE,94.53,"GROCERY STORES, SUPERMARKETS"
CYP,12/07/2018,ASDA GROCERIES ONLINE,64.48,"GROCERY STORES, SUPERMARKETS"
CYP,12/07/2018,WILKO RETAIL LIMIT,8.00,HOUSEHOLD APPLIANCE STORES
CYP,16/07/2018,,"-9,520.91",
CYP,15/07/2018,AMAZON EU,105.01,DIRECT MARKETING-OTHER DIRECT MARKETERS/NOT ELSEW.
CYP,14/07/2018,ARGOS LTD,99.99,DISCOUNT STORES
CYP,14/07/2018,ASDA SUPERSTORE,50.71,"GROCERY STORES, SUPERMARKETS"
CYP,14/07/2018,WILKO RETAIL LIMIT,19.50,HOUSEHOLD APPLIANCE STORES
CYP,14/07/2018,OXFORDUNIVERSITYPR,49.00,BOOK STORES
CYP,13/07/2018,ASDA SUPERSTORE,49.48,"GROCERY STORES, SUPERMARKETS"
CYP,13/07/2018,OCEAN FRESH AT STEVES,27.70,FAST FOOD RESTAURANTS
CYP,13/07/2018,ASDA SUPERSTORE,51.00,"GROCERY STORES, SUPERMARKETS"
CYP,13/07/2018,MCDONALDS,12.87,"EATING PLACES, RESTAURANTS"
CYP,13/07/2018,THE WORKS,23.55,DISCOUNT STORES
CYP,13/07/2018,ASDA SUPERSTORE,32.74,"GROCERY STORES, SUPERMARKETS"
CYP,13/07/2018,ASDA SUPERSTORE,4.65,"GROCERY STORES, SUPERMARKETS"
CYP,13/07/2018,WILKO.COM,20.00,MISCELLANEOUS GENERAL MERCHANDISE
CYP,13/07/2018,CINEWORLD,19.55,"THEATRICAL PRODUCERS(EXCL MOTION PIX),TICKET AGNCY"
CYP,13/07/2018,ASDA SUPERSTORE,6.00,"GROCERY STORES, SUPERMARKETS"
CYP,16/07/2018,WWW.HEALTHANDCARE.CO.U,234.99,DENTAL/LAB/MED/OPHTHALMIC HOSP EQUIP & SUPPLIES
CYP,16/07/2018,ARGOS LTD,7.99,DISCOUNT STORES
CYP,16/07/2018,B & Q 1328,107.00,"BUILDING MATERIALS, LUMBER STORES"
CYP,16/07/2018,IKEA LIMITED,87.00,"EQUIP, FURNITURE, HOME FURNSHNGS STRS (EXCPT APPL)"
CYP,16/07/2018,IKEA LIMITED,120.00,"EQUIP, FURNITURE, HOME FURNSHNGS STRS (EXCPT APPL)"
CYP,16/07/2018,SAINSBURYS TO YOU 2059,74.44,"GROCERY STORES, SUPERMARKETS"
CYP,16/07/2018,ASDA SUPERSTORE,12.87,"GROCERY STORES, SUPERMARKETS"
CYP,17/07/2018,SHOWCASE DERBY,9.75,MOTION PICTURE THEATERS
CYP,17/07/2018,AMAZON UK MARKETPLACE,11.99,BOOK STORES
CYP,17/07/2018,AMAZON SVCS EU-UK AMAZ,13.90,BOOK STORES
CYP,17/07/2018,AMAZON SVCS EU-UK AMAZ,34.98,BOOK STORES
CYP,17/07/2018,ASDA SUPERSTORE,130.04,"GROCERY STORES, SUPERMARKETS"
CYP,17/07/2018,ASDA SUPERSTORE,16.00,"GROCERY STORES, SUPERMARKETS"
CYP,17/07/2018,COOKSON PRECIOUS M,66.42,"PRECIOUS STONES AND METALS, WATCHES AND JEWELRY"
CYP,16/07/2018,PAYPAL  SLEEPSAFE,58.50,"HEALTH PRACTITIONERS, MEDICAL SRVCS-NOT ELSEWHERE"
CYP,18/07/2018,ALBATROSS CARS DERBY L,9.50,LIMOUSINES AND TAXICABS
CYP,18/07/2018,SMYTHS TOYS,4.99,"GAME, TOY, AND HOBBY SHOPS"
CYP,18/07/2018,SMYTHS TOYS,34.99,"GAME, TOY, AND HOBBY SHOPS"
CYP,18/07/2018,B&M RETAIL,11.86,DISCOUNT STORES
CYP,18/07/2018,ASDA GROCERIES ONLINE,85.10,"GROCERY STORES, SUPERMARKETS"
CYP,18/07/2018,ASDA GROCERIES ONLINE,-7.54,"GROCERY STORES, SUPERMARKETS"
CYP,18/07/2018,AMZ HOME SECURE,-11.99,MISCELLANEOUS AND SPECIALTY RETAIL STORES
CYP,19/07/2018,MCDONALDS,2.69,"EATING PLACES, RESTAURANTS"
CYP,19/07/2018,WWW.TENPIN.CO.UK,11.20,"CLUBS-CNTRY,MBRSHIP(ATHLET,REC,SPRTS,PRIVATE GOLF"
CYP,19/07/2018,DERBY LIVE,73.50,GOVERNMENT SERVICES-NOT ELSEWHERE CLASSIFIED
CYP,19/07/2018,DERBY LIVE,32.25,GOVERNMENT SERVICES-NOT ELSEWHERE CLASSIFIED
CYP,19/07/2018,DERBY LIVE,32.25,GOVERNMENT SERVICES-NOT ELSEWHERE CLASSIFIED
CYP,19/07/2018,DERBY LIVE,32.25,GOVERNMENT SERVICES-NOT ELSEWHERE CLASSIFIED
CYP,19/07/2018,DERBY LIVE,32.25,GOVERNMENT SERVICES-NOT ELSEWHERE CLASSIFIED
CYP,19/07/2018,SAINSBURYS TO YOU 2059,64.20,"GROCERY STORES, SUPERMARKETS"
CYP,19/07/2018,AMAZON SVCS EU-UK AMAZ,12.98,BOOK STORES
CYP,22/07/2018,AMAZON SVCS EU-UK AMAZ,22.88,BOOK STORES
CYP,21/07/2018,SAINSBURYS SACAT 2059,13.89,"GROCERY STORES, SUPERMARKETS"
CYP,21/07/2018,SAINSBURYS 2059,12.00,"GROCERY STORES, SUPERMARKETS"
CYP,21/07/2018,B&M RETAIL LTD,13.89,DISCOUNT STORES
CYP,21/07/2018,DUNELM LTD,40.00,"DRAPERY, UPOLSTERY, AND WINDOW COVERINGS STORES"
CYP,21/07/2018,THE RANGE,1.64,DEPARTMENT STORES
CYP,21/07/2018,TESCO STORES 2404,4.20,"GROCERY STORES, SUPERMARKETS"
CYP,21/07/2018,AMAZON DIGITAL SVCS,-3.36,RECORD SHOPS
CYP,20/07/2018,ARGOS LTD,10.99,DISCOUNT STORES
CYP,20/07/2018,ARGOS LTD,10.99,DISCOUNT STORES
CYP,20/07/2018,CURRYS SUPERSTORE,201.97,ELECTRONIC SALES
CYP,20/07/2018,DOMINOS PIZZA UK & IRE,43.97,"EATING PLACES, RESTAURANTS"
CYP,20/07/2018,POST OFFICE COUNTER,24.80,POSTAL SERVICES-GOVERNMENT ONLY
CYP,20/07/2018,ASDA SUPERSTORE,50.35,"GROCERY STORES, SUPERMARKETS"
CYP,20/07/2018,ASDA SUPERSTORE,25.59,"GROCERY STORES, SUPERMARKETS"
CYP,23/07/2018,ASDA SUPERSTORE,3.00,"GROCERY STORES, SUPERMARKETS"
CYP,23/07/2018,ASDA SUPERSTORE,6.50,"GROCERY STORES, SUPERMARKETS"
CYP,23/07/2018,WM MORRISON 078,20.39,"GROCERY STORES, SUPERMARKETS"
CYP,23/07/2018,TESCO STORE 2404,105.82,"GROCERY STORES, SUPERMARKETS"
CYP,24/07/2018,NATIONAL EXPRESS LIMIT,96.20,BUS LINES
CYP,24/07/2018,SAINSBURYS SACAT 0751,5.50,"GROCERY STORES, SUPERMARKETS"
CYP,24/07/2018,MCDONALDS,4.01,FAST FOOD RESTAURANTS
CYP,24/07/2018,ASDA SUPERSTORE,27.44,"GROCERY STORES, SUPERMARKETS"
CYP,24/07/2018,ASDA SUPERSTORE,25.06,"GROCERY STORES, SUPERMARKETS"
CYP,26/07/2018,AMZ AMAZON.CO.UK,-39.99,DIRECT MARKETING-OTHER DIRECT MARKETERS/NOT ELSEW.
CYP,25/07/2018,NATIONAL EXPRESS LIMIT,99.40,BUS LINES
CYP,25/07/2018,OXYGEN FREEJUMPING,76.00,"CLUBS-CNTRY,MBRSHIP(ATHLET,REC,SPRTS,PRIVATE GOLF"
CYP,25/07/2018,ASDA GROCERIES ONLINE,99.72,"GROCERY STORES, SUPERMARKETS"
CYP,25/07/2018,WWW.FCO.GOV.UK,65.50,GOVERNMENT SERVICES-NOT ELSEWHERE CLASSIFIED
CYP,26/07/2018,TESCO STORE 2404,105.10,"GROCERY STORES, SUPERMARKETS"
CYP,26/07/2018,MCDONALDS,9.98,FAST FOOD RESTAURANTS
CYP,26/07/2018,SAINSBURYS SACAT 0751,3.13,"GROCERY STORES, SUPERMARKETS"
CYP,25/07/2018,POLESBLINDS,11.27,"DRAPERY, UPOLSTERY, AND WINDOW COVERINGS STORES"
CYP,29/07/2018,PIZZA HUT - DE22 3LJ,24.99,"EATING PLACES, RESTAURANTS"
CYP,29/07/2018,AMAZON SVCS EU-UK AMAZ,107.99,BOOK STORES
CYP,28/07/2018,THE BUBBLE INN,35.00,"BAR,LOUNGE,DISCO,NIGHTCLUB,TAVERN-ALCOHOLIC DRINKS"
CYP,28/07/2018,TESCO STORES 5329,2.50,"GROCERY STORES, SUPERMARKETS"
CYP,28/07/2018,NATIONAL EXPRESS LIMIT,63.00,BUS LINES
CYP,28/07/2018,ASDA SUPERSTORE,6.13,"GROCERY STORES, SUPERMARKETS"
CYP,28/07/2018,ASDA SUPERSTORE,2.79,"GROCERY STORES, SUPERMARKETS"
CYP,28/07/2018,TESCO STORE 2404,15.10,"GROCERY STORES, SUPERMARKETS"
CYP,28/07/2018,ASDA GROCERIES ONLINE,99.63,"GROCERY STORES, SUPERMARKETS"
CYP,28/07/2018,ASDA SUPERSTORE,8.50,"GROCERY STORES, SUPERMARKETS"
CYP,27/07/2018,ASDA SUPERSTORE,7.93,"GROCERY STORES, SUPERMARKETS"
CYP,27/07/2018,ASDA SUPERSTORE,65.34,"GROCERY STORES, SUPERMARKETS"
CYP,27/07/2018,OXYGEN FREEJUMPING,19.00,"CLUBS-CNTRY,MBRSHIP(ATHLET,REC,SPRTS,PRIVATE GOLF"
CYP,27/07/2018,OXYGEN FREEJUMPING,28.50,"CLUBS-CNTRY,MBRSHIP(ATHLET,REC,SPRTS,PRIVATE GOLF"
CYP,27/07/2018,SAINSBURYS SACAT 2059,18.26,"GROCERY STORES, SUPERMARKETS"
CYP,27/07/2018,ASDA SUPERSTORE,108.27,"GROCERY STORES, SUPERMARKETS"
CYP,27/07/2018,WWW.OXYGENFREEJUMP,66.50,"CLUBS-CNTRY,MBRSHIP(ATHLET,REC,SPRTS,PRIVATE GOLF"
CYP,27/07/2018,SAINSBURYS SACAT 0751,6.15,"GROCERY STORES, SUPERMARKETS"
CYP,30/07/2018,SAINSBURYS 2059,95.48,"GROCERY STORES, SUPERMARKETS"
CYP,30/07/2018,SAINSBURYS 2059,28.45,"GROCERY STORES, SUPERMARKETS"
CYP,30/07/2018,ICELAND,32.37,"GROCERY STORES, SUPERMARKETS"
CYP,30/07/2018,BIRDS CHADDESDEN,9.64,BAKERIES
CYP,30/07/2018,OCEAN FRESH AT STEVES,6.80,FAST FOOD RESTAURANTS
CYP,30/07/2018,TESCO STORE 2404,4.10,"GROCERY STORES, SUPERMARKETS"
CYP,31/07/2018,ASDA SUPERSTORE,64.25,"GROCERY STORES, SUPERMARKETS"
CYP,31/07/2018,AMAZON.CO.UK,51.99,DIRECT MARKETING-OTHER DIRECT MARKETERS/NOT ELSEW.
CYP,31/07/2018,HERON FOODS LTD,24.86,"MISC FOOD STORE-CONVENIENCE,MRKT,SPLTY,VENDNG MACS"
CYP,31/07/2018,DRAYTON MANOR PARK LIM,304.00,"AMUSEMENT PARKS,CARNIVALS,CIRCUS,FORTUNE TELLERS"
CYP,31/07/2018,AMZN MKTP UK,20.85,BOOK STORES
CYP,02/08/2018,,40.00,
CYP,01/08/2018,COSTA @ TESCO,3.25,FAST FOOD RESTAURANTS
CYP,02/08/2018,TESCO STORES 5886,8.60,"GROCERY STORES, SUPERMARKETS"
CYP,02/08/2018,CONKERS DISCOVERY,240.00,RECREATION SERVICES (NOT ELSEWHERE CLASSIFIED)
CYP,02/08/2018,ALTON TOWERS,7.20,"AMUSEMENT PARKS,CARNIVALS,CIRCUS,FORTUNE TELLERS"
CYP,02/08/2018,ATP-BURGER MBAY,10.10,"AMUSEMENT PARKS,CARNIVALS,CIRCUS,FORTUNE TELLERS"
CYP,02/08/2018,TESCO STORE 2404,87.17,"GROCERY STORES, SUPERMARKETS"
CYP,02/08/2018,WWW.YORKSHIREWILDLIFEP,8.50,"AQUARIUMS, DOLPHINARIUMS, AND SEAQUARIUMS"
CYP,01/08/2018,TESCO STORES 3327,13.03,"GROCERY STORES, SUPERMARKETS"
CYP,01/08/2018,MCDONALDS,8.68,"EATING PLACES, RESTAURANTS"
CYP,01/08/2018,ASDA SUPERSTORE,5.00,"GROCERY STORES, SUPERMARKETS"
CYP,01/08/2018,ASDA SUPERSTORE,2.39,"GROCERY STORES, SUPERMARKETS"
CYP,01/08/2018,ALTON TOWERS,12.00,"AMUSEMENT PARKS,CARNIVALS,CIRCUS,FORTUNE TELLERS"
CYP,01/08/2018,ARDEN WINCH & CO L,27.36,"DURABLE GOODS, NOT ELSEWHERE CLASSIFIED"
CYP,05/08/2018,BUTLINS SHOPS,5.85,"GROCERY STORES, SUPERMARKETS"
CYP,05/08/2018,BUTLINS SHOPS,33.97,"GROCERY STORES, SUPERMARKETS"
CYP,04/08/2018,BUTLINS REDS BAR,2.10,"BAR,LOUNGE,DISCO,NIGHTCLUB,TAVERN-ALCOHOLIC DRINKS"
CYP,04/08/2018,BUTLINS SHOPS,6.00,"GROCERY STORES, SUPERMARKETS"
CYP,04/08/2018,BUTLINS REDS BAR,2.20,"BAR,LOUNGE,DISCO,NIGHTCLUB,TAVERN-ALCOHOLIC DRINKS"
CYP,04/08/2018,TESCO STORES 2404,10.50,"GROCERY STORES, SUPERMARKETS"
CYP,04/08/2018,TESCO STORES 5886,5.10,"GROCERY STORES, SUPERMARKETS"
CYP,04/08/2018,ASDA GROCERIES ONLINE,82.15,"GROCERY STORES, SUPERMARKETS"
CYP,04/08/2018,ASDA GROCERIES ONLINE,-1.15,"GROCERY STORES, SUPERMARKETS"
CYP,04/08/2018,ASDA GROCERIES ONLINE,-.50,"GROCERY STORES, SUPERMARKETS"
CYP,03/08/2018,TESCO STORES 3228,46.00,"GROCERY STORES, SUPERMARKETS"
CYP,03/08/2018,THE TWELVE OARS,40.40,"BAR,LOUNGE,DISCO,NIGHTCLUB,TAVERN-ALCOHOLIC DRINKS"
CYP,03/08/2018,NANDOS DERBY,27.95,"EATING PLACES, RESTAURANTS"
CYP,03/08/2018,QUEENS LEISURE CENTRE,10.80,"CLUBS-CNTRY,MBRSHIP(ATHLET,REC,SPRTS,PRIVATE GOLF"
CYP,03/08/2018,THE FRIENDLY FARMER,2.20,"EATING PLACES, RESTAURANTS"
CYP,03/08/2018,MCDONALDS,10.67,FAST FOOD RESTAURANTS
CYP,03/08/2018,ALDI STORES 779-105,44.63,"GROCERY STORES, SUPERMARKETS"
CYP,06/08/2018,AQUA PARK RUTLAND LTD,160.00,COMPUTER SOFTWARE STORES
CYP,06/08/2018,APPLE TREE,30.37,"EATING PLACES, RESTAURANTS"
CYP,06/08/2018,TESCO STORE 2404,96.34,"GROCERY STORES, SUPERMARKETS"
CYP,06/08/2018,ASDA GROCERIES ONLINE,98.99,"GROCERY STORES, SUPERMARKETS"
CYP,06/08/2018,ALDI 10 772,15.39,"GROCERY STORES, SUPERMARKETS"
CYP,06/08/2018,ASDA GROCERIES ONLINE,-.06,"GROCERY STORES, SUPERMARKETS"
CYP,05/08/2018,BUTLINS LEISURE,3.75,"BAR,LOUNGE,DISCO,NIGHTCLUB,TAVERN-ALCOHOLIC DRINKS"
CYP,05/08/2018,BUTLINS BURGER KING,5.19,FAST FOOD RESTAURANTS
CYP,05/08/2018,BUTLINS SOHO COFFEE,14.95,"BAR,LOUNGE,DISCO,NIGHTCLUB,TAVERN-ALCOHOLIC DRINKS"
CYP,07/08/2018,HM PASSPORT OFFICE,80.50,GOVERNMENT SERVICES-NOT ELSEWHERE CLASSIFIED
CYP,07/08/2018,DERBY LIVE,76.50,GOVERNMENT SERVICES-NOT ELSEWHERE CLASSIFIED
CYP,07/08/2018,DERBY LIVE,73.50,GOVERNMENT SERVICES-NOT ELSEWHERE CLASSIFIED
CYP,07/08/2018,DERBY LIVE,73.50,GOVERNMENT SERVICES-NOT ELSEWHERE CLASSIFIED
CYP,07/08/2018,WWW.ALDI.CO.UK,15.94,"GROCERY STORES, SUPERMARKETS"
CYP,07/08/2018,WILKO RETAIL LIMIT,9.00,HOUSEHOLD APPLIANCE STORES
CYP,07/08/2018,ASDA SUPERSTORE,14.00,"GROCERY STORES, SUPERMARKETS"
CYP,08/08/2018,WELCOME BREAK OXFORD N,2.78,"MISC FOOD STORE-CONVENIENCE,MRKT,SPLTY,VENDNG MACS"
CYP,08/08/2018,THORPE PARK RESORT,8.30,RECREATION SERVICES (NOT ELSEWHERE CLASSIFIED)
CYP,08/08/2018,THORPE PARK RESORT,7.20,RECREATION SERVICES (NOT ELSEWHERE CLASSIFIED)
CYP,08/08/2018,THORPE PARK RESORT,3.20,"AMUSEMENT PARKS,CARNIVALS,CIRCUS,FORTUNE TELLERS"
CYP,08/08/2018,THORPE PARK RESORT,3.72,"AMUSEMENT PARKS,CARNIVALS,CIRCUS,FORTUNE TELLERS"
CYP,08/08/2018,SYMBOLS WORLDWIDE LTD,100.00,COMPUTER SOFTWARE STORES
CYP,08/08/2018,POUNDLAND LTD 1039,29.00,DISCOUNT STORES
CYP,08/08/2018,BIRDS CHADDESDEN,6.10,BAKERIES
CYP,08/08/2018,MERCHANT RENTALS LTD,180.00,"EQUIPMENT RENTAL&LEASING SVS, FURNTURE/TOOL RENTAL"
CYP,08/08/2018,ASDA GROCERIES ONLINE,101.41,"GROCERY STORES, SUPERMARKETS"
CYP,09/08/2018,TESCO STORE 2404,79.47,"GROCERY STORES, SUPERMARKETS"
CYP,09/08/2018,TESCO STORES 5886,2.30,"GROCERY STORES, SUPERMARKETS"
CYP,09/08/2018,OCEAN FRESH AT STEVES,4.40,FAST FOOD RESTAURANTS
CYP,11/08/2018,ASDA GROCERIES ONLINE,99.99,"GROCERY STORES, SUPERMARKETS"
CYP,11/08/2018,ASDA GROCERIES ONLINE,-1.09,"GROCERY STORES, SUPERMARKETS"
CYP,11/08/2018,ASDA GROCERIES ONLINE,.01,"GROCERY STORES, SUPERMARKETS"
CYP,10/08/2018,TESCO STORE 2404,21.84,"GROCERY STORES, SUPERMARKETS"
CYP,10/08/2018,CHELLASTON STOR 311042,2.09,"GROCERY STORES, SUPERMARKETS"
CYP,10/08/2018,SAINSBURYS SACAT 0751,10.70,"GROCERY STORES, SUPERMARKETS"
CYP,13/08/2018,SAINSBURYS SACAT 2059,22.44,"GROCERY STORES, SUPERMARKETS"
CYP,13/08/2018,SMYTHS TOYS,61.01,"GAME, TOY, AND HOBBY SHOPS"
CYP,13/08/2018,TESCO STORE 2404,108.87,"GROCERY STORES, SUPERMARKETS"
CYP,13/08/2018,ASDA SUPERSTORE,4.00,"GROCERY STORES, SUPERMARKETS"
CYP,13/08/2018,ASDA SUPERSTORE,10.73,"GROCERY STORES, SUPERMARKETS"
CYP,14/08/2018,WWW.GAME.CO.UK,10.00,"GAME, TOY, AND HOBBY SHOPS"
CYP,14/08/2018,SHOWCASE CINEMAS,18.95,MOTION PICTURE THEATERS
CYP,14/08/2018,FIVE GUYS DERBY,28.70,FAST FOOD RESTAURANTS
CYP,14/08/2018,QUEENS LEISURE CENTRE,7.85,"CLUBS-CNTRY,MBRSHIP(ATHLET,REC,SPRTS,PRIVATE GOLF"
CYP,14/08/2018,ALTON TOWERS,8.00,"AMUSEMENT PARKS,CARNIVALS,CIRCUS,FORTUNE TELLERS"
CYP,14/08/2018,EASTERN EXPRESS ALTON,5.99,"EATING PLACES, RESTAURANTS"
CYP,14/08/2018,MCDONALDS,2.79,FAST FOOD RESTAURANTS
CYP,14/08/2018,DRAYTON MANOR PARK LIM,80.00,"AMUSEMENT PARKS,CARNIVALS,CIRCUS,FORTUNE TELLERS"
CYP,14/08/2018,UTTOXETER GREGGS,2.00,"EATING PLACES, RESTAURANTS"
CYP,14/08/2018,ASDA GEORGE COM LEEDS,34.50,"GROCERY STORES, SUPERMARKETS"
CYP,14/08/2018,WILKO.COM,58.00,MISCELLANEOUS GENERAL MERCHANDISE
CYP,16/08/2018,,"-7,353.30",
CYP,15/08/2018,MCDONALDS,13.24,FAST FOOD RESTAURANTS
CYP,15/08/2018,BOUNCE REVOLUTION,15.00,RECREATION SERVICES (NOT ELSEWHERE CLASSIFIED)
CYP,15/08/2018,HERON FOODS LTD,8.48,"MISC FOOD STORE-CONVENIENCE,MRKT,SPLTY,VENDNG MACS"
CYP,15/08/2018,TESCO STORES 5957,13.10,"GROCERY STORES, SUPERMARKETS"
CYP,15/08/2018,EAST MIDLANDS TRAI,22.20,PASSENGER RAILWAYS
CYP,15/08/2018,AMZN MKTP UK,34.47,BOOK STORES
CYP,15/08/2018,ASDA GROCERIES ONLINE,64.90,"GROCERY STORES, SUPERMARKETS"
CYP,15/08/2018,DNH GODADDY.COM EUROPE,-131.98,COMPUTER NETWORK/INFORMATION SERVICES
CYP,16/08/2018,TESCO STORES 5886,3.50,"GROCERY STORES, SUPERMARKETS"
CYP,16/08/2018,MERCHANT RENTALS LTD,180.00,"EQUIPMENT RENTAL&LEASING SVS, FURNTURE/TOOL RENTAL"
CYP,16/08/2018,AMZN MKTP UK,17.00,BOOK STORES
CYP,16/08/2018,TESCO STORE 2404,77.41,"GROCERY STORES, SUPERMARKETS"
CYP,16/08/2018,INTERNATIONAL LAMPS LI,35.30,HARDWARE STORES
CYP,16/08/2018,ASDA SUPERSTORE,50.00,"GROCERY STORES, SUPERMARKETS"
CYP,16/08/2018,AMAZON.CO.UK,31.43,DIRECT MARKETING-OTHER DIRECT MARKETERS/NOT ELSEW.
CYP,16/08/2018,AMZN MKTP UK,12.48,BOOK STORES
CYP,15/08/2018,PLATFORM 1,2.60,FAST FOOD RESTAURANTS
CYP,19/08/2018,TESCO STORES 2404,16.77,"GROCERY STORES, SUPERMARKETS"
CYP,17/08/2018,ASDA SUPERSTORE,130.21,"GROCERY STORES, SUPERMARKETS"
CYP,17/08/2018,TESCO STORES 5886,9.00,"GROCERY STORES, SUPERMARKETS"
CYP,17/08/2018,PAINT A POT,40.00,"GIFT, CARD, NOVELTY AND SOUVENIR SHOPS"
CYP,17/08/2018,OSMASTON PARK,59.00,DISCOUNT STORES
CYP,17/08/2018,OSMASTON PARK,59.00,DISCOUNT STORES
CYP,17/08/2018,ASDA GROCERIES ONLINE,92.80,"GROCERY STORES, SUPERMARKETS"
CYP,17/08/2018,ASDA GROCERIES ONLINE,-1.15,"GROCERY STORES, SUPERMARKETS"
CYP,17/08/2018,ASDA GROCERIES ONLINE,-2.00,"GROCERY STORES, SUPERMARKETS"
CYP,20/08/2018,TESCO STORE 2404,50.58,"GROCERY STORES, SUPERMARKETS"
CYP,20/08/2018,MCDONALDS,2.18,FAST FOOD RESTAURANTS
CYP,20/08/2018,MCDONALDS,2.38,FAST FOOD RESTAURANTS
CYP,20/08/2018,CENTRAL ENG COOP,4.00,DEPARTMENT STORES
CYP,20/08/2018,ASDA GROCERIES ONLINE,33.04,"GROCERY STORES, SUPERMARKETS"
CYP,20/08/2018,ASDA  STORE LTD4252,46.10,"GROCERY STORES, SUPERMARKETS"
CYP,20/08/2018,LIDL UK,12.66,"GROCERY STORES, SUPERMARKETS"
CYP,19/08/2018,THE RAGLEY BOAT,51.06,"EATING PLACES, RESTAURANTS"
CYP,21/08/2018,ODEON,7.48,MOTION PICTURE THEATERS
CYP,21/08/2018,ALBATROSS CARS DERBY L,13.80,LIMOUSINES AND TAXICABS
CYP,21/08/2018,ODEON/BOOKIT,19.00,MOTION PICTURE THEATERS
CYP,21/08/2018,CO-OP GROUP 070235,4.75,"GROCERY STORES, SUPERMARKETS"
CYP,21/08/2018,HMCOURTS-SERVICE.G,20.00,FINES
CYP,21/08/2018,SHOWCASE DERBY,62.80,MOTION PICTURE THEATERS
CYP,21/08/2018,ODEON,45.00,MOTION PICTURE THEATERS
CYP,21/08/2018,SAINSBURYS LOC4741,3.30,"GROCERY STORES, SUPERMARKETS"
CYP,22/08/2018,ASDA SUPERSTORE,5.65,"GROCERY STORES, SUPERMARKETS"
CYP,22/08/2018,ASDA SUPERSTORE,3.99,"GROCERY STORES, SUPERMARKETS"
CYP,22/08/2018,PREMIER,9.30,"GROCERY STORES, SUPERMARKETS"
CYP,22/08/2018,LIDL UK,2.00,"GROCERY STORES, SUPERMARKETS"
CYP,22/08/2018,LIDL UK,21.31,"GROCERY STORES, SUPERMARKETS"
CYP,23/08/2018,KFC,6.19,FAST FOOD RESTAURANTS
CYP,23/08/2018,TEAMPORT,82.00,"AMUSEMENT PARKS,CARNIVALS,CIRCUS,FORTUNE TELLERS"
CYP,23/08/2018,MCDONALDS,9.80,FAST FOOD RESTAURANTS
CYP,23/08/2018,TEAM SPORT V/T,40.00,"AMUSEMENT PARKS,CARNIVALS,CIRCUS,FORTUNE TELLERS"
CYP,23/08/2018,FFESTINIOG AND WELSH H,47.40,"TRANSPRTN-SUBRBN & LOCAL COMTR PSNGR, INCL FERRIES"
CYP,23/08/2018,TESCO STORE 2404,69.52,"GROCERY STORES, SUPERMARKETS"
CYP,23/08/2018,FARMFOODS- OSMASTO,23.97,"GROCERY STORES, SUPERMARKETS"
CYP,23/08/2018,WWW.ARGOS.CO.UK,69.93,DISCOUNT STORES
CYP,23/08/2018,ASDA GROCERIES ONLINE,96.33,"GROCERY STORES, SUPERMARKETS"
CYP,23/08/2018,ASDA GROCERIES ONLINE,49.15,"GROCERY STORES, SUPERMARKETS"
CYP,23/08/2018,ASDA GROCERIES ONLINE,-.39,"GROCERY STORES, SUPERMARKETS"
CYP,27/08/2018,THE ORIENT,26.80,FAST FOOD RESTAURANTS
CYP,27/08/2018,WELCOME BREAK STARBUCK,11.89,"MISC FOOD STORE-CONVENIENCE,MRKT,SPLTY,VENDNG MACS"
CYP,27/08/2018,TESCO STORE 2404,66.68,"GROCERY STORES, SUPERMARKETS"
CYP,27/08/2018,WELCOME BREAK,24.22,"MISC FOOD STORE-CONVENIENCE,MRKT,SPLTY,VENDNG MACS"
CYP,27/08/2018,FARMFOODS- OSMASTO,23.26,"GROCERY STORES, SUPERMARKETS"
CYP,27/08/2018,SAINSBURYS LOC4753,6.25,"GROCERY STORES, SUPERMARKETS"
CYP,26/08/2018,KING DO CHINESE TAKEAW,23.00,"EATING PLACES, RESTAURANTS"
CYP,26/08/2018,DOMINOS PIZZA 28329,17.99,FAST FOOD RESTAURANTS
CYP,25/08/2018,TESCO STORE 2404,2.00,"GROCERY STORES, SUPERMARKETS"
CYP,25/08/2018,ASDA SUPERSTORE,2.78,"GROCERY STORES, SUPERMARKETS"
CYP,25/08/2018,ASDA SUPERSTORE,7.09,"GROCERY STORES, SUPERMARKETS"
CYP,25/08/2018,ASDA SUPERSTORE,106.06,"GROCERY STORES, SUPERMARKETS"
CYP,24/08/2018,MCDONALDS,1.29,FAST FOOD RESTAURANTS
CYP,24/08/2018,TESCO STORE 2404,8.94,"GROCERY STORES, SUPERMARKETS"
CYP,24/08/2018,ASDA SUPERSTORE,30.18,"GROCERY STORES, SUPERMARKETS"
CYP,28/08/2018,WM MORRISONS STORE,22.58,"GROCERY STORES, SUPERMARKETS"
CYP,28/08/2018,SAINSBURYS SACAT 2059,22.00,"GROCERY STORES, SUPERMARKETS"
CYP,28/08/2018,SAINSBURYS SACAT 2059,4.20,"GROCERY STORES, SUPERMARKETS"
CYP,28/08/2018,SAINSBURYS SACAT 2059,27.50,"GROCERY STORES, SUPERMARKETS"
CYP,28/08/2018,ASDA STORE  4514,6.69,"GROCERY STORES, SUPERMARKETS"
CYP,28/08/2018,ATP-BURGER CLOUD,21.60,"AMUSEMENT PARKS,CARNIVALS,CIRCUS,FORTUNE TELLERS"
CYP,28/08/2018,WM MORRISON 078,10.72,"GROCERY STORES, SUPERMARKETS"
CYP,28/08/2018,ATP ADMISSIONS,61.00,"AMUSEMENT PARKS,CARNIVALS,CIRCUS,FORTUNE TELLERS"
CYP,28/08/2018,ASDA GROCERIES ONLINE,31.90,"GROCERY STORES, SUPERMARKETS"
CYP,28/08/2018,ASDA GROCERIES ONLINE,-.90,"GROCERY STORES, SUPERMARKETS"
CYP,27/08/2018,ZANFISH VILLAGE,4.80,"EATING PLACES, RESTAURANTS"
CYP,29/08/2018,WATERMARGIN,59.70,"EATING PLACES, RESTAURANTS"
CYP,29/08/2018,ASDA SUPERSTORE,30.15,"GROCERY STORES, SUPERMARKETS"
CYP,29/08/2018,OZZELL BOWL,11.50,BOWLING ALLEYS
CYP,29/08/2018,POST OFFICE COUNTER,27.60,POSTAL SERVICES-GOVERNMENT ONLY
CYP,29/08/2018,INTU PARKING DERBY,3.10,AUTOMOBILE PARKING LOTS AND GARAGES
CYP,29/08/2018,ASDA SUPERSTORE,3.73,"GROCERY STORES, SUPERMARKETS"
CYP,29/08/2018,ASDA GROCERIES ONLINE,117.12,"GROCERY STORES, SUPERMARKETS"
CYP,29/08/2018,ASDA GROCERIES ONLINE,46.22,"GROCERY STORES, SUPERMARKETS"
CYP,29/08/2018,ASDA GROCERIES ONLINE,-.71,"GROCERY STORES, SUPERMARKETS"
CYP,29/08/2018,ASDA GROCERIES ONLINE,-2.00,"GROCERY STORES, SUPERMARKETS"
CYP,29/08/2018,ASDA STORES LTD,7.00,"GROCERY STORES, SUPERMARKETS"
CYP,30/08/2018,ASDA SUPERSTORE,6.00,"GROCERY STORES, SUPERMARKETS"
CYP,30/08/2018,TESCO STORE 2404,86.28,"GROCERY STORES, SUPERMARKETS"
CYP,30/08/2018,SAINSBURYS SACAT 2162,25.90,"GROCERY STORES, SUPERMARKETS"
CYP,30/08/2018,TESCO STORES 2404,5.30,"GROCERY STORES, SUPERMARKETS"
CYP,30/08/2018,STORE FIRST,76.00,"COURIER SVC-AIR & GROUND, FREIGHT FORWARDERS"
CYP,30/08/2018,ALBATROSS CARS DERBY L,12.10,LIMOUSINES AND TAXICABS
CYP,30/08/2018,FARMFOODS- DERBY,6.00,"GROCERY STORES, SUPERMARKETS"
CYP,30/08/2018,WWW.NISBETS.COM,47.97,DIRECT MARKETING-CATALOG MERCHANTS
CYP,30/08/2018,WWW.NISBETS.COM,79.12,DIRECT MARKETING-CATALOG MERCHANTS
CYP,30/08/2018,SHOWCASE DERBY,28.00,MOTION PICTURE THEATERS
CYP,30/08/2018,ASDA SUPERSTORE,27.58,"GROCERY STORES, SUPERMARKETS"
CYP,02/09/2018,TESCO STORE 2404,3.78,"GROCERY STORES, SUPERMARKETS"
CYP,02/09/2018,MFA BOWL  ILKESTON,3.50,BOWLING ALLEYS
CYP,02/09/2018,JUST EAT,37.20,FAST FOOD RESTAURANTS
CYP,01/09/2018,POR FOOD,54.80,FAST FOOD RESTAURANTS
CYP,01/09/2018,W M MORRISONS,10.70,"GROCERY STORES, SUPERMARKETS"
CYP,01/09/2018,THE WORKS,10.05,DISCOUNT STORES
CYP,01/09/2018,TESCO STORES 3297,43.05,"GROCERY STORES, SUPERMARKETS"
CYP,31/08/2018,MCDONALDS,20.49,"EATING PLACES, RESTAURANTS"
CYP,31/08/2018,ASDA SUPERSTORE,16.83,"GROCERY STORES, SUPERMARKETS"
CYP,31/08/2018,SAINSBURYS SACAT 2059,7.20,"GROCERY STORES, SUPERMARKETS"
CYP,31/08/2018,ASDA SUPERSTORE,4.50,"GROCERY STORES, SUPERMARKETS"
CYP,31/08/2018,ODEON/BOOKIT,17.70,MOTION PICTURE THEATERS
CYP,31/08/2018,ODEON/BOOKIT,35.40,MOTION PICTURE THEATERS
CYP,31/08/2018,ASDA GROCERIES ONLINE,57.25,"GROCERY STORES, SUPERMARKETS"
CYP,31/08/2018,SAINSBURYS SACAT 2059,.65,"GROCERY STORES, SUPERMARKETS"
CYP,31/08/2018,ASDA GROCERIES ONLINE,-2.00,"GROCERY STORES, SUPERMARKETS"
CYP,03/09/2018,IZ  786 DESSERTS,8.95,"EATING PLACES, RESTAURANTS"
CYP,03/09/2018,WELCOME BREAK BK,30.47,"MISC FOOD STORE-CONVENIENCE,MRKT,SPLTY,VENDNG MACS"
CYP,03/09/2018,ASDA SUPERSTORE,7.14,"GROCERY STORES, SUPERMARKETS"
CYP,03/09/2018,SAINSBURYS TO YOU 2059,82.64,"GROCERY STORES, SUPERMARKETS"
CYP,31/08/2018,WAKEFIELD MDC MOTO,15.00,GOVERNMENT SERVICES-NOT ELSEWHERE CLASSIFIED
CYP,04/09/2018,ASDA SUPERSTORE,10.49,"GROCERY STORES, SUPERMARKETS"
CYP,04/09/2018,ASDA SUPERSTORE,2.00,"GROCERY STORES, SUPERMARKETS"
CYP,04/09/2018,ASDA SUPERSTORE,8.00,"GROCERY STORES, SUPERMARKETS"
CYP,04/09/2018,ASDA SUPERSTORE,6.00,"GROCERY STORES, SUPERMARKETS"
CYP,04/09/2018,ASDA SUPERSTORE,5.30,"GROCERY STORES, SUPERMARKETS"
CYP,04/09/2018,TAILORED BRANDING LTD,138.74,SPORTING GOODS STORES
CYP,04/09/2018,TESCO STORE 2404,6.98,"GROCERY STORES, SUPERMARKETS"
CYP,04/09/2018,WILKO RETAIL LIMIT,22.00,HOUSEHOLD APPLIANCE STORES
CYP,04/09/2018,ASDA SUPERSTORE,9.00,"GROCERY STORES, SUPERMARKETS"
CYP,04/09/2018,ASDA GROCERIES ONLINE,67.73,"GROCERY STORES, SUPERMARKETS"
CYP,04/09/2018,BOOTS 0023,3.59,"DRUG STORES, PHARMACIES"
CYP,05/09/2018,ONE STOP 1487,20.00,"GROCERY STORES, SUPERMARKETS"
CYP,05/09/2018,J D SPORTS 267,88.05,SPORTING GOODS STORES
CYP,05/09/2018,ASDA SUPERSTORE,67.54,"GROCERY STORES, SUPERMARKETS"
CYP,06/09/2018,MCDONALDS,3.87,FAST FOOD RESTAURANTS
CYP,06/09/2018,CURRY STORES,319.00,ELECTRONIC SALES
CYP,06/09/2018,WWW.ARGOS.CO.UK,18.95,DISCOUNT STORES
CYP,06/09/2018,TESCO STORES 5886,2.70,"GROCERY STORES, SUPERMARKETS"
CYP,06/09/2018,TESCO STORE 2404,95.68,"GROCERY STORES, SUPERMARKETS"
CYP,06/09/2018,WWW.NISBETS.COM,82.75,DIRECT MARKETING-CATALOG MERCHANTS
CYP,06/09/2018,SAINSBURYS SACAT 0751,12.25,"GROCERY STORES, SUPERMARKETS"
CYP,06/09/2018,B&M RETAIL,32.00,DISCOUNT STORES
CYP,06/09/2018,XL DISPLAYS LTD,348.00,"DURABLE GOODS, NOT ELSEWHERE CLASSIFIED"
CYP,06/09/2018,ASDA GROCERIES ONLINE,99.55,"GROCERY STORES, SUPERMARKETS"
CYP,06/09/2018,WWW.FCO.GOV.UK,35.50,GOVERNMENT SERVICES-NOT ELSEWHERE CLASSIFIED
CYP,09/09/2018,TESCO STORES 2404,4.60,"GROCERY STORES, SUPERMARKETS"
CYP,09/09/2018,ASDA SUPERSTORE,14.12,"GROCERY STORES, SUPERMARKETS"
CYP,08/09/2018,ASDA SUPERSTORE,8.00,"GROCERY STORES, SUPERMARKETS"
CYP,08/09/2018,WWW.NISBETS.COM,38.77,DIRECT MARKETING-CATALOG MERCHANTS
CYP,08/09/2018,ASDA SUPERSTORE,38.56,"GROCERY STORES, SUPERMARKETS"
CYP,08/09/2018,ASDA SUPERSTORE,43.28,"GROCERY STORES, SUPERMARKETS"
CYP,07/09/2018,INTU PARKING DERBY,3.10,AUTOMOBILE PARKING LOTS AND GARAGES
CYP,07/09/2018,PIZZA EXPRESS,46.25,"EATING PLACES, RESTAURANTS"
CYP,07/09/2018,KFC DERBY,19.63,FAST FOOD RESTAURANTS
CYP,07/09/2018,ASDA SUPERSTORE,111.82,"GROCERY STORES, SUPERMARKETS"
CYP,07/09/2018,ASDA GROCERIES ONLINE,99.73,"GROCERY STORES, SUPERMARKETS"
CYP,07/09/2018,ASDA GROCERIES ONLINE,65.17,"GROCERY STORES, SUPERMARKETS"
CYP,07/09/2018,ASDA GROCERIES ONLINE,-3.33,"GROCERY STORES, SUPERMARKETS"
CYP,10/09/2018,TESCO STORE 2404,88.08,"GROCERY STORES, SUPERMARKETS"
CYP,10/09/2018,WWW.TRAVELSOON.COM,282.74,TRAVEL AGENCIES AND TOUR OPERATORS
CYP,10/09/2018,WM MORRISON 078,14.32,"GROCERY STORES, SUPERMARKETS"
CYP,11/09/2018,IKEA LIMITED,1.85,"EQUIP, FURNITURE, HOME FURNSHNGS STRS (EXCPT APPL)"
CYP,11/09/2018,SAINSBURYS 2059,123.96,"GROCERY STORES, SUPERMARKETS"
CYP,11/09/2018,AMZN MKTP UK AMAZON.CO,28.42,BOOK STORES
CYP,11/09/2018,WILKO RETAIL LIMIT,47.50,HOUSEHOLD APPLIANCE STORES
CYP,11/09/2018,B&M RETAIL,30.56,DISCOUNT STORES
CYP,11/09/2018,HOBBYCRAFT,4.50,"ARTIST SUPPLY STORES, CRAFT SHOPS"
CYP,10/09/2018,RYANAIR22 22400000Y26PNW,278.26,RYANAIR
CYP,10/09/2018,ASDA GROCERIES ONLINE,52.19,"GROCERY STORES, SUPERMARKETS"
CYP,10/09/2018,ASDA GROCERIES ONLINE,-.16,"GROCERY STORES, SUPERMARKETS"
CYP,12/09/2018,ARGOS LTD,24.99,DISCOUNT STORES
CYP,12/09/2018,TESCO STORE 2404,39.65,"GROCERY STORES, SUPERMARKETS"
CYP,12/09/2018,AMZN MKTP UK,20.94,BOOK STORES
CYP,12/09/2018,AMAZON.CO.UK,46.53,DIRECT MARKETING-OTHER DIRECT MARKETERS/NOT ELSEW.
CYP,13/09/2018,COOKSON PRECIOUS M,49.79,"PRECIOUS STONES AND METALS, WATCHES AND JEWELRY"
CYP,13/09/2018,TESCO STORES 3297,48.28,"GROCERY STORES, SUPERMARKETS"
CYP,17/09/2018,,"-6,014.33",
CYP,16/09/2018,TESCO STORES 6060,65.09,"GROCERY STORES, SUPERMARKETS"
CYP,16/09/2018,MCDONALDS,8.46,"EATING PLACES, RESTAURANTS"
CYP,16/09/2018,MCDONALDS,11.76,FAST FOOD RESTAURANTS
CYP,15/09/2018,DOMINOS PIZZA,34.98,FAST FOOD RESTAURANTS
CYP,15/09/2018,INTU PARKING DERBY,3.10,AUTOMOBILE PARKING LOTS AND GARAGES
CYP,15/09/2018,OCEAN FRESH AT STEVES,19.65,FAST FOOD RESTAURANTS
CYP,15/09/2018,TESCO STORE 2404,8.45,"GROCERY STORES, SUPERMARKETS"
CYP,15/09/2018,KFC DERBY,14.55,FAST FOOD RESTAURANTS
CYP,15/09/2018,SAINSBURYS TO YOU 2059,54.77,"GROCERY STORES, SUPERMARKETS"
CYP,14/09/2018,INTU PARKING DERBY,2.00,AUTOMOBILE PARKING LOTS AND GARAGES
CYP,14/09/2018,MCDONALDS,3.47,FAST FOOD RESTAURANTS
CYP,14/09/2018,HOLLYWOOD BOWL,10.00,"CLUBS-CNTRY,MBRSHIP(ATHLET,REC,SPRTS,PRIVATE GOLF"
CYP,14/09/2018,HOLLYWOOD BOWL,10.00,"CLUBS-CNTRY,MBRSHIP(ATHLET,REC,SPRTS,PRIVATE GOLF"
CYP,14/09/2018,HARVESTER PRIDE PA,53.70,"EATING PLACES, RESTAURANTS"
CYP,14/09/2018,NANDOS DERBY,5.40,"EATING PLACES, RESTAURANTS"
CYP,14/09/2018,NANDOS DERBY,29.35,"EATING PLACES, RESTAURANTS"
CYP,14/09/2018,MCDONALDS,7.48,FAST FOOD RESTAURANTS
CYP,14/09/2018,ASDA GROCERIES ONLINE,81.04,"GROCERY STORES, SUPERMARKETS"
CYP,17/09/2018,WM MORRISON 078,16.72,"GROCERY STORES, SUPERMARKETS"
CYP,17/09/2018,KFC DERBY,13.55,FAST FOOD RESTAURANTS
CYP,17/09/2018,TESCO STORE 2404,64.74,"GROCERY STORES, SUPERMARKETS"
CYP,17/09/2018,ASDA GEORGE COM LEEDS,94.50,"GROCERY STORES, SUPERMARKETS"
CYP,17/09/2018,SILLY SIDS,20.00,"EQUIP, FURNITURE, HOME FURNSHNGS STRS (EXCPT APPL)"
CYP,17/09/2018,SILLY SIDS,200.00,"EQUIP, FURNITURE, HOME FURNSHNGS STRS (EXCPT APPL)"
CYP,17/09/2018,SILLY SIDS,200.00,"EQUIP, FURNITURE, HOME FURNSHNGS STRS (EXCPT APPL)"
CYP,18/09/2018,UNIFORM DIRECT,76.10,MEN'S/WOMEN'S/CHILDREN'S UNIFORMS/COMMERCIAL CLOTH
CYP,18/09/2018,TESCO STORE 2404,7.00,"GROCERY STORES, SUPERMARKETS"
CYP,18/09/2018,LIDL UK,16.44,"GROCERY STORES, SUPERMARKETS"
CYP,18/09/2018,AMZN MKTP UK,10.99,BOOK STORES
CYP,19/09/2018,POST OFFICE COUNTER,58.00,POSTAL SERVICES-GOVERNMENT ONLY
CYP,19/09/2018,WWW.TENPIN.CO.UK,139.86,"CLUBS-CNTRY,MBRSHIP(ATHLET,REC,SPRTS,PRIVATE GOLF"
CYP,19/09/2018,AMZN MKTP UK,19.90,BOOK STORES
CYP,19/09/2018,AMZN MKTP UK,24.39,BOOK STORES
CYP,19/09/2018,B&M RETAIL,13.23,DISCOUNT STORES
CYP,20/09/2018,ASDA SUPERSTORE,4.49,"GROCERY STORES, SUPERMARKETS"
CYP,20/09/2018,AMZN MKTP UK,39.95,BOOK STORES
CYP,20/09/2018,EB  WORKSHOP NOTTINGHA,49.15,BUSINESS SERVICES-NOT ELSEWHERE CLASSIFIED
CYP,20/09/2018,AMZN MKTP UK,94.95,BOOK STORES
CYP,20/09/2018,TESCO STORE 2404,72.65,"GROCERY STORES, SUPERMARKETS"
CYP,22/09/2018,ALBATROSS CARS DERBY L,11.00,LIMOUSINES AND TAXICABS
CYP,22/09/2018,WWW.GAME.CO.UK,10.00,"GAME, TOY, AND HOBBY SHOPS"
CYP,22/09/2018,TESCO STORES 5886,9.26,"GROCERY STORES, SUPERMARKETS"
CYP,22/09/2018,TESCO STORES 2404,10.60,"GROCERY STORES, SUPERMARKETS"
CYP,22/09/2018,TESCO STORES 2404,8.84,"GROCERY STORES, SUPERMARKETS"
CYP,22/09/2018,TESCO STORES 3297,72.89,"GROCERY STORES, SUPERMARKETS"
CYP,22/09/2018,TESCO STORES 3297,-9.06,"GROCERY STORES, SUPERMARKETS"
CYP,22/09/2018,ASDA SUPERSTORE,96.05,"GROCERY STORES, SUPERMARKETS"
CYP,21/09/2018,COSMO,38.18,"EATING PLACES, RESTAURANTS"
CYP,21/09/2018,WWW BIGFOODIE CO UK,47.50,FAST FOOD RESTAURANTS
CYP,21/09/2018,ALBATROSS CARS DERBY L,10.00,LIMOUSINES AND TAXICABS
CYP,21/09/2018,ALBATROSS CARS DERBY L,6.50,LIMOUSINES AND TAXICABS
CYP,21/09/2018,COSTA COFFEE 43045005,12.55,FAST FOOD RESTAURANTS
CYP,21/09/2018,ARGOS LTD,59.48,DISCOUNT STORES
CYP,21/09/2018,ASDA SUPERSTORE,10.00,"GROCERY STORES, SUPERMARKETS"
CYP,21/09/2018,ASDA GROCERIES ONLINE,63.65,"GROCERY STORES, SUPERMARKETS"
CYP,21/09/2018,AMAZON.CO.UK,23.54,DIRECT MARKETING-OTHER DIRECT MARKETERS/NOT ELSEW.
CYP,24/09/2018,MCDONALDS,3.87,FAST FOOD RESTAURANTS
CYP,24/09/2018,MFA BOWL  ILKESTON,6.75,BOWLING ALLEYS
CYP,24/09/2018,TESCO STORE 2404,50.36,"GROCERY STORES, SUPERMARKETS"
CYP,24/09/2018,SPLASHABOUT,24.99,CHILDREN'S AND INFANT'S WEAR STORES
CYP,24/09/2018,TESCO STORES 6428,1.70,"GROCERY STORES, SUPERMARKETS"
CYP,24/09/2018,ALBATROSS CARS DERBY L,13.50,LIMOUSINES AND TAXICABS
CYP,24/09/2018,WWW.GAME.CO.UK,10.00,"GAME, TOY, AND HOBBY SHOPS"
CYP,24/09/2018,ALBATROSS CARS DERBY L,11.00,LIMOUSINES AND TAXICABS
CYP,24/09/2018,AMZN MKTP UK,9.80,BOOK STORES
CYP,24/09/2018,AMAZON.CO.UK,5.99,DIRECT MARKETING-OTHER DIRECT MARKETERS/NOT ELSEW.
CYP,25/09/2018,ASDA SUPERSTORE,12.09,"GROCERY STORES, SUPERMARKETS"
CYP,25/09/2018,ASDA SUPERSTORE,9.99,"GROCERY STORES, SUPERMARKETS"
CYP,25/09/2018,ODEON,10.00,MOTION PICTURE THEATERS
CYP,25/09/2018,B&M RETAIL,40.50,DISCOUNT STORES
CYP,26/09/2018,JD SPORTS INTERNET,135.99,SPORTING GOODS STORES
CYP,26/09/2018,ODEON,10.80,MOTION PICTURE THEATERS
CYP,26/09/2018,SAINSBURYS LOC4716,12.65,"GROCERY STORES, SUPERMARKETS"
CYP,26/09/2018,COOKSON PRECIOUS M,5.46,"PRECIOUS STONES AND METALS, WATCHES AND JEWELRY"
CYP,26/09/2018,AMZN MKTP UK,27.98,BOOK STORES
CYP,26/09/2018,AMAZON.CO.UK,10.48,DIRECT MARKETING-OTHER DIRECT MARKETERS/NOT ELSEW.
CYP,26/09/2018,TESCO STORE 2404,71.64,"GROCERY STORES, SUPERMARKETS"
CYP,26/09/2018,SAINSBURYS SACAT 2733,2.00,"GROCERY STORES, SUPERMARKETS"
CYP,26/09/2018,CATERPAC DISPOSABLES L,15.26,"COMMERCIAL EQUIPMENT, NOT ELSEWHERE CLASSIFIED"
CYP,26/09/2018,AMZN MKTP UK,12.08,BOOK STORES
CYP,26/09/2018,CO-OP GROUP 171691,8.27,"GROCERY STORES, SUPERMARKETS"
CYP,26/09/2018,SAINSBURYS SACAT 2059,35.00,"GROCERY STORES, SUPERMARKETS"
CYP,26/09/2018,ASDA GROCERIES ONLINE,33.02,"GROCERY STORES, SUPERMARKETS"
CYP,28/09/2018,AMZN MKTP UK,2.95,BOOK STORES
CYP,27/09/2018,ASDA SUPERSTORE,138.68,"GROCERY STORES, SUPERMARKETS"
CYP,27/09/2018,TESCO STORES 5886,1.60,"GROCERY STORES, SUPERMARKETS"
CYP,27/09/2018,TESCO STORES 3297,59.09,"GROCERY STORES, SUPERMARKETS"
CYP,30/09/2018,TESCO STORE 2404,17.74,"GROCERY STORES, SUPERMARKETS"
CYP,30/09/2018,WWW.GAME.CO.UK,8.74,"GAME, TOY, AND HOBBY SHOPS"
CYP,29/09/2018,INTU PARKING DERBY,3.10,AUTOMOBILE PARKING LOTS AND GARAGES
CYP,29/09/2018,NANDOS DERBY,28.05,"EATING PLACES, RESTAURANTS"
CYP,29/09/2018,SPORTSDIRECT 360,153.99,SPORTING GOODS STORES
CYP,29/09/2018,MCDONALDS,3.47,FAST FOOD RESTAURANTS
CYP,29/09/2018,KFC DERBY,13.45,FAST FOOD RESTAURANTS
CYP,29/09/2018,LUVYABABES LTD,22.49,WOMEN'S READY TO WEAR STORES
CYP,29/09/2018,FARMFOODS- DERBY,4.63,"GROCERY STORES, SUPERMARKETS"
CYP,28/09/2018,SAINSBURYS SACAT 2059,39.98,"GROCERY STORES, SUPERMARKETS"
CYP,28/09/2018,AMZN MKTP UK AMAZON.CO,35.78,BOOK STORES
CYP,28/09/2018,KFC,31.48,FAST FOOD RESTAURANTS
CYP,28/09/2018,AMZN MKTP UK,11.99,BOOK STORES
CYP,27/09/2018,WWW.NISBETS.COM,5.99,DIRECT MARKETING-CATALOG MERCHANTS
CYP,27/09/2018,WWW.NISBETS.COM,60.56,DIRECT MARKETING-CATALOG MERCHANTS
CYP,01/10/2018,TESCO STORE 2404,68.84,"GROCERY STORES, SUPERMARKETS"
CYP,01/10/2018,TESCO STORES 3297,68.64,"GROCERY STORES, SUPERMARKETS"
CYP,30/09/2018,MCDONALDS,4.17,"EATING PLACES, RESTAURANTS"
CYP,30/09/2018,MCDONALDS,10.76,FAST FOOD RESTAURANTS
CYP,02/10/2018,MCDONALDS,3.87,FAST FOOD RESTAURANTS
CYP,02/10/2018,ASDA GROCERIES ONLINE,99.99,"GROCERY STORES, SUPERMARKETS"
DIRECT,02/07/2018,CURRYS ONLINE,244.99,ELECTRONIC SALES
DIRECT,02/07/2018,WWW.ARGOS.CO.UK,112.39,DISCOUNT STORES
DIRECT,04/07/2018,SILLY SIDS,435.00,"EQUIP, FURNITURE, HOME FURNSHNGS STRS (EXCPT APPL)"
DIRECT,04/07/2018,CURRYS ONLINE,559.97,ELECTRONIC SALES
DIRECT,05/07/2018,WWW.ARGOS.CO.UK,117.39,DISCOUNT STORES
DIRECT,06/07/2018,WWW.ARGOS.CO.UK,89.99,DISCOUNT STORES
DIRECT,06/07/2018,WWW.ARGOS.CO.UK,30.94,DISCOUNT STORES
DIRECT,19/07/2018,CURRYS ONLINE,414.98,ELECTRONIC SALES
DIRECT,20/07/2018,CURRYS ONLINE,424.98,ELECTRONIC SALES
DIRECT,20/07/2018,WWW.ARGOS.CO.UK,172.84,DISCOUNT STORES
DIRECT,20/07/2018,WWW.ARGOS.CO.UK,149.99,DISCOUNT STORES
DIRECT,19/07/2018,WWW.ARGOS.CO.UK,58.52,DISCOUNT STORES
DIRECT,23/07/2018,ARGOS RETAIL GROUP,21.47,DISCOUNT STORES
DIRECT,31/07/2018,WWW.ARGOS.CO.UK,233.12,DISCOUNT STORES
DIRECT,30/07/2018,ARGOS RETAIL GROUP,-21.47,DISCOUNT STORES
DIRECT,03/08/2018,CURRYS ONLINE,189.99,ELECTRONIC SALES
DIRECT,06/08/2018,SILLY SIDS,170.00,"EQUIP, FURNITURE, HOME FURNSHNGS STRS (EXCPT APPL)"
DIRECT,06/08/2018,TVLICENSING.CO.UK,150.50,"CONSULTING, MANAGEMENT, AND PUBLIC RELATIONS SVCS"
DIRECT,31/08/2018,WAYFAIR #2293114574,101.99,DIRECT MARKETING-COMBINATION CATALOG/RETAIL MERCH.
DIRECT,31/08/2018,ASDA GEORGE COM LEEDS,73.95,"GROCERY STORES, SUPERMARKETS"
DIRECT,31/08/2018,ASDA GEORGE COM LEEDS,102.91,"GROCERY STORES, SUPERMARKETS"
DIRECT,31/08/2018,CURRYS ONLINE,359.98,ELECTRONIC SALES
DIRECT,31/08/2018,ARGOS RETAIL GROUP,9.00,DISCOUNT STORES
DIRECT,31/08/2018,ARGOS RETAIL GROUP,24.98,DISCOUNT STORES
DIRECT,04/09/2018,CURRYS ONLINE,329.98,ELECTRONIC SALES
DIRECT,05/09/2018,CURRYS ONLINE,404.98,ELECTRONIC SALES
DIRECT,06/09/2018,CURRYS ONLINE,409.97,ELECTRONIC SALES
DIRECT,04/09/2018,CURRYS ONLINE,-329.98,ELECTRONIC SALES
DIRECT,07/09/2018,ARGOS RETAIL GROUP,-9.00,DISCOUNT STORES
LYRECO,04/07/2018,BANNER GROUP LTD,-.36,"OFFICE, SCHOOL SUPPLY, AND STATIONERY STORES"
LYRECO,04/07/2018,BANNER GROUP LTD,-7.44,"OFFICE, SCHOOL SUPPLY, AND STATIONERY STORES"
LYRECO,06/07/2018,BANNER GROUP LTD,32.28,"OFFICE, SCHOOL SUPPLY, AND STATIONERY STORES"
LYRECO,06/07/2018,BANNER GROUP LTD,-3.55,"OFFICE, SCHOOL SUPPLY, AND STATIONERY STORES"
LYRECO,06/07/2018,BANNER GROUP LTD,-7.49,"OFFICE, SCHOOL SUPPLY, AND STATIONERY STORES"
LYRECO,06/07/2018,BANNER GROUP LTD,-.48,"OFFICE, SCHOOL SUPPLY, AND STATIONERY STORES"
LYRECO,06/07/2018,BANNER GROUP LTD,-10.37,"OFFICE, SCHOOL SUPPLY, AND STATIONERY STORES"
LYRECO,06/07/2018,BANNER GROUP LTD,-15.00,"OFFICE, SCHOOL SUPPLY, AND STATIONERY STORES"
LYRECO,06/07/2018,BANNER GROUP LTD,-21.60,"OFFICE, SCHOOL SUPPLY, AND STATIONERY STORES"
LYRECO,06/07/2018,BANNER GROUP LTD,-30.00,"OFFICE, SCHOOL SUPPLY, AND STATIONERY STORES"
LYRECO,06/07/2018,BANNER GROUP LTD,-5.95,"OFFICE, SCHOOL SUPPLY, AND STATIONERY STORES"
LYRECO,09/07/2018,BANNER GROUP LTD,21.60,"OFFICE, SCHOOL SUPPLY, AND STATIONERY STORES"
LYRECO,09/07/2018,BANNER GROUP LTD,7.44,"OFFICE, SCHOOL SUPPLY, AND STATIONERY STORES"
LYRECO,09/07/2018,BANNER GROUP LTD,.36,"OFFICE, SCHOOL SUPPLY, AND STATIONERY STORES"
LYRECO,09/07/2018,BANNER GROUP LTD,3.55,"OFFICE, SCHOOL SUPPLY, AND STATIONERY STORES"
LYRECO,09/07/2018,BANNER GROUP LTD,17.86,"OFFICE, SCHOOL SUPPLY, AND STATIONERY STORES"
LYRECO,09/07/2018,BANNER GROUP LTD,.48,"OFFICE, SCHOOL SUPPLY, AND STATIONERY STORES"
LYRECO,09/07/2018,BANNER GROUP LTD,1.50,"OFFICE, SCHOOL SUPPLY, AND STATIONERY STORES"
LYRECO,09/07/2018,BANNER GROUP LTD,15.00,"OFFICE, SCHOOL SUPPLY, AND STATIONERY STORES"
LYRECO,09/07/2018,BANNER GROUP LTD,7.49,"OFFICE, SCHOOL SUPPLY, AND STATIONERY STORES"
LYRECO,09/07/2018,BANNER GROUP LTD,79.96,"OFFICE, SCHOOL SUPPLY, AND STATIONERY STORES"
LYRECO,09/07/2018,BANNER GROUP LTD,5.95,"OFFICE, SCHOOL SUPPLY, AND STATIONERY STORES"
LYRECO,13/07/2018,BANNER GROUP LTD,3.72,"OFFICE, SCHOOL SUPPLY, AND STATIONERY STORES"
LYRECO,13/07/2018,BANNER GROUP LTD,3.10,"OFFICE, SCHOOL SUPPLY, AND STATIONERY STORES"
LYRECO,13/07/2018,BANNER GROUP LTD,6.54,"OFFICE, SCHOOL SUPPLY, AND STATIONERY STORES"
LYRECO,13/07/2018,BANNER GROUP LTD,3.82,"OFFICE, SCHOOL SUPPLY, AND STATIONERY STORES"
LYRECO,13/07/2018,BANNER GROUP LTD,21.42,"OFFICE, SCHOOL SUPPLY, AND STATIONERY STORES"
LYRECO,13/07/2018,BANNER GROUP LTD,3.72,"OFFICE, SCHOOL SUPPLY, AND STATIONERY STORES"
LYRECO,13/07/2018,BANNER GROUP LTD,39.17,"OFFICE, SCHOOL SUPPLY, AND STATIONERY STORES"
LYRECO,13/07/2018,BANNER GROUP LTD,-5.20,"OFFICE, SCHOOL SUPPLY, AND STATIONERY STORES"
LYRECO,13/07/2018,BANNER GROUP LTD,-5.20,"OFFICE, SCHOOL SUPPLY, AND STATIONERY STORES"
LYRECO,13/07/2018,BANNER GROUP LTD,-5.20,"OFFICE, SCHOOL SUPPLY, AND STATIONERY STORES"
LYRECO,13/07/2018,BANNER GROUP LTD,-5.20,"OFFICE, SCHOOL SUPPLY, AND STATIONERY STORES"
LYRECO,16/07/2018,BANNER GROUP LTD,29.64,"OFFICE, SCHOOL SUPPLY, AND STATIONERY STORES"
LYRECO,16/07/2018,BANNER GROUP LTD,28.50,"OFFICE, SCHOOL SUPPLY, AND STATIONERY STORES"
LYRECO,16/07/2018,BANNER GROUP LTD,10.37,"OFFICE, SCHOOL SUPPLY, AND STATIONERY STORES"
LYRECO,20/07/2018,BANNER GROUP LTD,3.96,"OFFICE, SCHOOL SUPPLY, AND STATIONERY STORES"
LYRECO,20/07/2018,BANNER GROUP LTD,2.71,"OFFICE, SCHOOL SUPPLY, AND STATIONERY STORES"
LYRECO,20/07/2018,BANNER GROUP LTD,1.48,"OFFICE, SCHOOL SUPPLY, AND STATIONERY STORES"
LYRECO,20/07/2018,BANNER GROUP LTD,47.66,"OFFICE, SCHOOL SUPPLY, AND STATIONERY STORES"
LYRECO,27/07/2018,BANNER GROUP LTD,2.34,"OFFICE, SCHOOL SUPPLY, AND STATIONERY STORES"
LYRECO,27/07/2018,BANNER GROUP LTD,.56,"OFFICE, SCHOOL SUPPLY, AND STATIONERY STORES"
LYRECO,27/07/2018,BANNER GROUP LTD,13.06,"OFFICE, SCHOOL SUPPLY, AND STATIONERY STORES"
LYRECO,27/07/2018,BANNER GROUP LTD,40.43,"OFFICE, SCHOOL SUPPLY, AND STATIONERY STORES"
LYRECO,27/07/2018,BANNER GROUP LTD,39.94,"OFFICE, SCHOOL SUPPLY, AND STATIONERY STORES"
LYRECO,27/07/2018,BANNER GROUP LTD,6.35,"OFFICE, SCHOOL SUPPLY, AND STATIONERY STORES"
LYRECO,27/07/2018,BANNER GROUP LTD,-3.55,"OFFICE, SCHOOL SUPPLY, AND STATIONERY STORES"
LYRECO,27/07/2018,BANNER GROUP LTD,-1.32,"OFFICE, SCHOOL SUPPLY, AND STATIONERY STORES"
LYRECO,27/07/2018,BANNER GROUP LTD,-6.24,"OFFICE, SCHOOL SUPPLY, AND STATIONERY STORES"
LYRECO,27/07/2018,BANNER GROUP LTD,-.48,"OFFICE, SCHOOL SUPPLY, AND STATIONERY STORES"
LYRECO,27/07/2018,BANNER GROUP LTD,-10.37,"OFFICE, SCHOOL SUPPLY, AND STATIONERY STORES"
LYRECO,27/07/2018,BANNER GROUP LTD,-15.00,"OFFICE, SCHOOL SUPPLY, AND STATIONERY STORES"
LYRECO,27/07/2018,BANNER GROUP LTD,-21.60,"OFFICE, SCHOOL SUPPLY, AND STATIONERY STORES"
LYRECO,27/07/2018,BANNER GROUP LTD,-7.44,"OFFICE, SCHOOL SUPPLY, AND STATIONERY STORES"
LYRECO,27/07/2018,BANNER GROUP LTD,-30.00,"OFFICE, SCHOOL SUPPLY, AND STATIONERY STORES"
LYRECO,02/08/2018,BANNER GROUP LTD,38.16,"OFFICE, SCHOOL SUPPLY, AND STATIONERY STORES"
LYRECO,02/08/2018,BANNER GROUP LTD,1.80,"OFFICE, SCHOOL SUPPLY, AND STATIONERY STORES"
LYRECO,02/08/2018,BANNER GROUP LTD,3.24,"OFFICE, SCHOOL SUPPLY, AND STATIONERY STORES"
LYRECO,02/08/2018,BANNER GROUP LTD,9.68,"OFFICE, SCHOOL SUPPLY, AND STATIONERY STORES"
LYRECO,02/08/2018,BANNER GROUP LTD,.83,"OFFICE, SCHOOL SUPPLY, AND STATIONERY STORES"
LYRECO,02/08/2018,BANNER GROUP LTD,12.00,"OFFICE, SCHOOL SUPPLY, AND STATIONERY STORES"
LYRECO,09/08/2018,TNT_DIRECT,8.94,"COURIER SVC-AIR & GROUND, FREIGHT FORWARDERS"
LYRECO,10/08/2018,BANNER GROUP LTD,4.18,"OFFICE, SCHOOL SUPPLY, AND STATIONERY STORES"
LYRECO,10/08/2018,BANNER GROUP LTD,7.20,"OFFICE, SCHOOL SUPPLY, AND STATIONERY STORES"
LYRECO,10/08/2018,BANNER GROUP LTD,110.88,"OFFICE, SCHOOL SUPPLY, AND STATIONERY STORES"
LYRECO,10/08/2018,BANNER GROUP LTD,6.62,"OFFICE, SCHOOL SUPPLY, AND STATIONERY STORES"
LYRECO,10/08/2018,BANNER GROUP LTD,4.18,"OFFICE, SCHOOL SUPPLY, AND STATIONERY STORES"
LYRECO,10/08/2018,BANNER GROUP LTD,4.18,"OFFICE, SCHOOL SUPPLY, AND STATIONERY STORES"
LYRECO,10/08/2018,BANNER GROUP LTD,4.18,"OFFICE, SCHOOL SUPPLY, AND STATIONERY STORES"
LYRECO,10/08/2018,BANNER GROUP LTD,19.20,"OFFICE, SCHOOL SUPPLY, AND STATIONERY STORES"
LYRECO,10/08/2018,BANNER GROUP LTD,72.58,"OFFICE, SCHOOL SUPPLY, AND STATIONERY STORES"
LYRECO,10/08/2018,BANNER GROUP LTD,27.00,"OFFICE, SCHOOL SUPPLY, AND STATIONERY STORES"
LYRECO,10/08/2018,BANNER GROUP LTD,25.78,"OFFICE, SCHOOL SUPPLY, AND STATIONERY STORES"
LYRECO,10/08/2018,BANNER GROUP LTD,15.00,"OFFICE, SCHOOL SUPPLY, AND STATIONERY STORES"
LYRECO,10/08/2018,BANNER GROUP LTD,76.32,"OFFICE, SCHOOL SUPPLY, AND STATIONERY STORES"
LYRECO,10/08/2018,BANNER GROUP LTD,28.32,"OFFICE, SCHOOL SUPPLY, AND STATIONERY STORES"
LYRECO,10/08/2018,BANNER GROUP LTD,6.62,"OFFICE, SCHOOL SUPPLY, AND STATIONERY STORES"
LYRECO,10/08/2018,BANNER GROUP LTD,6.62,"OFFICE, SCHOOL SUPPLY, AND STATIONERY STORES"
LYRECO,10/08/2018,BANNER GROUP LTD,9.94,"OFFICE, SCHOOL SUPPLY, AND STATIONERY STORES"
LYRECO,10/08/2018,BANNER GROUP LTD,20.64,"OFFICE, SCHOOL SUPPLY, AND STATIONERY STORES"
LYRECO,10/08/2018,BANNER GROUP LTD,156.38,"OFFICE, SCHOOL SUPPLY, AND STATIONERY STORES"
LYRECO,10/08/2018,BANNER GROUP LTD,2.34,"OFFICE, SCHOOL SUPPLY, AND STATIONERY STORES"
LYRECO,10/08/2018,BANNER GROUP LTD,12.70,"OFFICE, SCHOOL SUPPLY, AND STATIONERY STORES"
LYRECO,10/08/2018,BANNER GROUP LTD,13.92,"OFFICE, SCHOOL SUPPLY, AND STATIONERY STORES"
LYRECO,10/08/2018,BANNER GROUP LTD,14.23,"OFFICE, SCHOOL SUPPLY, AND STATIONERY STORES"
LYRECO,10/08/2018,BANNER GROUP LTD,4.80,"OFFICE, SCHOOL SUPPLY, AND STATIONERY STORES"
LYRECO,10/08/2018,BANNER GROUP LTD,29.04,"OFFICE, SCHOOL SUPPLY, AND STATIONERY STORES"
LYRECO,10/08/2018,BANNER GROUP LTD,57.02,"OFFICE, SCHOOL SUPPLY, AND STATIONERY STORES"
LYRECO,10/08/2018,BANNER GROUP LTD,9.68,"OFFICE, SCHOOL SUPPLY, AND STATIONERY STORES"
LYRECO,10/08/2018,BANNER GROUP LTD,7.44,"OFFICE, SCHOOL SUPPLY, AND STATIONERY STORES"
LYRECO,10/08/2018,BANNER GROUP LTD,14.88,"OFFICE, SCHOOL SUPPLY, AND STATIONERY STORES"
LYRECO,10/08/2018,BANNER GROUP LTD,.26,"OFFICE, SCHOOL SUPPLY, AND STATIONERY STORES"
LYRECO,10/08/2018,BANNER GROUP LTD,1.73,"OFFICE, SCHOOL SUPPLY, AND STATIONERY STORES"
LYRECO,10/08/2018,BANNER GROUP LTD,5.42,"OFFICE, SCHOOL SUPPLY, AND STATIONERY STORES"
LYRECO,10/08/2018,BANNER GROUP LTD,1.93,"OFFICE, SCHOOL SUPPLY, AND STATIONERY STORES"
LYRECO,10/08/2018,BANNER GROUP LTD,13.82,"OFFICE, SCHOOL SUPPLY, AND STATIONERY STORES"
LYRECO,13/08/2018,BANNER GROUP LTD,29.64,"OFFICE, SCHOOL SUPPLY, AND STATIONERY STORES"
LYRECO,13/08/2018,COMPLETE CARE SHOP,20.69,MISCELLANEOUS GENERAL MERCHANDISE
LYRECO,15/08/2018,BANNER GROUP LTD,-11.09,"OFFICE, SCHOOL SUPPLY, AND STATIONERY STORES"
LYRECO,15/08/2018,BANNER GROUP LTD,-31.68,"OFFICE, SCHOOL SUPPLY, AND STATIONERY STORES"
LYRECO,15/08/2018,BANNER GROUP LTD,-1.25,"OFFICE, SCHOOL SUPPLY, AND STATIONERY STORES"
LYRECO,15/08/2018,BANNER GROUP LTD,-14.88,"OFFICE, SCHOOL SUPPLY, AND STATIONERY STORES"
LYRECO,17/08/2018,BANNER GROUP LTD,2.71,"OFFICE, SCHOOL SUPPLY, AND STATIONERY STORES"
LYRECO,17/08/2018,BANNER GROUP LTD,1.98,"OFFICE, SCHOOL SUPPLY, AND STATIONERY STORES"
LYRECO,17/08/2018,BANNER GROUP LTD,56.76,"OFFICE, SCHOOL SUPPLY, AND STATIONERY STORES"
LYRECO,17/08/2018,BANNER GROUP LTD,7.78,"OFFICE, SCHOOL SUPPLY, AND STATIONERY STORES"
LYRECO,17/08/2018,BANNER GROUP LTD,70.50,"OFFICE, SCHOOL SUPPLY, AND STATIONERY STORES"
LYRECO,17/08/2018,BANNER GROUP LTD,7.45,"OFFICE, SCHOOL SUPPLY, AND STATIONERY STORES"
LYRECO,17/08/2018,BANNER GROUP LTD,2.71,"OFFICE, SCHOOL SUPPLY, AND STATIONERY STORES"
LYRECO,17/08/2018,BANNER GROUP LTD,32.28,"OFFICE, SCHOOL SUPPLY, AND STATIONERY STORES"
LYRECO,17/08/2018,BANNER GROUP LTD,11.39,"OFFICE, SCHOOL SUPPLY, AND STATIONERY STORES"
LYRECO,17/08/2018,BANNER GROUP LTD,16.27,"OFFICE, SCHOOL SUPPLY, AND STATIONERY STORES"
LYRECO,17/08/2018,BANNER GROUP LTD,12.00,"OFFICE, SCHOOL SUPPLY, AND STATIONERY STORES"
LYRECO,17/08/2018,BANNER GROUP LTD,35.66,"OFFICE, SCHOOL SUPPLY, AND STATIONERY STORES"
LYRECO,20/08/2018,BANNER GROUP LTD,15.00,"OFFICE, SCHOOL SUPPLY, AND STATIONERY STORES"
LYRECO,24/08/2018,BANNER GROUP LTD,37.50,"OFFICE, SCHOOL SUPPLY, AND STATIONERY STORES"
LYRECO,24/08/2018,BANNER GROUP LTD,2.71,"OFFICE, SCHOOL SUPPLY, AND STATIONERY STORES"
LYRECO,24/08/2018,BANNER GROUP LTD,2.71,"OFFICE, SCHOOL SUPPLY, AND STATIONERY STORES"
LYRECO,24/08/2018,BANNER GROUP LTD,1.56,"OFFICE, SCHOOL SUPPLY, AND STATIONERY STORES"
LYRECO,24/08/2018,BANNER GROUP LTD,4.03,"OFFICE, SCHOOL SUPPLY, AND STATIONERY STORES"
LYRECO,24/08/2018,BANNER GROUP LTD,12.10,"OFFICE, SCHOOL SUPPLY, AND STATIONERY STORES"
LYRECO,24/08/2018,BANNER GROUP LTD,49.68,"OFFICE, SCHOOL SUPPLY, AND STATIONERY STORES"
LYRECO,24/08/2018,BANNER GROUP LTD,7.56,"OFFICE, SCHOOL SUPPLY, AND STATIONERY STORES"
LYRECO,24/08/2018,BANNER GROUP LTD,5.40,"OFFICE, SCHOOL SUPPLY, AND STATIONERY STORES"
LYRECO,24/08/2018,BANNER GROUP LTD,3.12,"OFFICE, SCHOOL SUPPLY, AND STATIONERY STORES"
LYRECO,24/08/2018,BANNER GROUP LTD,3.46,"OFFICE, SCHOOL SUPPLY, AND STATIONERY STORES"
LYRECO,24/08/2018,BANNER GROUP LTD,1.32,"OFFICE, SCHOOL SUPPLY, AND STATIONERY STORES"
LYRECO,24/08/2018,BANNER GROUP LTD,3.82,"OFFICE, SCHOOL SUPPLY, AND STATIONERY STORES"
LYRECO,24/08/2018,BANNER GROUP LTD,3.46,"OFFICE, SCHOOL SUPPLY, AND STATIONERY STORES"
LYRECO,30/08/2018,BANNER GROUP LTD,3.00,"OFFICE, SCHOOL SUPPLY, AND STATIONERY STORES"
LYRECO,31/08/2018,BANNER GROUP LTD,25.20,"OFFICE, SCHOOL SUPPLY, AND STATIONERY STORES"
LYRECO,31/08/2018,BANNER GROUP LTD,39.60,"OFFICE, SCHOOL SUPPLY, AND STATIONERY STORES"
LYRECO,31/08/2018,BANNER GROUP LTD,20.52,"OFFICE, SCHOOL SUPPLY, AND STATIONERY STORES"
LYRECO,31/08/2018,BANNER GROUP LTD,.64,"OFFICE, SCHOOL SUPPLY, AND STATIONERY STORES"
LYRECO,31/08/2018,BANNER GROUP LTD,9.00,"OFFICE, SCHOOL SUPPLY, AND STATIONERY STORES"
LYRECO,31/08/2018,BANNER GROUP LTD,12.04,"OFFICE, SCHOOL SUPPLY, AND STATIONERY STORES"
LYRECO,03/09/2018,BANNER GROUP LTD,5.42,"OFFICE, SCHOOL SUPPLY, AND STATIONERY STORES"
LYRECO,06/09/2018,TNT_DIRECT,81.34,"COURIER SVC-AIR & GROUND, FREIGHT FORWARDERS"
LYRECO,08/09/2018,BANNER GROUP LTD,6.54,"OFFICE, SCHOOL SUPPLY, AND STATIONERY STORES"
LYRECO,08/09/2018,BANNER GROUP LTD,17.22,"OFFICE, SCHOOL SUPPLY, AND STATIONERY STORES"
LYRECO,08/09/2018,BANNER GROUP LTD,1.92,"OFFICE, SCHOOL SUPPLY, AND STATIONERY STORES"
LYRECO,08/09/2018,BANNER GROUP LTD,156.38,"OFFICE, SCHOOL SUPPLY, AND STATIONERY STORES"
LYRECO,08/09/2018,BANNER GROUP LTD,6.46,"OFFICE, SCHOOL SUPPLY, AND STATIONERY STORES"
LYRECO,08/09/2018,BANNER GROUP LTD,23.76,"OFFICE, SCHOOL SUPPLY, AND STATIONERY STORES"
LYRECO,08/09/2018,BANNER GROUP LTD,191.52,"OFFICE, SCHOOL SUPPLY, AND STATIONERY STORES"
LYRECO,08/09/2018,BANNER GROUP LTD,10.56,"OFFICE, SCHOOL SUPPLY, AND STATIONERY STORES"
LYRECO,08/09/2018,BANNER GROUP LTD,6.00,"OFFICE, SCHOOL SUPPLY, AND STATIONERY STORES"
LYRECO,08/09/2018,BANNER GROUP LTD,12.24,"OFFICE, SCHOOL SUPPLY, AND STATIONERY STORES"
LYRECO,08/09/2018,BANNER GROUP LTD,7.68,"OFFICE, SCHOOL SUPPLY, AND STATIONERY STORES"
LYRECO,08/09/2018,BANNER GROUP LTD,16.20,"OFFICE, SCHOOL SUPPLY, AND STATIONERY STORES"
LYRECO,08/09/2018,BANNER GROUP LTD,58.75,"OFFICE, SCHOOL SUPPLY, AND STATIONERY STORES"
LYRECO,08/09/2018,BANNER GROUP LTD,11.09,"OFFICE, SCHOOL SUPPLY, AND STATIONERY STORES"
LYRECO,06/09/2018,BANNER GROUP LTD,8.64,"OFFICE, SCHOOL SUPPLY, AND STATIONERY STORES"
LYRECO,06/09/2018,BANNER GROUP LTD,13.06,"OFFICE, SCHOOL SUPPLY, AND STATIONERY STORES"
LYRECO,13/09/2018,TNT_DIRECT,8.94,"COURIER SVC-AIR & GROUND, FREIGHT FORWARDERS"
LYRECO,14/09/2018,BANNER GROUP LTD,3.72,"OFFICE, SCHOOL SUPPLY, AND STATIONERY STORES"
LYRECO,14/09/2018,BANNER GROUP LTD,7.16,"OFFICE, SCHOOL SUPPLY, AND STATIONERY STORES"
LYRECO,14/09/2018,BANNER GROUP LTD,2.98,"OFFICE, SCHOOL SUPPLY, AND STATIONERY STORES"
LYRECO,14/09/2018,BANNER GROUP LTD,6.00,"OFFICE, SCHOOL SUPPLY, AND STATIONERY STORES"
LYRECO,14/09/2018,BANNER GROUP LTD,4.78,"OFFICE, SCHOOL SUPPLY, AND STATIONERY STORES"
LYRECO,14/09/2018,BANNER GROUP LTD,4.28,"OFFICE, SCHOOL SUPPLY, AND STATIONERY STORES"
LYRECO,14/09/2018,BANNER GROUP LTD,3.72,"OFFICE, SCHOOL SUPPLY, AND STATIONERY STORES"
LYRECO,24/09/2018,BANNER GROUP LTD,12.91,"OFFICE, SCHOOL SUPPLY, AND STATIONERY STORES"
LYRECO,24/09/2018,BANNER GROUP LTD,2.14,"OFFICE, SCHOOL SUPPLY, AND STATIONERY STORES"
LYRECO,24/09/2018,BANNER GROUP LTD,25.92,"OFFICE, SCHOOL SUPPLY, AND STATIONERY STORES"
LYRECO,24/09/2018,BANNER GROUP LTD,6.91,"OFFICE, SCHOOL SUPPLY, AND STATIONERY STORES"
LYRECO,28/09/2018,BANNER GROUP LTD,4.28,"OFFICE, SCHOOL SUPPLY, AND STATIONERY STORES"
LYRECO,28/09/2018,BANNER GROUP LTD,1.73,"OFFICE, SCHOOL SUPPLY, AND STATIONERY STORES"
LYRECO,28/09/2018,BANNER GROUP LTD,4.28,"OFFICE, SCHOOL SUPPLY, AND STATIONERY STORES"
LYRECO,28/09/2018,BANNER GROUP LTD,1.44,"OFFICE, SCHOOL SUPPLY, AND STATIONERY STORES"
LYRECO,28/09/2018,BANNER GROUP LTD,2.98,"OFFICE, SCHOOL SUPPLY, AND STATIONERY STORES"
LYRECO,28/09/2018,BANNER GROUP LTD,28.37,"OFFICE, SCHOOL SUPPLY, AND STATIONERY STORES"
LYRECO,28/09/2018,BANNER GROUP LTD,2.71,"OFFICE, SCHOOL SUPPLY, AND STATIONERY STORES"
LYRECO,28/09/2018,BANNER GROUP LTD,3.12,"OFFICE, SCHOOL SUPPLY, AND STATIONERY STORES"
LYRECO,28/09/2018,BANNER GROUP LTD,13.06,"OFFICE, SCHOOL SUPPLY, AND STATIONERY STORES"
LYRECO,28/09/2018,BANNER GROUP LTD,3.72,"OFFICE, SCHOOL SUPPLY, AND STATIONERY STORES"
LYRECO,28/09/2018,BANNER GROUP LTD,8.64,"OFFICE, SCHOOL SUPPLY, AND STATIONERY STORES"
LYRECO,28/09/2018,BANNER GROUP LTD,.41,"OFFICE, SCHOOL SUPPLY, AND STATIONERY STORES"
NEIGHBOURHOODS,02/07/2018,AMAZON EU,8.99,DIRECT MARKETING-OTHER DIRECT MARKETERS/NOT ELSEW.
NEIGHBOURHOODS,03/07/2018,AWS #140818438,83.86,MISCELLANEOUS AND SPECIALTY RETAIL STORES
NEIGHBOURHOODS,04/07/2018,LOCK 4 VANS LTD,466.74,AUTOMOTIVE BODY REPAIR SHOPS
NEIGHBOURHOODS,05/07/2018,WILKO RETAIL LIMIT,6.00,HOUSEHOLD APPLIANCE STORES
NEIGHBOURHOODS,07/07/2018,ALDI 64 772,14.90,"GROCERY STORES, SUPERMARKETS"
NEIGHBOURHOODS,06/07/2018,B & Q 1328,176.74,"BUILDING MATERIALS, LUMBER STORES"
NEIGHBOURHOODS,10/07/2018,WWW.DIRECT-FUNDRAISING,46.14,MISCELLANEOUS AND SPECIALTY RETAIL STORES
NEIGHBOURHOODS,09/07/2018,MSFT  <E030065T22>,270.72,"COMPUTERS, COMPUTER PERIPHERAL EQUIPMENT, SOFTWARE"
NEIGHBOURHOODS,09/07/2018,MSFT  <E030065RTC>,39.60,"COMPUTERS, COMPUTER PERIPHERAL EQUIPMENT, SOFTWARE"
NEIGHBOURHOODS,11/07/2018,AMAZON SVCS EU-UK AMAZ,23.99,BOOK STORES
NEIGHBOURHOODS,10/07/2018,AMAZON SVCS EU-UK AMAZ,67.96,BOOK STORES
NEIGHBOURHOODS,12/07/2018,ADOBE  STOCK,23.99,COMPUTER SOFTWARE STORES
NEIGHBOURHOODS,15/07/2018,FACEBK JUSD6GWWY2,38.10,ADVERTISING SERVICES
NEIGHBOURHOODS,15/07/2018,FACEBK DUSD6GWWY2,561.90,ADVERTISING SERVICES
NEIGHBOURHOODS,13/07/2018,ARGOS RETAIL GROUP,45.98,DISCOUNT STORES
NEIGHBOURHOODS,13/07/2018,TESCO STORES 5886,40.00,"GROCERY STORES, SUPERMARKETS"
NEIGHBOURHOODS,13/07/2018,PAK FOODS,6.81,"GROCERY STORES, SUPERMARKETS"
NEIGHBOURHOODS,13/07/2018,ZOHO CORPORATION,133.54,DIRECT MARKETING-CONTINUITY/SUBSCRIPTION MERCHANTS
NEIGHBOURHOODS,16/07/2018,HOLIDAY INN,106.25,"LODGING-HOTELS,MOTELS,RESORTS-NOT CLASSIFIED"
NEIGHBOURHOODS,16/07/2018,SAINSBURYS SACAT 2059,27.45,"GROCERY STORES, SUPERMARKETS"
NEIGHBOURHOODS,17/07/2018,WICKES BUILDING,114.20,"BUILDING MATERIALS, LUMBER STORES"
NEIGHBOURHOODS,17/07/2018,CURRYS SUPERSTORE,44.99,ELECTRONIC SALES
NEIGHBOURHOODS,17/07/2018,AMAZON SVCS EU-UK AMAZ,7.99,BOOK STORES
NEIGHBOURHOODS,17/07/2018,AMAZON SVCS EU-UK AMAZ,14.97,BOOK STORES
NEIGHBOURHOODS,17/07/2018,DVLA VEHICLE TAX,252.50,GOVERNMENT SERVICES-NOT ELSEWHERE CLASSIFIED
NEIGHBOURHOODS,17/07/2018,DVLA VEHICLE TAX,252.50,GOVERNMENT SERVICES-NOT ELSEWHERE CLASSIFIED
NEIGHBOURHOODS,17/07/2018,DVLA VEHICLE TAX,652.50,GOVERNMENT SERVICES-NOT ELSEWHERE CLASSIFIED
NEIGHBOURHOODS,17/07/2018,DVLA VEHICLE TAX,167.50,GOVERNMENT SERVICES-NOT ELSEWHERE CLASSIFIED
NEIGHBOURHOODS,17/07/2018,DVLA VEHICLE TAX,252.50,GOVERNMENT SERVICES-NOT ELSEWHERE CLASSIFIED
NEIGHBOURHOODS,17/07/2018,TESCO STORES 2404,6.00,"GROCERY STORES, SUPERMARKETS"
NEIGHBOURHOODS,16/07/2018,GREY MATTER LTD,224.42,COMPUTER SOFTWARE STORES
NEIGHBOURHOODS,19/07/2018,ADOBE  CREATIVE CLOUD,49.94,COMPUTER SOFTWARE STORES
NEIGHBOURHOODS,19/07/2018,BRITISH STANDARDS,213.60,BUSINESS SERVICES-NOT ELSEWHERE CLASSIFIED
NEIGHBOURHOODS,19/07/2018,BRITISH STANDARDS,152.40,BUSINESS SERVICES-NOT ELSEWHERE CLASSIFIED
NEIGHBOURHOODS,19/07/2018,B&M RETAIL,14.96,DISCOUNT STORES
NEIGHBOURHOODS,19/07/2018,ASDA SUPERSTORE,4.62,"GROCERY STORES, SUPERMARKETS"
NEIGHBOURHOODS,19/07/2018,HOME BARGAINS,20.00,HARDWARE STORES
NEIGHBOURHOODS,19/07/2018,AMAZON UK MARKETPLACE,122.45,BOOK STORES
NEIGHBOURHOODS,19/07/2018,AMAZON UK MARKETPLACE,5.69,BOOK STORES
NEIGHBOURHOODS,21/07/2018,SCREENCLOUD,48.00,"COMP PROGRAMING,DATA PRCSNG,INTGRTD SYS DSGN SRVS"
NEIGHBOURHOODS,20/07/2018,WILKO RETAIL LIMIT,8.25,HOUSEHOLD APPLIANCE STORES
NEIGHBOURHOODS,20/07/2018,ASDA SUPERSTORE,36.00,"GROCERY STORES, SUPERMARKETS"
NEIGHBOURHOODS,20/07/2018,R. E. FARM LTD,15.00,PET SHOPS - PET FOODS AND SUPPLIES
NEIGHBOURHOODS,24/07/2018,,2.28,
NEIGHBOURHOODS,23/07/2018,AMAZON EU,9.99,DIRECT MARKETING-OTHER DIRECT MARKETERS/NOT ELSEW.
NEIGHBOURHOODS,23/07/2018,WICKES BUILDING,20.00,"BUILDING MATERIALS, LUMBER STORES"
NEIGHBOURHOODS,23/07/2018,TWITTER ONLINE ADS,10.00,ADVERTISING SERVICES
NEIGHBOURHOODS,23/07/2018,ADOBE  CREATIVE CLOUD,49.94,COMPUTER SOFTWARE STORES
NEIGHBOURHOODS,23/07/2018,ZOHO CORPORATION,82.74,DIRECT MARKETING-CONTINUITY/SUBSCRIPTION MERCHANTS
NEIGHBOURHOODS,23/07/2018,T J MORRIS LTD,124.93,HARDWARE STORES
NEIGHBOURHOODS,23/07/2018,HOMEBASE LTD 475,42.00,"BUILDING MATERIALS, LUMBER STORES"
NEIGHBOURHOODS,25/07/2018,APPLE ONLINE STORE GBP,29.00,ELECTRONIC SALES
NEIGHBOURHOODS,24/07/2018,AMAZON EU,110.00,DIRECT MARKETING-OTHER DIRECT MARKETERS/NOT ELSEW.
NEIGHBOURHOODS,24/07/2018,AMAZON UK MARKETPLACE,9.98,BOOK STORES
NEIGHBOURHOODS,23/07/2018,SAFE.CO.UK,240.00,"OFFICE, SCHOOL SUPPLY, AND STATIONERY STORES"
NEIGHBOURHOODS,25/07/2018,GOOGLE  ADWS2120720102,.00,DIRECT MARKETING-CONTINUITY/SUBSCRIPTION MERCHANTS
NEIGHBOURHOODS,25/07/2018,GOOGLE  ADWS2120720102,444.31,DIRECT MARKETING-CONTINUITY/SUBSCRIPTION MERCHANTS
NEIGHBOURHOODS,25/07/2018,BILCOURT T/A SUPERLEC,797.47,ELECTRICAL PARTS AND EQUIPMENT
NEIGHBOURHOODS,25/07/2018,FACEBK 5EQLGGWXY2,33.26,ADVERTISING SERVICES
NEIGHBOURHOODS,25/07/2018,FACEBK UDQLGGWXY2,566.74,ADVERTISING SERVICES
NEIGHBOURHOODS,25/07/2018,PAYPAL  TOUCHBASE,127.68,ELECTRONIC SALES
NEIGHBOURHOODS,25/07/2018,INGENICO (UK) LTD,18.74,"EQUIPMENT RENTAL&LEASING SVS, FURNTURE/TOOL RENTAL"
NEIGHBOURHOODS,25/07/2018,HTTP://WWW.GALATENT.CO,893.82,MISCELLANEOUS AND SPECIALTY RETAIL STORES
NEIGHBOURHOODS,25/07/2018,WWW.STEPSANDSTILLAGES.,"1,830.60",METAL SERVICE CENTERS AND OFFICES
NEIGHBOURHOODS,24/07/2018,TVLICENSING.CO.UK,150.50,"CONSULTING, MANAGEMENT, AND PUBLIC RELATIONS SVCS"
NEIGHBOURHOODS,26/07/2018,AMAZON UK MARKETPLACE,12.57,BOOK STORES
NEIGHBOURHOODS,26/07/2018,BYWATER TRAINING LTD,909.65,"SCHOOLS, TRADE AND VOCATIONAL"
NEIGHBOURHOODS,26/07/2018,WWW.PANCAKE-WORLD.COM,27.94,CATERERS
NEIGHBOURHOODS,26/07/2018,CITY ELECTRICAL FA,240.00,"BUILDING MATERIALS, LUMBER STORES"
NEIGHBOURHOODS,29/07/2018,DECATHLON,35.94,SPORTING GOODS STORES
NEIGHBOURHOODS,29/07/2018,SAINSBURYS 0751,16.00,"GROCERY STORES, SUPERMARKETS"
NEIGHBOURHOODS,28/07/2018,TWITTER ONLINE ADS,50.00,ADVERTISING SERVICES
NEIGHBOURHOODS,27/07/2018,CURRYS SUPERSTORE,402.99,ELECTRONIC SALES
NEIGHBOURHOODS,30/07/2018,POUNDLAND LTD 1039,47.10,DISCOUNT STORES
NEIGHBOURHOODS,30/07/2018,POUNDLAND 1453,47.00,DISCOUNT STORES
NEIGHBOURHOODS,30/07/2018,LUVYABABES LTD,35.92,WOMEN'S READY TO WEAR STORES
NEIGHBOURHOODS,30/07/2018,FAST KEY SERVICES LIMI,72.27,BUSINESS SERVICES-NOT ELSEWHERE CLASSIFIED
NEIGHBOURHOODS,29/07/2018,JUICE ELECTRICAL,359.94,DEPARTMENT STORES
NEIGHBOURHOODS,31/07/2018,AMAZON.CO.UK,13.83,DIRECT MARKETING-OTHER DIRECT MARKETERS/NOT ELSEW.
NEIGHBOURHOODS,31/07/2018,AMAZON.CO.UK,16.48,DIRECT MARKETING-OTHER DIRECT MARKETERS/NOT ELSEW.
NEIGHBOURHOODS,31/07/2018,SAINSBURYS SACAT0871,21.75,"GROCERY STORES, SUPERMARKETS"
NEIGHBOURHOODS,31/07/2018,BAY TREE APARTMENTS,"1,000.00",REAL ESTATE AGENTS AND MANAGERS-RENTALS
NEIGHBOURHOODS,31/07/2018,FACEBK MQHKLGNXY2,15.58,ADVERTISING SERVICES
NEIGHBOURHOODS,31/07/2018,FACEBK FVGYKGWXY2,373.88,ADVERTISING SERVICES
NEIGHBOURHOODS,31/07/2018,FACEBK ZRBEJF6R32,7.89,ADVERTISING SERVICES
NEIGHBOURHOODS,31/07/2018,FACEBK YRBEJF6R32,88.02,ADVERTISING SERVICES
NEIGHBOURHOODS,31/07/2018,SAINSBURYS 0871,16.00,"GROCERY STORES, SUPERMARKETS"
NEIGHBOURHOODS,30/07/2018,FLIGHTCASEW,291.60,RECORD SHOPS
NEIGHBOURHOODS,01/08/2018,WWW.CULTPEN.COM,85.80,"OFFICE, SCHOOL SUPPLY, AND STATIONERY STORES"
NEIGHBOURHOODS,31/07/2018,WICKES,117.48,HOME SUPPLY WAREHOUSE STORES
NEIGHBOURHOODS,02/08/2018,TWITTER ONLINE ADS,20.00,ADVERTISING SERVICES
NEIGHBOURHOODS,02/08/2018,WICKES,119.10,HOME SUPPLY WAREHOUSE STORES
NEIGHBOURHOODS,02/08/2018,WICKES,200.00,HOME SUPPLY WAREHOUSE STORES
NEIGHBOURHOODS,02/08/2018,ALDI 93 772,16.41,"GROCERY STORES, SUPERMARKETS"
NEIGHBOURHOODS,04/08/2018,R. E. FARM LTD,15.00,PET SHOPS - PET FOODS AND SUPPLIES
NEIGHBOURHOODS,03/08/2018,AWS EMEA,81.15,BUSINESS SERVICES-NOT ELSEWHERE CLASSIFIED
NEIGHBOURHOODS,03/08/2018,AMAZON MKTPLACE PMTS,2.88,MISCELLANEOUS AND SPECIALTY RETAIL STORES
NEIGHBOURHOODS,03/08/2018,MAILCHIMP    PAYASYOUG,193.56,DIRECT MARKETING-CONTINUITY/SUBSCRIPTION MERCHANTS
NEIGHBOURHOODS,03/08/2018,MACHINE MART LTD,96.50,HOUSEHOLD APPLIANCE STORES
NEIGHBOURHOODS,03/08/2018,PAYPAL  MALCOLMORD,77.89,BOOK STORES
NEIGHBOURHOODS,07/08/2018,H.C.SLINGSBY PLC,83.70,INDUSTRIAL SUPPLIES NOT ELSEWHERE CLASSIFIED
NEIGHBOURHOODS,09/08/2018,AMAZON.CO.UK,89.60,DIRECT MARKETING-OTHER DIRECT MARKETERS/NOT ELSEW.
NEIGHBOURHOODS,08/08/2018,AMAZON.CO.UK,42.12,DIRECT MARKETING-OTHER DIRECT MARKETERS/NOT ELSEW.
NEIGHBOURHOODS,08/08/2018,AMAZON.CO.UK,41.29,DIRECT MARKETING-OTHER DIRECT MARKETERS/NOT ELSEW.
NEIGHBOURHOODS,09/08/2018,SAINSBURYS SACAT 2059,21.85,"GROCERY STORES, SUPERMARKETS"
NEIGHBOURHOODS,12/08/2018,ADOBE  STOCK,23.99,COMPUTER SOFTWARE STORES
NEIGHBOURHOODS,11/08/2018,JURYS INN DERBY FRONT,65.00,"LODGING-HOTELS,MOTELS,RESORTS-NOT CLASSIFIED"
NEIGHBOURHOODS,09/08/2018,MSFT  <E03006CJAQ>,270.72,"COMPUTERS, COMPUTER PERIPHERAL EQUIPMENT, SOFTWARE"
NEIGHBOURHOODS,09/08/2018,MSFT  <E03006CKKK>,51.36,"COMPUTERS, COMPUTER PERIPHERAL EQUIPMENT, SOFTWARE"
NEIGHBOURHOODS,13/08/2018,ACE DISCOUNTSDERBY,21.40,HOUSEHOLD APPLIANCE STORES
NEIGHBOURHOODS,13/08/2018,SJD SUPPLIES LTD,36.95,MISCELLANEOUS AND SPECIALTY RETAIL STORES
NEIGHBOURHOODS,13/08/2018,POUNDLAND LTD 1039,32.05,DISCOUNT STORES
NEIGHBOURHOODS,13/08/2018,NCS VUE CITB HS&E REV,14.70,SCHOOLS & EDUCATIONAL SVC-NOT ELSEWHERE CLASSIFIED
NEIGHBOURHOODS,13/08/2018,ZOHO CORPORATION,263.14,DIRECT MARKETING-CONTINUITY/SUBSCRIPTION MERCHANTS
NEIGHBOURHOODS,13/08/2018,WILKO RETAIL LIMIT,6.75,HOUSEHOLD APPLIANCE STORES
NEIGHBOURHOODS,14/08/2018,AMAZON.CO.UK,73.99,DIRECT MARKETING-OTHER DIRECT MARKETERS/NOT ELSEW.
NEIGHBOURHOODS,16/08/2018,AMAZON.CO.UK,56.00,DIRECT MARKETING-OTHER DIRECT MARKETERS/NOT ELSEW.
NEIGHBOURHOODS,15/08/2018,WWW.BISHOPSPORT.CO.UK,313.20,SPORTING GOODS STORES
NEIGHBOURHOODS,15/08/2018,DVLA VEHICLE TAX,652.50,GOVERNMENT SERVICES-NOT ELSEWHERE CLASSIFIED
NEIGHBOURHOODS,15/08/2018,DVLA VEHICLE TAX,652.50,GOVERNMENT SERVICES-NOT ELSEWHERE CLASSIFIED
NEIGHBOURHOODS,15/08/2018,DVLA VEHICLE TAX,652.50,GOVERNMENT SERVICES-NOT ELSEWHERE CLASSIFIED
NEIGHBOURHOODS,15/08/2018,DVLA VEHICLE TAX,652.50,GOVERNMENT SERVICES-NOT ELSEWHERE CLASSIFIED
NEIGHBOURHOODS,15/08/2018,DVLA VEHICLE TAX,652.50,GOVERNMENT SERVICES-NOT ELSEWHERE CLASSIFIED
NEIGHBOURHOODS,15/08/2018,DVLA VEHICLE TAX,652.50,GOVERNMENT SERVICES-NOT ELSEWHERE CLASSIFIED
NEIGHBOURHOODS,15/08/2018,DVLA VEHICLE TAX,652.50,GOVERNMENT SERVICES-NOT ELSEWHERE CLASSIFIED
NEIGHBOURHOODS,15/08/2018,DVLA VEHICLE TAX,652.50,GOVERNMENT SERVICES-NOT ELSEWHERE CLASSIFIED
NEIGHBOURHOODS,15/08/2018,DVLA VEHICLE TAX,652.50,GOVERNMENT SERVICES-NOT ELSEWHERE CLASSIFIED
NEIGHBOURHOODS,15/08/2018,DVLA VEHICLE TAX,652.50,GOVERNMENT SERVICES-NOT ELSEWHERE CLASSIFIED
NEIGHBOURHOODS,15/08/2018,DVLA VEHICLE TAX,652.50,GOVERNMENT SERVICES-NOT ELSEWHERE CLASSIFIED
NEIGHBOURHOODS,15/08/2018,DVLA VEHICLE TAX,652.50,GOVERNMENT SERVICES-NOT ELSEWHERE CLASSIFIED
NEIGHBOURHOODS,15/08/2018,DVLA VEHICLE TAX,652.50,GOVERNMENT SERVICES-NOT ELSEWHERE CLASSIFIED
NEIGHBOURHOODS,15/08/2018,DVLA VEHICLE TAX,252.50,GOVERNMENT SERVICES-NOT ELSEWHERE CLASSIFIED
NEIGHBOURHOODS,15/08/2018,DVLA VEHICLE TAX,252.50,GOVERNMENT SERVICES-NOT ELSEWHERE CLASSIFIED
NEIGHBOURHOODS,15/08/2018,DVLA VEHICLE TAX,252.50,GOVERNMENT SERVICES-NOT ELSEWHERE CLASSIFIED
NEIGHBOURHOODS,15/08/2018,DVLA VEHICLE TAX,252.50,GOVERNMENT SERVICES-NOT ELSEWHERE CLASSIFIED
NEIGHBOURHOODS,15/08/2018,DVLA VEHICLE TAX,252.50,GOVERNMENT SERVICES-NOT ELSEWHERE CLASSIFIED
NEIGHBOURHOODS,15/08/2018,DVLA VEHICLE TAX,252.50,GOVERNMENT SERVICES-NOT ELSEWHERE CLASSIFIED
NEIGHBOURHOODS,15/08/2018,DVLA VEHICLE TAX,167.50,GOVERNMENT SERVICES-NOT ELSEWHERE CLASSIFIED
NEIGHBOURHOODS,15/08/2018,DVLA VEHICLE TAX,232.50,GOVERNMENT SERVICES-NOT ELSEWHERE CLASSIFIED
NEIGHBOURHOODS,15/08/2018,AMZN MKTP UK,23.20,BOOK STORES
NEIGHBOURHOODS,16/08/2018,AMAZON.CO.UK,33.60,DIRECT MARKETING-OTHER DIRECT MARKETERS/NOT ELSEW.
NEIGHBOURHOODS,16/08/2018,DISCLOSURE & BARRING,13.00,GOVERNMENT SERVICES-NOT ELSEWHERE CLASSIFIED
NEIGHBOURHOODS,15/08/2018,DVLA VEHICLE TAX,652.50,GOVERNMENT SERVICES-NOT ELSEWHERE CLASSIFIED
NEIGHBOURHOODS,18/08/2018,GOOGLE  ADS2120720102,.00,DIRECT MARKETING-CONTINUITY/SUBSCRIPTION MERCHANTS
NEIGHBOURHOODS,18/08/2018,GOOGLE  ADS2120720102,500.00,DIRECT MARKETING-CONTINUITY/SUBSCRIPTION MERCHANTS
NEIGHBOURHOODS,17/08/2018,R. E. FARM LTD,15.00,PET SHOPS - PET FOODS AND SUPPLIES
NEIGHBOURHOODS,17/08/2018,LOCK 4 VANS LTD,-8.95,AUTOMOTIVE BODY REPAIR SHOPS
NEIGHBOURHOODS,17/08/2018,AMZN MKTP UK,5.98,BOOK STORES
NEIGHBOURHOODS,20/08/2018,TRAVELODGE GB0000,152.00,TRAVELODGE
NEIGHBOURHOODS,20/08/2018,WWW.CATERKWIK.CO.UK,395.99,"COMMERCIAL EQUIPMENT, NOT ELSEWHERE CLASSIFIED"
NEIGHBOURHOODS,20/08/2018,BELBIN ASSOCIATES,510.00,"CONSULTING, MANAGEMENT, AND PUBLIC RELATIONS SVCS"
NEIGHBOURHOODS,20/08/2018,LOCK 4 VANS LTD,-1.79,AUTOMOTIVE BODY REPAIR SHOPS
NEIGHBOURHOODS,20/08/2018,AMZ AMAZON.CO.UK,-89.60,DIRECT MARKETING-OTHER DIRECT MARKETERS/NOT ELSEW.
NEIGHBOURHOODS,21/08/2018,HALLMARK HOTEL,63.75,"LODGING-HOTELS,MOTELS,RESORTS-NOT CLASSIFIED"
NEIGHBOURHOODS,21/08/2018,SCREENCLOUD,48.00,"COMP PROGRAMING,DATA PRCSNG,INTGRTD SYS DSGN SRVS"
NEIGHBOURHOODS,21/08/2018,CHARTERED INSTITUTE OF,100.00,"ORGANIZATIONS, CHARITABLE AND SOCIAL SERVICES"
NEIGHBOURHOODS,21/08/2018,ASDA SUPERSTORE,10.50,"GROCERY STORES, SUPERMARKETS"
NEIGHBOURHOODS,22/08/2018,QUIET STORM SOLUTIONS,504.00,BUSINESS SERVICES-NOT ELSEWHERE CLASSIFIED
NEIGHBOURHOODS,22/08/2018,AMZN MKTP UK,12.69,BOOK STORES
NEIGHBOURHOODS,20/08/2018,TVLICENSING.CO.UK,150.50,"CONSULTING, MANAGEMENT, AND PUBLIC RELATIONS SVCS"
NEIGHBOURHOODS,23/08/2018,ADOBE  CREATIVE CLOUD,49.94,COMPUTER SOFTWARE STORES
NEIGHBOURHOODS,23/08/2018,AMZN MKTP UK,2.97,BOOK STORES
NEIGHBOURHOODS,23/08/2018,WWW.VEHICLECONTROL.CO.,60.00,AUTOMOBILE PARKING LOTS AND GARAGES
NEIGHBOURHOODS,22/08/2018,WOLVERHAMPTON HOTEL,34.00,"LODGING-HOTELS,MOTELS,RESORTS-NOT CLASSIFIED"
NEIGHBOURHOODS,22/08/2018,AMZN MKTP UK AMAZON.CO,13.99,BOOK STORES
NEIGHBOURHOODS,26/08/2018,TWITTER ONLINE ADS,5.00,ADVERTISING SERVICES
NEIGHBOURHOODS,25/08/2018,AMZN MKTP UK,25.98,BOOK STORES
NEIGHBOURHOODS,24/08/2018,FACEBK RAGXWGWXY2,599.84,ADVERTISING SERVICES
NEIGHBOURHOODS,28/08/2018,TESCO STORES 5886,5.57,"GROCERY STORES, SUPERMARKETS"
NEIGHBOURHOODS,28/08/2018,TRAVELODGE GB0000,38.00,TRAVELODGE
NEIGHBOURHOODS,28/08/2018,BRITANNIA,38.00,"LODGING-HOTELS,MOTELS,RESORTS-NOT CLASSIFIED"
NEIGHBOURHOODS,28/08/2018,WWW.ASOS.COM,25.50,FAMILY CLOTHING STORES
NEIGHBOURHOODS,28/08/2018,AMZN MKTP UK AMAZON.CO,42.10,BOOK STORES
NEIGHBOURHOODS,30/08/2018,HOTELS.COM151493121588,370.04,TRAVEL AGENCIES AND TOUR OPERATORS
NEIGHBOURHOODS,30/08/2018,AMZN MKTP UK,10.99,BOOK STORES
NEIGHBOURHOODS,30/08/2018,WM MORRISON 078,3.55,"GROCERY STORES, SUPERMARKETS"
NEIGHBOURHOODS,30/08/2018,AMAZON.CO.UK,111.03,DIRECT MARKETING-OTHER DIRECT MARKETERS/NOT ELSEW.
NEIGHBOURHOODS,29/08/2018,WOLVERHAMPTON HOTEL,68.00,"LODGING-HOTELS,MOTELS,RESORTS-NOT CLASSIFIED"
NEIGHBOURHOODS,03/09/2018,AWS EMEA,82.93,BUSINESS SERVICES-NOT ELSEWHERE CLASSIFIED
NEIGHBOURHOODS,03/09/2018,AMAZON MKTPLACE PMTS,2.15,MISCELLANEOUS AND SPECIALTY RETAIL STORES
NEIGHBOURHOODS,02/09/2018,TWITTER ONLINE ADS,50.00,ADVERTISING SERVICES
NEIGHBOURHOODS,02/09/2018,MARKS&SPENCER PLC SF,38.56,"GROCERY STORES, SUPERMARKETS"
NEIGHBOURHOODS,01/09/2018,HTTP://PMSE.OFCOM.ORG.,51.00,PROFESSIONAL SERVICES-NOT ELSEWHERE CLASSIFIED
NEIGHBOURHOODS,01/09/2018,GIFFGAFF,15.00,TELECOM INCL PREPAID/RECURRING PHONE SVCS
NEIGHBOURHOODS,01/09/2018,HOMEBASE LTD 042,48.00,"BUILDING MATERIALS, LUMBER STORES"
NEIGHBOURHOODS,31/08/2018,ASHLEY WOOD RECOVERY,150.00,AUTOMOTIVE SERVICE SHOPS
NEIGHBOURHOODS,31/08/2018,EB  EVENT SAFETY AMP S,215.04,BUSINESS SERVICES-NOT ELSEWHERE CLASSIFIED
NEIGHBOURHOODS,31/08/2018,FACEBK 6PUDXHEXY2,298.34,ADVERTISING SERVICES
NEIGHBOURHOODS,31/08/2018,FACEBK XVPX4GJR32,4.09,ADVERTISING SERVICES
NEIGHBOURHOODS,03/09/2018,BLUEBELL DAIRY,156.10,"EATING PLACES, RESTAURANTS"
NEIGHBOURHOODS,03/09/2018,TWITTER ONLINE ADS,5.00,ADVERTISING SERVICES
NEIGHBOURHOODS,03/09/2018,SCREWFIX DERBY ALFRETO,59.60,"BUILDING MATERIALS, LUMBER STORES"
NEIGHBOURHOODS,03/09/2018,FSPRG.UK,108.00,DIGITAL GOODS MULTI CATEGORY
NEIGHBOURHOODS,04/09/2018,AWS EMEA,17.89,BUSINESS SERVICES-NOT ELSEWHERE CLASSIFIED
NEIGHBOURHOODS,05/09/2018,THE BIKEABILITY TRUST,955.96,STATIONERY/OFFICE SUPPLIES/PRINTING & WRITING PAP.
NEIGHBOURHOODS,06/09/2018,AMZN MKTP UK,43.04,BOOK STORES
NEIGHBOURHOODS,06/09/2018,AMAZON.CO.UK,15.39,DIRECT MARKETING-OTHER DIRECT MARKETERS/NOT ELSEW.
NEIGHBOURHOODS,06/09/2018,WWW.OMS.UK.COM,52.80,"COLLEGES, UNIV, PRO SCHOOLS, JUNIOR COLLEGES"
NEIGHBOURHOODS,06/09/2018,AMZN MKTP UK AMAZON.CO,15.30,BOOK STORES
NEIGHBOURHOODS,06/09/2018,R. E. FARM LTD,15.80,PET SHOPS - PET FOODS AND SUPPLIES
NEIGHBOURHOODS,09/09/2018,TWITTER ONLINE ADS,10.00,ADVERTISING SERVICES
NEIGHBOURHOODS,09/09/2018,AMAZON.CO.UK,74.99,DIRECT MARKETING-OTHER DIRECT MARKETERS/NOT ELSEW.
NEIGHBOURHOODS,08/09/2018,APPLE ONLINE STORE GBP,129.00,ELECTRONIC SALES
NEIGHBOURHOODS,10/09/2018,ASDA SUPERSTORE,14.00,"GROCERY STORES, SUPERMARKETS"
NEIGHBOURHOODS,10/09/2018,GOOGLE  ADS2120720102,.00,DIRECT MARKETING-CONTINUITY/SUBSCRIPTION MERCHANTS
NEIGHBOURHOODS,10/09/2018,GOOGLE  ADS2120720102,500.00,DIRECT MARKETING-CONTINUITY/SUBSCRIPTION MERCHANTS
NEIGHBOURHOODS,10/09/2018,TWITTER ONLINE ADS,35.00,ADVERTISING SERVICES
NEIGHBOURHOODS,10/09/2018,CHOICE LETS & ESTATES,682.50,"LODGING-HOTELS,MOTELS,RESORTS-NOT CLASSIFIED"
NEIGHBOURHOODS,11/09/2018,WICKES,30.50,HOME SUPPLY WAREHOUSE STORES
NEIGHBOURHOODS,10/09/2018,MSFT  <E03006JEE9>,270.72,"COMPUTERS, COMPUTER PERIPHERAL EQUIPMENT, SOFTWARE"
NEIGHBOURHOODS,10/09/2018,MSFT  <E03006JE3L>,46.80,"COMPUTERS, COMPUTER PERIPHERAL EQUIPMENT, SOFTWARE"
NEIGHBOURHOODS,12/09/2018,ASDA SUPERSTORE,36.42,"GROCERY STORES, SUPERMARKETS"
NEIGHBOURHOODS,12/09/2018,ADOBE  STOCK,23.99,COMPUTER SOFTWARE STORES
NEIGHBOURHOODS,13/09/2018,MY TOOL SHED,65.76,HARDWARE STORES
NEIGHBOURHOODS,13/09/2018,REEDS CARPETING CONTRA,"3,379.20",FLOOR COVERING STORES
NEIGHBOURHOODS,13/09/2018,ZOHO CORPORATION,257.14,DIRECT MARKETING-CONTINUITY/SUBSCRIPTION MERCHANTS
NEIGHBOURHOODS,16/09/2018,AMAZON.CO.UK,14.19,DIRECT MARKETING-OTHER DIRECT MARKETERS/NOT ELSEW.
NEIGHBOURHOODS,15/09/2018,AM LONDON LOCKSMITH LT,228.00,BUSINESS SERVICES-NOT ELSEWHERE CLASSIFIED
NEIGHBOURHOODS,15/09/2018,SUPAPET DERBY,7.99,PET SHOPS - PET FOODS AND SUPPLIES
NEIGHBOURHOODS,14/09/2018,FACEBK EVQUHHJXY2,600.00,ADVERTISING SERVICES
NEIGHBOURHOODS,14/09/2018,DVLA VEHICLE TAX,652.50,GOVERNMENT SERVICES-NOT ELSEWHERE CLASSIFIED
NEIGHBOURHOODS,14/09/2018,DVLA VEHICLE TAX,652.50,GOVERNMENT SERVICES-NOT ELSEWHERE CLASSIFIED
NEIGHBOURHOODS,14/09/2018,DVLA VEHICLE TAX,652.50,GOVERNMENT SERVICES-NOT ELSEWHERE CLASSIFIED
NEIGHBOURHOODS,14/09/2018,DVLA VEHICLE TAX,652.50,GOVERNMENT SERVICES-NOT ELSEWHERE CLASSIFIED
NEIGHBOURHOODS,14/09/2018,DVLA VEHICLE TAX,252.50,GOVERNMENT SERVICES-NOT ELSEWHERE CLASSIFIED
NEIGHBOURHOODS,14/09/2018,DVLA VEHICLE TAX,252.50,GOVERNMENT SERVICES-NOT ELSEWHERE CLASSIFIED
NEIGHBOURHOODS,14/09/2018,DVLA VEHICLE TAX,252.50,GOVERNMENT SERVICES-NOT ELSEWHERE CLASSIFIED
NEIGHBOURHOODS,14/09/2018,DVLA VEHICLE TAX,252.50,GOVERNMENT SERVICES-NOT ELSEWHERE CLASSIFIED
NEIGHBOURHOODS,14/09/2018,DVLA VEHICLE TAX,252.50,GOVERNMENT SERVICES-NOT ELSEWHERE CLASSIFIED
NEIGHBOURHOODS,14/09/2018,DVLA VEHICLE TAX,252.50,GOVERNMENT SERVICES-NOT ELSEWHERE CLASSIFIED
NEIGHBOURHOODS,14/09/2018,DVLA VEHICLE TAX,252.50,GOVERNMENT SERVICES-NOT ELSEWHERE CLASSIFIED
NEIGHBOURHOODS,14/09/2018,DVLA VEHICLE TAX,252.50,GOVERNMENT SERVICES-NOT ELSEWHERE CLASSIFIED
NEIGHBOURHOODS,14/09/2018,DVLA VEHICLE TAX,252.50,GOVERNMENT SERVICES-NOT ELSEWHERE CLASSIFIED
NEIGHBOURHOODS,14/09/2018,DVLA VEHICLE TAX,252.50,GOVERNMENT SERVICES-NOT ELSEWHERE CLASSIFIED
NEIGHBOURHOODS,14/09/2018,DVLA VEHICLE TAX,252.50,GOVERNMENT SERVICES-NOT ELSEWHERE CLASSIFIED
NEIGHBOURHOODS,14/09/2018,DVLA VEHICLE TAX,252.50,GOVERNMENT SERVICES-NOT ELSEWHERE CLASSIFIED
NEIGHBOURHOODS,14/09/2018,DVLA VEHICLE TAX,252.50,GOVERNMENT SERVICES-NOT ELSEWHERE CLASSIFIED
NEIGHBOURHOODS,14/09/2018,DVLA VEHICLE TAX,252.50,GOVERNMENT SERVICES-NOT ELSEWHERE CLASSIFIED
NEIGHBOURHOODS,14/09/2018,DVLA VEHICLE TAX,252.50,GOVERNMENT SERVICES-NOT ELSEWHERE CLASSIFIED
NEIGHBOURHOODS,14/09/2018,DVLA VEHICLE TAX,252.50,GOVERNMENT SERVICES-NOT ELSEWHERE CLASSIFIED
NEIGHBOURHOODS,14/09/2018,DVLA VEHICLE TAX,252.50,GOVERNMENT SERVICES-NOT ELSEWHERE CLASSIFIED
NEIGHBOURHOODS,14/09/2018,DVLA VEHICLE TAX,252.50,GOVERNMENT SERVICES-NOT ELSEWHERE CLASSIFIED
NEIGHBOURHOODS,14/09/2018,DVLA VEHICLE TAX,252.50,GOVERNMENT SERVICES-NOT ELSEWHERE CLASSIFIED
NEIGHBOURHOODS,14/09/2018,DVLA VEHICLE TAX,252.50,GOVERNMENT SERVICES-NOT ELSEWHERE CLASSIFIED
NEIGHBOURHOODS,14/09/2018,DVLA VEHICLE TAX,252.50,GOVERNMENT SERVICES-NOT ELSEWHERE CLASSIFIED
NEIGHBOURHOODS,14/09/2018,DVLA VEHICLE TAX,252.50,GOVERNMENT SERVICES-NOT ELSEWHERE CLASSIFIED
NEIGHBOURHOODS,14/09/2018,DVLA VEHICLE TAX,252.50,GOVERNMENT SERVICES-NOT ELSEWHERE CLASSIFIED
NEIGHBOURHOODS,14/09/2018,DVLA VEHICLE TAX,252.50,GOVERNMENT SERVICES-NOT ELSEWHERE CLASSIFIED
NEIGHBOURHOODS,14/09/2018,DVLA VEHICLE TAX,252.50,GOVERNMENT SERVICES-NOT ELSEWHERE CLASSIFIED
NEIGHBOURHOODS,14/09/2018,DVLA VEHICLE TAX,252.50,GOVERNMENT SERVICES-NOT ELSEWHERE CLASSIFIED
NEIGHBOURHOODS,14/09/2018,DVLA VEHICLE TAX,252.50,GOVERNMENT SERVICES-NOT ELSEWHERE CLASSIFIED
NEIGHBOURHOODS,17/09/2018,T J MORRIS LTD,7.96,HARDWARE STORES
NEIGHBOURHOODS,17/09/2018,TWITTER ONLINE ADS,35.00,ADVERTISING SERVICES
NEIGHBOURHOODS,18/09/2018,WWW.NISBETS.COM,71.95,DIRECT MARKETING-CATALOG MERCHANTS
NEIGHBOURHOODS,19/09/2018,BILCOURT T/A SUPERLEC,349.63,ELECTRICAL PARTS AND EQUIPMENT
NEIGHBOURHOODS,19/09/2018,AMZN MKTP UK,18.87,BOOK STORES
NEIGHBOURHOODS,19/09/2018,WWW.MUSICALCOCKTAILS.C,209.22,RECORD SHOPS
NEIGHBOURHOODS,20/09/2018,AMZN MKTP UK AMAZON.CO,129.98,BOOK STORES
NEIGHBOURHOODS,20/09/2018,AMZN MKTP UK AMAZON.CO,59.95,BOOK STORES
NEIGHBOURHOODS,20/09/2018,AMZN MKTP UK,173.70,BOOK STORES
NEIGHBOURHOODS,20/09/2018,SCREWFIX DIRECT,190.94,"BUILDING MATERIALS, LUMBER STORES"
NEIGHBOURHOODS,20/09/2018,DERBY ASCOT DRIVE,51.77,"BUILDING MATERIALS, LUMBER STORES"
NEIGHBOURHOODS,23/09/2018,ADOBE  CREATIVE CLOUD,49.94,COMPUTER SOFTWARE STORES
NEIGHBOURHOODS,22/09/2018,B & Q 1328,15.00,"BUILDING MATERIALS, LUMBER STORES"
NEIGHBOURHOODS,22/09/2018,HOMEBASE LTD 042,6.95,"BUILDING MATERIALS, LUMBER STORES"
NEIGHBOURHOODS,21/09/2018,SCREENCLOUD,48.00,"COMP PROGRAMING,DATA PRCSNG,INTGRTD SYS DSGN SRVS"
NEIGHBOURHOODS,21/09/2018,AMAZON.CO.UK,78.00,DIRECT MARKETING-OTHER DIRECT MARKETERS/NOT ELSEW.
NEIGHBOURHOODS,21/09/2018,AMAZON.CO.UK,78.00,DIRECT MARKETING-OTHER DIRECT MARKETERS/NOT ELSEW.
NEIGHBOURHOODS,21/09/2018,AMAZON.CO.UK,78.00,DIRECT MARKETING-OTHER DIRECT MARKETERS/NOT ELSEW.
NEIGHBOURHOODS,20/09/2018,PREMIER INN44027580,233.00,PREMIER INN
NEIGHBOURHOODS,24/09/2018,TESCO STORES 5886,96.20,"GROCERY STORES, SUPERMARKETS"
NEIGHBOURHOODS,24/09/2018,TWITTER ONLINE ADS,35.00,ADVERTISING SERVICES
NEIGHBOURHOODS,24/09/2018,AMZN MKTP UK,18.87,BOOK STORES
NEIGHBOURHOODS,23/09/2018,AMZN MKTP UK AMAZON.CO,198.78,BOOK STORES
NEIGHBOURHOODS,23/09/2018,AMZN MKTP UK AMAZON.CO,11.98,BOOK STORES
NEIGHBOURHOODS,25/09/2018,ARGOS CHADDESDEN I,18.00,DISCOUNT STORES
NEIGHBOURHOODS,25/09/2018,AMZN MKTP UK,3.08,BOOK STORES
NEIGHBOURHOODS,25/09/2018,ARGOS CHADDESDEN I,12.00,DISCOUNT STORES
NEIGHBOURHOODS,25/09/2018,MACHINE MART LTD,41.99,HOUSEHOLD APPLIANCE STORES
NEIGHBOURHOODS,26/09/2018,NEWITTS.COM,23.99,"SPORTS APPAREL, RIDING APPAREL STORES"
NEIGHBOURHOODS,26/09/2018,AMAZON.CO.UK,16.99,DIRECT MARKETING-OTHER DIRECT MARKETERS/NOT ELSEW.
NEIGHBOURHOODS,26/09/2018,AMZN MKTP UK,19.99,BOOK STORES
NEIGHBOURHOODS,26/09/2018,PETER WYKES,60.00,"FURNITURE-REUPHOLSTERY AND REPAIR, REFINISHING"
NEIGHBOURHOODS,26/09/2018,CURRYS SUPERSTORE,74.99,ELECTRONIC SALES
NEIGHBOURHOODS,26/09/2018,POST OFFICE COUNTER,40.00,POSTAL SERVICES-GOVERNMENT ONLY
NEIGHBOURHOODS,25/09/2018,PREMIER INN 44537265,71.00,PREMIER INN
NEIGHBOURHOODS,27/09/2018,EDWARDES BROS LTD,347.06,HOME SUPPLY WAREHOUSE STORES
NEIGHBOURHOODS,27/09/2018,WWW.ESSENTIALSUPPLIES.,619.86,MISCELLANEOUS GENERAL MERCHANDISE
NEIGHBOURHOODS,27/09/2018,EB  BICS EDI FOR LIBRA,26.14,BUSINESS SERVICES-NOT ELSEWHERE CLASSIFIED
NEIGHBOURHOODS,27/09/2018,AMZN MKTP UK,44.44,BOOK STORES
NEIGHBOURHOODS,27/09/2018,AMAZON.CO.UK,78.00,DIRECT MARKETING-OTHER DIRECT MARKETERS/NOT ELSEW.
NEIGHBOURHOODS,30/09/2018,FACEBK SM9HVH6XY2,68.83,ADVERTISING SERVICES
NEIGHBOURHOODS,30/09/2018,FACEBK 36A8DH24V2,.00,ADVERTISING SERVICES
NEIGHBOURHOODS,30/09/2018,FACEBK 36A8DH24V2,218.18,ADVERTISING SERVICES
NEIGHBOURHOODS,30/09/2018,FACEBK 36A8DH24V2,.00,ADVERTISING SERVICES
NEIGHBOURHOODS,28/09/2018,FACEBK XHAQPH2YY2,600.00,ADVERTISING SERVICES
NEIGHBOURHOODS,28/09/2018,HALFORDS 0709,29.99,BICYCLE SHOPS-SALES AND SERVICE
NEIGHBOURHOODS,28/09/2018,TRAVELODGE GB0000,143.00,TRAVELODGE
NEIGHBOURHOODS,27/09/2018,SUK RETAIL LTD,74.98,"OFFICE, SCHOOL SUPPLY, AND STATIONERY STORES"
NEIGHBOURHOODS,26/09/2018,SPORTSDIRECT.COM,364.75,SPORTING GOODS STORES
NEIGHBOURHOODS,01/10/2018,TRAVELODGE GB0000,51.00,TRAVELODGE
NEIGHBOURHOODS,01/10/2018,TWITTER ONLINE ADS,35.00,ADVERTISING SERVICES
NEIGHBOURHOODS,01/10/2018,ST JOHN AMBULANCE,324.00,"ORGANIZATIONS, CHARITABLE AND SOCIAL SERVICES"
NEIGHBOURHOODS,01/10/2018,BRITISH RED CROSS,302.40,"ORGANIZATIONS, CHARITABLE AND SOCIAL SERVICES"
NEIGHBOURHOODS,02/10/2018,FYSIOSUPPLIESBVNL,144.80,DENTAL/LAB/MED/OPHTHALMIC HOSP EQUIP & SUPPLIES
NEIGHBOURHOODS,02/10/2018,SAINSBURYS 0751,12.00,"GROCERY STORES, SUPERMARKETS"
NEIGHBOURHOODS,02/10/2018,TWITTER ONLINE ADS,5.00,ADVERTISING SERVICES
NEIGHBOURHOODS,02/10/2018,FAST KEY SERVICES LIMI,32.32,BUSINESS SERVICES-NOT ELSEWHERE CLASSIFIED
NEIGHBOURHOODS,01/10/2018,PREMIER INN 44537265,63.50,PREMIER INN
NEIGHBOURHOODS,01/10/2018,AMZN MKTP UK AMAZON.CO,10.44,BOOK STORES
RES,02/07/2018,TRAVELODGE GB0000,-622.00,TRAVELODGE
RES,03/07/2018,AWS #141117584,237.53,MISCELLANEOUS AND SPECIALTY RETAIL STORES
RES,03/07/2018,AWS #140958867,3.72,MISCELLANEOUS AND SPECIALTY RETAIL STORES
RES,03/07/2018,STATUSCAKE.COM STATUSC,14.99,COMPUTER SOFTWARE STORES
RES,03/07/2018,WWW.DOMAINMONSTER.COM,39.56,COMPUTER SOFTWARE STORES
RES,03/07/2018,OPENSRCHSERVER,60.23,COMPUTER SOFTWARE STORES
RES,03/07/2018,VOUND COLORADO LTD,470.35,"COMP PROGRAMING,DATA PRCSNG,INTGRTD SYS DSGN SRVS"
RES,05/07/2018,REDFUNNEL.CO.UK,86.25,CRUISE LINES
RES,07/07/2018,THE SSL STORE.COM,45.33,"COMP PROGRAMING,DATA PRCSNG,INTGRTD SYS DSGN SRVS"
RES,06/07/2018,CLEARDB,6.81,"COMP PROGRAMING,DATA PRCSNG,INTGRTD SYS DSGN SRVS"
RES,10/07/2018,INFOBUS.EU,101.41,BUS LINES
RES,09/07/2018,CLOUDFLARE,26.08,BUSINESS SERVICES-NOT ELSEWHERE CLASSIFIED
RES,11/07/2018,WWW.DOMAINMONSTER.COM,25.16,COMPUTER SOFTWARE STORES
RES,11/07/2018,WWW.EUKHOST.COM,131.97,"COMP PROGRAMING,DATA PRCSNG,INTGRTD SYS DSGN SRVS"
RES,12/07/2018,WWW.ADASS.ORG.UK,570.00,"ORGANIZATIONS, CHARITABLE AND SOCIAL SERVICES"
RES,12/07/2018,REDFUNNEL.CO.UK,94.00,CRUISE LINES
RES,15/07/2018,AMAZON SVCS EU-UK AMAZ,157.47,BOOK STORES
RES,15/07/2018,AMAZON UK MARKETPLACE,36.99,BOOK STORES
RES,17/07/2018,ABSOLUTE,906.00,MISCELLANEOUS HOUSE FURNISHING SPECIALTY SHOPS
RES,18/07/2018,REDFUNNEL.CO.UK,89.25,CRUISE LINES
RES,18/07/2018,WWW.DOMAINMONSTER.COM,25.16,COMPUTER SOFTWARE STORES
RES,20/07/2018,HOLIDAY COTTAGES,660.00,CAMPGROUNDS AND TRAILER PARKS
RES,20/07/2018,EB  SENSORY ATTACHMENT,250.00,BUSINESS SERVICES-NOT ELSEWHERE CLASSIFIED
RES,20/07/2018,NATIONAL EXPRESS LIMIT,31.10,BUS LINES
RES,23/07/2018,MAILCHIMP    MONTHLY,65.91,DIRECT MARKETING-CONTINUITY/SUBSCRIPTION MERCHANTS
RES,26/07/2018,REDFUNNEL.CO.UK,137.50,CRUISE LINES
RES,26/07/2018,DERBYSHIRE010OFFIC,40.00,FINES
RES,26/07/2018,WWW.DOMAINMONSTER.COM,25.16,COMPUTER SOFTWARE STORES
RES,27/07/2018,AMAZON UK MARKETPLACE,51.98,BOOK STORES
RES,30/07/2018,REDFUNNEL.CO.UK,173.00,CRUISE LINES
RES,30/07/2018,REDFUNNEL.CO.UK,98.75,CRUISE LINES
RES,30/07/2018,REDFUNNEL.CO.UK,94.00,CRUISE LINES
RES,31/07/2018,FACEBK 8H8L8GNLY2,24.02,ADVERTISING SERVICES
RES,31/07/2018,FACEBK UG8L8GNLY2,70.45,ADVERTISING SERVICES
RES,31/07/2018,SILLY SIDS,595.00,"EQUIP, FURNITURE, HOME FURNSHNGS STRS (EXCPT APPL)"
RES,02/08/2018,AMZN MKTP UK,21.99,BOOK STORES
RES,02/08/2018,AMZN MKTP UK,23.98,BOOK STORES
RES,02/08/2018,AMZN MKTP UK,16.99,BOOK STORES
RES,02/08/2018,AMZN MKTP UK,7.35,BOOK STORES
RES,03/08/2018,AWS EMEA,242.46,BUSINESS SERVICES-NOT ELSEWHERE CLASSIFIED
RES,03/08/2018,AWS EMEA,4.68,BUSINESS SERVICES-NOT ELSEWHERE CLASSIFIED
RES,03/08/2018,OPENSRCHSERVER,60.87,COMPUTER SOFTWARE STORES
RES,03/08/2018,DERBYSHIRE010OFFIC,20.00,FINES
RES,03/08/2018,WWW.ARGOS.CO.UK,226.90,DISCOUNT STORES
RES,03/08/2018,STATUSCAKE.COM STATUSC,14.99,COMPUTER SOFTWARE STORES
RES,03/08/2018,WWW.ARGOS.CO.UK,73.40,DISCOUNT STORES
RES,03/08/2018,CURRYS ONLINE,554.97,ELECTRONIC SALES
RES,03/08/2018,AMZN MKTP UK,3.89,BOOK STORES
RES,03/08/2018,WWW.ARGOS.CO.UK,-73.40,DISCOUNT STORES
RES,06/08/2018,WWW.DESKTOP-INNOVATION,160.80,"OFFICE, SCHOOL SUPPLY, AND STATIONERY STORES"
RES,07/08/2018,CLEARDB,7.72,"COMP PROGRAMING,DATA PRCSNG,INTGRTD SYS DSGN SRVS"
RES,09/08/2018,AMZN MKTP UK,39.08,BOOK STORES
RES,09/08/2018,AMAZON.CO.UK,115.00,DIRECT MARKETING-OTHER DIRECT MARKETERS/NOT ELSEW.
RES,09/08/2018,CLOUDFLARE,26.32,BUSINESS SERVICES-NOT ELSEWHERE CLASSIFIED
RES,14/08/2018,AMZN MKTP UK,57.98,BOOK STORES
RES,14/08/2018,AMAZON.CO.UK,21.48,DIRECT MARKETING-OTHER DIRECT MARKETERS/NOT ELSEW.
RES,14/08/2018,CO-OP MOBILITY,6.05,DENTAL/LAB/MED/OPHTHALMIC HOSP EQUIP & SUPPLIES
RES,14/08/2018,WWW.POSTURITE.CO.UK,126.00,OFFICE AND COMMERCIAL FURNITURE
RES,15/08/2018,AMZN MKTP UK,10.80,BOOK STORES
RES,15/08/2018,NATIONAL EXPRESS LIMIT,48.05,BUS LINES
RES,15/08/2018,WWW.ADASS.ORG.UK,570.00,"ORGANIZATIONS, CHARITABLE AND SOCIAL SERVICES"
RES,15/08/2018,WWW.ADASS.ORG.UK,570.00,"ORGANIZATIONS, CHARITABLE AND SOCIAL SERVICES"
RES,16/08/2018,AMAZON.CO.UK,58.98,DIRECT MARKETING-OTHER DIRECT MARKETERS/NOT ELSEW.
RES,16/08/2018,AMAZON.CO.UK,26.47,DIRECT MARKETING-OTHER DIRECT MARKETERS/NOT ELSEW.
RES,16/08/2018,WWW.ARGOS.CO.UK,53.94,DISCOUNT STORES
RES,16/08/2018,CHARTERED INSTITUTE OF,10.00,"ORGANIZATIONS, CHARITABLE AND SOCIAL SERVICES"
RES,16/08/2018,CHARTERED INSTITUTE OF,10.00,"ORGANIZATIONS, CHARITABLE AND SOCIAL SERVICES"
RES,17/08/2018,AMZN MKTP UK,182.98,BOOK STORES
RES,17/08/2018,AMAZON.CO.UK,203.49,DIRECT MARKETING-OTHER DIRECT MARKETERS/NOT ELSEW.
RES,20/08/2018,CURRYS ONLINE,628.98,ELECTRONIC SALES
RES,20/08/2018,WWW.ARGOS.CO.UK,147.89,DISCOUNT STORES
RES,21/08/2018,WWW.ARGOS.CO.UK,88.92,DISCOUNT STORES
RES,21/08/2018,BRITANNIA CONNECTIONS,270.50,BUS LINES
RES,21/08/2018,WWW.ARGOS.CO.UK,-143.94,DISCOUNT STORES
RES,21/08/2018,WWW.ARGOS.CO.UK,-3.95,DISCOUNT STORES
RES,23/08/2018,MAILCHIMP    MONTHLY,62.05,DIRECT MARKETING-CONTINUITY/SUBSCRIPTION MERCHANTS
RES,24/08/2018,WWW.DOMAINMONSTER.COM,112.07,COMPUTER SOFTWARE STORES
RES,28/08/2018,CROSS COUNTRY TRAINS,39.50,PASSENGER RAILWAYS
RES,29/08/2018,PARTRIDGE & PRINT,9.80,SCHOOLS & EDUCATIONAL SVC-NOT ELSEWHERE CLASSIFIED
RES,31/08/2018,FACEBK C7A3YGWKY2,122.26,ADVERTISING SERVICES
RES,31/08/2018,JD SPORTS INTERNET,43.99,SPORTING GOODS STORES
RES,31/08/2018,LOVE2SHOP.CO.UK,40.20,"ASSOCIATIONS-CIVIC, SOCIAL, AND FRATERNAL"
RES,31/08/2018,WWW.FLEX-E-CARD.COM,105.49,"GIFT, CARD, NOVELTY AND SOUVENIR SHOPS"
RES,03/09/2018,AWS EMEA,4.89,BUSINESS SERVICES-NOT ELSEWHERE CLASSIFIED
RES,03/09/2018,AWS EMEA,247.83,BUSINESS SERVICES-NOT ELSEWHERE CLASSIFIED
RES,03/09/2018,STATUSCAKE.COM STATUSC,14.99,COMPUTER SOFTWARE STORES
RES,03/09/2018,OPENSRCHSERVER,61.44,COMPUTER SOFTWARE STORES
RES,06/09/2018,WWW.ARGOS.CO.UK,76.93,DISCOUNT STORES
RES,07/09/2018,CURRYS ONLINE,404.98,ELECTRONIC SALES
RES,06/09/2018,CLEARDB,7.75,"COMP PROGRAMING,DATA PRCSNG,INTGRTD SYS DSGN SRVS"
RES,10/09/2018,WWW.ARGOS.CO.UK,159.41,DISCOUNT STORES
RES,09/09/2018,CLOUDFLARE,25.19,BUSINESS SERVICES-NOT ELSEWHERE CLASSIFIED
RES,11/09/2018,WWW.ARGOS.CO.UK,201.93,DISCOUNT STORES
RES,13/09/2018,BATTERY STATION,4.40,HOUSEHOLD APPLIANCE STORES
RES,13/09/2018,THE BEST WESTERN CARLT,120.00,"LODGING-HOTELS,MOTELS,RESORTS-NOT CLASSIFIED"
RES,14/09/2018,WWW.ARGOS.CO.UK,126.93,DISCOUNT STORES
RES,14/09/2018,MSFT  <E02006ISKP>,43.20,"COMPUTERS, COMPUTER PERIPHERAL EQUIPMENT, SOFTWARE"
RES,14/09/2018,MSFT  <E02006IVVB>,86.40,"COMPUTERS, COMPUTER PERIPHERAL EQUIPMENT, SOFTWARE"
RES,23/09/2018,MAILCHIMP    MONTHLY,61.75,DIRECT MARKETING-CONTINUITY/SUBSCRIPTION MERCHANTS
RES,22/09/2018,THE SSL STORE.COM,22.90,"COMP PROGRAMING,DATA PRCSNG,INTGRTD SYS DSGN SRVS"
RES,24/09/2018,AMAZON.CO.UK,17.74,DIRECT MARKETING-OTHER DIRECT MARKETERS/NOT ELSEW.
RES,26/09/2018,WWW.ARGOS.CO.UK,51.94,DISCOUNT STORES
RES,26/09/2018,AMAZON.CO.UK,8.19,DIRECT MARKETING-OTHER DIRECT MARKETERS/NOT ELSEW.
RES,26/09/2018,WWW.ARGOS.CO.UK,159.90,DISCOUNT STORES
RES,26/09/2018,CURRYS ONLINE,254.99,ELECTRONIC SALES
RES,30/09/2018,FACEBK GLQTEHSKY2,184.78,ADVERTISING SERVICES
RES,28/09/2018,CURRYS ONLINE,204.99,ELECTRONIC SALES
RES,28/09/2018,WWW.ARGOS.CO.UK,214.99,DISCOUNT STORES
RES,28/09/2018,WWW.ARGOS.CO.UK,141.90,DISCOUNT STORES
RES,28/09/2018,CURRYS ONLINE,204.99,ELECTRONIC SALES
RES,28/09/2018,WWW.ARGOS.CO.UK,93.40,DISCOUNT STORES
RES,28/09/2018,WWW.ARGOS.CO.UK,229.99,DISCOUNT STORES
RES,01/10/2018,ELSA NETWORK,100.00,COMPUTER SOFTWARE STORES
RES,01/10/2018,WWW.ARGOS.CO.UK,38.42,DISCOUNT STORES
RES,01/10/2018,WWW.EUKHOST.COM,131.97,"COMP PROGRAMING,DATA PRCSNG,INTGRTD SYS DSGN SRVS"
